Workbook

Sheet Оглавление

Sheet Итоговый заказ
B7: Итоговый заказ
A8: Артикул | B8: Название | C8: Количество | D8: Ваша цена | E8: Цена (МРЦ) | F8: Сумма | G8: Лист
A9: 10262 | B9: Пшеничное классическое охмеленное 2,1 кг на 23л. | C9: 2 | D9: 960 | E9: 1390 | F9: =C9*D9 -> 1920 | G9: Пивоварение
A10: 10255 | B10: Ржаной ЭЛЬ охмеленный 2,1 кг на 23л. | C10: 2 | D10: 940 | E10: 1390 | F10: =C10*D10 -> 1880 | G10: Пивоварение
C13: Ваша итоговая сумма заказа | F13: =SUM(F9:F12) -> 3800

Sheet Свое производство
A1: Сделай-Дома.ру 88007001323 (Бесплатно) +79642506913 (Звонки и Ватсап) opt@sdelai-doma.ru
B3: Наименование | C3: Фото | E3: Ваша цена | F3: РРЦ | G3: Заказ | H3: Ссылки на описания | I3: Наценка, %
A4: Дистилляторы Сделай-Дома.ру
A5: 48642 | B5: Дистиллятор Практик с сухопарником 10л | D5: шт. | E5: 4990 | F5: 5990 | H5: Описание на сайте | I5: =(F5-E5)/E5*100 -> 20.04008016
A6: 48643 | B6: Дистиллятор Практик с сухопарником 16л | D6: шт. | E6: 5590 | F6: 7190 | I6: =(F6-E6)/E6*100 -> 28.62254025
A7: 28430 | B7: Дистиллятор Практик с сухопарником 20л | D7: шт. | E7: 5690 | F7: 7390 | I7: 29.87697715
A8: 48638 | B8: Дистиллятор Практик с сухопарником 25л | D8: шт. | E8: 5990 | F8: 7990 | I8: 33.38898164
A9: 48632 | B9: Дистиллятор Мастер Практик 10л | D9: шт. | E9: 5340 | F9: 6800 | H9: Описание на сайте | I9: 27.34082397
A10: 48627 | B10: Дистиллятор Мастер Практик 15л | D10: шт. | E10: 5940 | F10: 7790 | I10: 31.14478114
A11: 48628 | B11: Дистиллятор Мастер Практик 20л | D11: шт. | E11: 6300 | F11: 7990 | I11: 26.82539683
A12: 48629 | B12: Дистиллятор Мастер Практик 25л | D12: шт. | E12: 6680 | F12: 8990 | I12: 34.58083832
A13: 48651 | B13: Дистиллятор Гони Самогон Актив 10 л | D13: шт. | E13: 4990 | F13: 5990 | H13: Описание на сайте | I13: 20.04008016
A14: 48652 | B14: Дистиллятор Гони Самогон Актив 16 л | D14: шт. | E14: 5590 | F14: 7190 | I14: 28.62254025
A15: 48653 | B15: Дистиллятор Гони Самогон Актив 20 л | D15: шт. | E15: 5690 | F15: 7390 | I15: 29.87697715
A16: 48654 | B16: Дистиллятор Гони Самогон Актив 25 л | D16: шт. | E16: 5990 | F16: 7990 | I16: 33.38898164
A17: 28450 | B17: Дистиллятор с разборным сухопарником Дунай Про 10 л | D17: шт. | E17: 5340 | F17: 6800 | H17: Описание на сайте | I17: 27.34082397
A18: 28470 | B18: Дистиллятор с разборным сухопарником Дунай Про 15 л | D18: шт. | E18: 5940 | F18: 7790 | I18: 31.14478114
A19: 48655 | B19: Дистиллятор с разборным сухопарником Дунай Про 20 л | D19: шт. | E19: 6300 | F19: 7990 | I19: 26.82539683
A20: 48656 | B20: Дистиллятор с разборным сухопарником Дунай Про 25 л | D20: шт. | E20: 6680 | F20: 8990 | I20: 34.58083832
A21: 28520 | B21: Миниколонна + сухопарник Мужское хобби на 16 л | D21: шт. | E21: 6570 | F21: 8900 | H21: Описание на сайте | I21: 35.46423135
A22: 28530 | B22: Миниколонна + сухопарник Мужское хобби на 20 л | D22: шт. | E22: 6800 | F22: 9500 | I22: 39.70588235
A23: 28540 | B23: Миниколонна + сухопарник Мужское хобби на 25 л | D23: шт. | E23: 7300 | F23: 9900 | I23: 35.61643836
A24: 48657 | B24: Дистиллятор миниколонна с сухопарником Тайга 15 л | D24: шт. | E24: 7170 | F24: 9700 | H24: Описание на сайте | I24: 35.28591353
A25: 48658 | B25: Дистиллятор миниколонна с сухопарником Тайга 20 л | D25: шт. | E25: 7400 | F25: 10400 | I25: 40.54054054
A26: 48659 | B26: Дистиллятор миниколонна с сухопарником Тайга 25 л | D26: шт. | E26: 7900 | F26: 10800 | I26: 36.70886076
A27: 28490 | B27: Дистиллятор Практик с двумя сухопарниками на 16 л | D27: шт. | E27: 6700 | F27: 8990 | H27: Описание на сайте | I27: 34.17910448
A28: 48648 | B28: Дистиллятор Практик с двумя сухопарниками на 20 л | D28: шт. | E28: 7200 | F28: 9900 | I28: 37.5
A29: 48641 | B29: Дистиллятор Практик с двумя сухопарниками на 25л | D29: шт. | E29: 7600 | F29: 10900 | I29: 43.42105263
A30: 48637 | B30: Дистиллятор Мастер Практик с двумя сухопарниками 15л | D30: шт. | E30: 6990 | F30: 9900 | H30: Описание на сайте | I30: 41.63090129
A31: 48650 | B31: Дистиллятор Мастер Практик с двумя сухопарниками 20л | D31: шт. | E31: 7590 | F31: 10800 | I31: 42.29249012
A32: 48649 | B32: Дистиллятор Мастер Практик с двумя сухопарниками 25л | D32: шт. | E32: 7990 | F32: 11500 | I32: 43.92991239
A33: 280446 | B33: Дистиллятор Мюнхен 16 л | D33: шт. | E33: 7100 | F33: 9400 | H33: Описание на сайте | I33: 32.3943662
A34: 28775 | B34: Дистиллятор Мюнхен 20л | D34: шт. | E34: 7300 | F34: 9900 | I34: 35.61643836
A35: 2854440 | B35: Дистиллятор Мюнхен 25 л | D35: шт. | E35: 7900 | F35: 10400 | I35: 31.64556962
A36: 00361 | B36: Дистиллятор-колонна Амур 15 л | D36: шт. | E36: 7550 | F36: 9850 | H36: Описание на сайте | I36: 30.46357616
A37: 00362 | B37: Дистиллятор-колонна Амур 20 л | D37: шт. | E37: 7750 | F37: 10350 | I37: 33.5483871
A38: 00349 | B38: Дистиллятор-колонна Амур 25 л | D38: шт. | E38: 8350 | F38: 10850 | I38: 29.94011976
A39: 48567 | B39: Дистиллятор Нобель 16 л | D39: шт. | E39: 8300 | F39: 10700 | H39: Описание на сайте | I39: 28.91566265
A40: 48565 | B40: Дистиллятор Нобель 20 л | D40: шт. | E40: 8700 | F40: 11500 | I40: 32.18390805
A41: 48568 | B41: Дистиллятор Нобель 25 л | D41: шт. | E41: 8900 | F41: 11900 | I41: 33.70786517
A42: 48672 | B42: Дистиллятор-колонна Альфа 15 л | D42: шт. | E42: 8700 | F42: 10900 | H42: Описание на сайте | I42: 25.28735632
A43: 48673 | B43: Дистиллятор-колонна Альфа 20 л | D43: шт. | E43: 9400 | F43: 11800 | I43: 25.53191489
A44: 48674 | B44: Дистиллятор-колонна Альфа 25 л | D44: шт. | E44: 9600 | F44: 12500 | I44: 30.20833333
A45: 00341 | B45: Дистиллятор Иртыш 16л | D45: шт. | E45: 8800 | F45: 11400 | H45: Описание на сайте | I45: 29.54545455
A46: 48569 | B46: Дистиллятор Иртыш 20л | D46: шт. | E46: 9100 | F46: 11900 | I46: 30.76923077
A47: 48570 | B47: Дистиллятор Иртыш 25л | D47: шт. | E47: 9400 | F47: 12200 | I47: 29.78723404
A48: 48594 | B48: Дистиллятор-Колонна Нева (Витязь) 16л | D48: шт. | E48: 9100 | F48: 11980 | H48: Описание на сайте | I48: 31.64835165
A49: 48675 | B49: Дистиллятор-Колонна Нева (Витязь) 20л | D49: шт. | E49: 9600 | F49: 12600 | I49: 31.25
A50: 48676 | B50: Дистиллятор-Колонна Нева (Витязь) 25л | D50: шт. | E50: 10100 | F50: 13300 | I50: 31.68316832
A51: 48665 | B51: Дистиллятор Кама 16л | D51: шт. | E51: 6490 | F51: 8600 | H51: Описание на сайте | I51: 32.51155624
A52: 48664 | B52: Дистиллятор Кама 20л | D52: шт. | E52: 6990 | F52: 8970 | I52: 28.32618026
A53: 48663 | B53: Дистиллятор Кама 25л | D53: шт. | E53: 6990 | F53: 9900 | I53: 41.63090129
A54: 48662 | B54: Дистиллятор Кама ПРО 16л | D54: шт. | E54: 6990 | F54: 8990 | H54: Описание на сайте | I54: 28.61230329
A55: 48661 | B55: Дистиллятор Кама ПРО 20л | D55: шт. | E55: 7290 | F55: 9900 | I55: 35.80246914
A56: 48660 | B56: Дистиллятор Кама ПРО 25л | D56: шт. | E56: 7590 | F56: 10500 | I56: 38.33992095
A57: 48639 | B57: Дистиллятор Практик эконом 10 л | D57: шт. | E57: 4400 | F57: 5500 | H57: Описание на сайте | I57: 25
A58: 36420 | B58: Дистиллятор Практик эконом 16л | D58: шт. | E58: 4650 | F58: 5800 | I58: 24.7311828
A59: РУ48677 | B59: Дистиллятор Германия 15л | D59: шт. | E59: 7700 | F59: 9600 | H59: Описание на сайте | I59: =(F59-E59)/E59*100 -> 24.67532468
A60: РУ48677 | B60: Дистиллятор Германия 20л | D60: шт. | E60: 8000 | F60: 9800 | I60: 22.5
A61: РУ000036985 | B61: Дистиллятор Германия 30л | D61: шт. | E61: 8400 | F61: 10800 | I61: 28.57142857
A62: РУ0002586 | B62: Дистиллятор "Изюмовка"куб 15 литров | D62: шт. | E62: 9090 | F62: 12900 | H62: Описание на сайте | I62: 41.91419142
A63: РУ000147 | B63: Дистиллятор "Изюмовка" куб 20 литров | D63: шт. | E63: 9490 | F63: 13900 | I63: 46.46996839
A64: РУ0025896 | B64: Дистиллятор "Изюмовка" куб 25 литров | D64: шт. | E64: 9790 | F64: 14900 | I64: 52.19611849
A65: Дистиллятор Комсомолец
A66: 00781 | B66: Дистиллятор Комсомолец 15л. | D66: шт. | E66: 4990 | F66: 6590 | H66: Описание на сайте | I66: 32.06412826
A67: РУ00147852 | B67: Дистиллятор Комсомолец 20л с одним сухопарником | D67: шт. | E67: 5290 | F67: 7390 | I67: 39.69754253
A68: 00782 | B68: Дистиллятор Комсомолец PRO (два сухопарника) 15л. | D68: шт. | E68: 5290 | F68: 7390 | H68: Описание на сайте | I68: 39.69754253
A69: РУ0036985 | B69: Дистиллятор Комсомолец PRO (два сухопарника) 20л | D69: шт. | E69: 5490 | F69: 7990 | I69: 45.53734062
A70: 02580 | B70: Прокладка к баку "комсомолец" | D70: шт. | E70: 110 | F70: 230 | I70: 109.0909091
A71: Перегонные кубы Практик и Практик Про
A72: 02489 | B72: Куб Практик 10 литров без фланца (прокладка, термометр) | D72: шт. | E72: 3400
A73: 02139 | B73: Куб Практик 16 литров без фланца (прокладка, термометр) | D73: шт. | E73: 3800
A74: 02060 | B74: Куб Практик 20 литров без фланца (прокладка, термометр) | D74: шт. | E74: 4000
A75: 02034 | B75: Куб Практик 25 литров без фланца (прокладка, термометр) | D75: шт. | E75: 4400
A76: 00750 | B76: Куб Практик 10 литров фланец отверстие 21 мм (прокладка, термометр) | D76: шт. | E76: 4000 | F76: 5190 | H76: Описание на сайте | I76: =(F76-E76)/E76*100 -> 29.75
A77: 00467 | B77: Куб Практик 16 литров фланец отверстие 21 мм (прокладка, термометр) | D77: шт. | E77: 4500 | F77: 5690 | I77: 26.44444444
A78: 00466 | B78: Куб Практик 20 литров фланец отверстие 21 мм (прокладка, термометр) | D78: шт. | E78: 4800 | F78: 6170 | I78: 28.54166667
A79: 00403 | B79: Куб Практик 25 литров фланец отверстие 21 мм (прокладка, термометр) | D79: шт. | E79: 5000 | F79: 6380 | I79: 27.6
A80: 48677 | B80: Куб Практик 10 литров фланец 1,5 дюйма (прокладка, термометр) | D80: шт. | E80: 4400 | F80: 5670 | I80: 28.86363636
A81: 00451 | B81: Куб Практик 16 литров фланец 1,5 дюйма (прокладка, термометр) | D81: шт. | E81: 4600 | F81: 5950 | I81: 29.34782609
A82: 00424 | B82: Куб Практик 20 литров фланец 1,5 дюйма (прокладка, термометр) | D82: шт. | E82: 5000 | F82: 6190 | I82: 23.8
A83: 00427 | B83: Куб Практик 25 литров фланец 1,5 дюйма (прокладка, термометр) | D83: шт. | E83: 5000 | F83: 6350 | I83: 27
A84: 00767 | B84: Куб Практик 10 литров фланец 2 дюйма (прокладка, термометр) | D84: шт. | E84: 4400 | F84: 5790 | I84: =(F84-E84)/E84*100 -> 31.59090909
A85: 00450 | B85: Куб Практик 16 литров фланец 2 дюйма (прокладка, термометр) | D85: шт. | E85: 4600 | F85: 5950 | I85: 29.34782609
A86: 00465 | B86: Куб Практик 20 литров фланец 2 дюйма (прокладка, термометр) | D86: шт. | E86: 5000 | F86: 6370 | I86: 27.4
A87: 00461 | B87: Куб Практик 25 литров фланец 2 дюйма (прокладка, термометр) | D87: шт. | E87: 5000 | F87: 6590 | I87: 31.8
A88: 00332 | B88: Куб 10 л. Практик Про (без фланца) (Прокладка, кран, термометр) | D88: шт. | E88: 4500
A89: 00371 | B89: Куб 16 л. Практик Про (без фланца) (Прокладка, кран, термометр) | D89: шт. | E89: 5200
A90: 00304 | B90: Куб 20 л. Практик Про (без фланца) (Прокладка, кран, термометр) | D90: шт. | E90: 5700
A91: 00372 | B91: Куб 25 л. Практик Про (без фланца) (Прокладка, кран, термометр) | D91: шт. | E91: 6200
A92: 00464 | B92: Куб 10 л. Практик Про (фланец отверстие 21 мм) (Прокладка, кран, термометр) | D92: шт. | E92: 5000 | F92: 6590 | I92: =(F92-E92)/E92*100 -> 31.8
A93: 00457 | B93: Куб 16 л. Практик Про (фланец отверстие 21 мм) (Прокладка, кран, термометр) | D93: шт. | E93: 5700 | F93: 7380 | I93: 29.47368421
A94: 00456 | B94: Куб 20 л. Практик Про (фланец отверстие 21 мм) (Прокладка, кран, термометр) | D94: шт. | E94: 6200 | F94: 8490 | I94: 36.93548387
A95: 00452 | B95: Куб 25 л. Практик Про (фланец отверстие 21 мм) (Прокладка, кран, термометр) | D95: шт. | E95: 6700 | F95: 8990 | I95: 34.17910448
A96: 00431 | B96: Куб 10 л. Практик Про (фланец 1,5 дюйма) (Прокладка, кран, термометр) | D96: шт. | E96: 5100 | F96: 6790 | I96: 33.1372549
A97: 00376 | B97: Куб 16 л. Практик Про (фланец 1,5 дюйма) (Прокладка, кран, термометр) | D97: шт. | E97: 5800 | F97: 7850 | I97: 35.34482759
A98: 00373 | B98: Куб 20 л. Практик Про (фланец 1,5 дюйма) (Прокладка, кран, термометр) | D98: шт. | E98: 6300 | F98: 8360 | I98: 32.6984127
A99: 00409 | B99: Куб 25 л. Практик Про (фланец 1,5 дюйма) (Прокладка, кран, термометр) | D99: шт. | E99: 6800 | F99: 8990 | I99: 32.20588235
A100: 00404 | B100: Куб 10 л. Практик Про (фланец 2 дюйма) (Прокладка, кран, термометр) | D100: шт. | E100: 5100 | F100: 6990 | I100: 37.05882353
A101: 00425 | B101: Куб 16 л. Практик Про (фланец 2 дюйма) (Прокладка, кран, термометр) | D101: шт. | E101: 5800 | F101: 7900 | I101: 36.20689655
A102: 00429 | B102: Куб 20 л. Практик Про (фланец 2 дюйма) (Прокладка, кран, термометр) | D102: шт. | E102: 6300 | F102: 8540 | I102: 35.55555556
A103: 00426 | B103: Куб 25 л. Практик Про (фланец 2 дюйма) (Прокладка, кран, термометр) | D103: шт. | E103: 6800 | F103: 8990 | I103: 32.20588235
A104: 02877 | B104: Фланец на 5 отверстий с выходом 1/2 | D104: шт. | E104: 630 | F104: 790 | I104: 25.3968254
A105: 02878 | B105: Фланец на 5 отверстий под кламп 1,5 | D105: шт. | E105: 840 | F105: 1120 | I105: 33.33333333
A106: 02879 | B106: Фланец на 5 отверстий под кламп 2,0 | D106: шт. | E106: 910 | F106: 1180 | I106: 29.67032967
A107: 02594 | B107: Барашек для перегонного куба, железо | D107: шт. | E107: 4 | F107: 6 | I107: 50
A108: 00377 | B108: Барашек для перегонного куба, пластик | D108: шт. | E108: 12 | F108: 18 | I108: 50
A109: 49054 | B109: Прокладка под бак Пищевая резина | D109: шт. | E109: 120 | F109: 180 | I109: =(F109-E109)/E109*100 -> 50
A110: 49055 | B110: Прокладка под бак силикон 3мм | D110: шт. | E110: 190 | F110: 360 | I110: =(F110-E110)/E110*100 -> 89.47368421
A111: Дистилляторы без куба Сделай-Дома (Подойдут для любых кубов и автоклавов)
A112: 48671 | B112: Насадка для дистиляции внутренняя резьба 1/2 дюйма (Комплектация) | D112: шт. | E112: 2700 | F112: 3600 | H112: Описание на сайте | I112: =(F112-E112)/E112*100 -> 33.33333333
A113: 48670 | B113: Насадка для дистиляции, внешняя резьба 1/2 дюйма (Комплектация) | D113: шт. | E113: 2700 | F113: 3600 | I113: 33.33333333
A114: 48630 | B114: Дистиллятор без куба Практик с одним сухопарником, внешняя резьба 1/2 дюйма (Комплектация) | D114: шт. | E114: 2700 | F114: 3600 | H114: Описание на сайте | I114: 33.33333333
A115: 48633 | B115: Дистиллятор без куба Практик с одним, внутренняя резьба 1/2 дюйма (Комплектация) | D115: шт. | E115: 2700 | F115: 3600 | I115: =(F115-E115)/E115*100 -> 33.33333333
A116: 48626 | B116: Дистиллятор без куба Практик с одним сухопарником, выход на кламп 1,5 дюйма (Комплектация) | D116: шт. | E116: 3460 | F116: 4500 | H116: Описание на сайте | I116: 30.05780347
A117: 48631 | B117: Дистиллятор без куба Практик с одним сухопарником, выход на кламп 2 дюйма (Комплектация) | D117: шт. | E117: 3530 | F117: 4990 | I117: =(F117-E117)/E117*100 -> 41.35977337
A118: 48634 | B118: Дистиллятор без куба Практик с двумя сухопарниками, внешняя резьба 1/2 дюйма (Комплектация) | D118: шт. | E118: 4110 | F118: 5590 | H118: Описание на сайте | I118: =(F118-E118)/E118*100 -> 36.00973236
A119: 48645 | B119: Дистиллятор без куба Практик с двумя сухопарниками, внутренняя резьба 1/2 дюйма | D119: шт. | E119: 4110 | F119: 5590 | I119: 36.00973236
B120: Дистиллятор без куба Практик с двумя сухопарниками, выход на кламп 1,5 дюйма (Комплектация) | D120: шт. | E120: 4390 | F120: 5990 | I120: 36.44646925
A121: РУ00000114 | B121: Дистиллятор без куба Изюмовка (Комплектация) | D121: шт. | E121: 5300 | F121: 6600 | I121: 24.52830189
A122: 28570 | B122: Дистиллятор колонного типа без куба Нобель 1.5 дюйма (Комплектация) | D122: шт. | E122: 3700 | F122: 4800 | I122: 29.72972973
A123: 48669 | B123: Бражная колонна Иртыш (Витязь 3) (Комплектация) | D123: шт. | E123: 3700 | F123: 4800 | I123: 29.72972973
A124: 48668 | B124: Дистиллятор без куба Миниколонна с сухопарником 2 дюйма (Комплектация) | D124: шт. | E124: 3970 | F124: 5190 | I124: 30.73047859
A125: 48666 | B125: Дистиллятор без куба Кама внешняя резьба 1/2 дюйма (Комплектация) | D125: шт. | E125: 2780 | F125: 3550 | I125: 27.69784173
A126: 48667 | B126: Дистиллятор без куба Кама Про внешняя резьба 1/2 дюйма (Комплектация) | D126: шт. | E126: 3480 | F126: 4590 | I126: 31.89655172
B127: Дистиллятор без куба Кама внешняя резьба 1/2 дюйма (Комплектация) | D127: шт. | E127: 4300 | I127: -100
A128: 49053 | B128: Змеевик деревенский в ведро внешняя резьба 1/2 дюйма | D128: шт. | E128: 4300 | F128: 5290 | I128: 23.02325581
A129: УМЕ034 | B129: Змеевик деревенский в ведро с крышкой-сухопарником внешняя резьба 1/2 дюйма | D129: шт. | E129: 5240 | F129: 6590 | I129: 25.76335878

Sheet Свое производство 2
A1: Сделай-Дома.ру 88007001323 (Бесплатно) +79642506913 (Звонки и Ватсап) manager@sdelai-doma.ru
B3: Наименование | C3: Фото | E3: Ваша цена | F3: РРЦ | G3: Заказ | H3: Ссылки на описания | I3: Наценка, %
A4: Бражная колонна "Легенда"
A5: РУ9032 | B5: Бражная колонна "ЛЕГЕНДА" куб 15 литров резьба | D5: шт. | E5: 11090 | F5: 14000 | H5: Царга 300мм, дефлегматор 4х10 200мм, холодильник 4х10 400мм с носиком и атмосферным выходом, кран 1/2 с носиком, сбросник, 5 пластиковых барашков, РПН 2 по 30 см, шланг ПВХ 3м, дивертор, спиртометр, силикон под термометр 2шт, термометр 2шт | I5: =(F5-E5)/E5*100 -> 26.23985573
A6: РУ4543 | B6: Бражная колонна "ЛЕГЕНДА" куб 20 литров резьба 1/2 | D6: шт. | E6: 11490 | F6: 14500 | I6: 26.19669278
A7: РУ2354 | B7: Бражная колонна "ЛЕГЕНДА" куб 25 литров резьба 1/2 | D7: шт. | E7: 11490 | F7: 14990 | I7: 30.46127067
A8: Самогонный аппарат Витязь 3
A9: 48594 | B9: Самогонный аппарат Нева (Витязь 3), 16 л | D9: шт. | E9: 9100 | F9: 11980 | H9: Описание на сайте | I9: =(F9-E9)/E9*100 -> 31.64835165
A10: РУ0014587 | B10: Самогонный аппарат Нева (Витязь 3), 20 л | D10: шт. | E10: 9600 | F10: 12600 | I10: 31.25
A11: РУ0000011457 | B11: Самогонный аппарат Нева (Витязь 3), 30 л | D11: шт. | E11: 10100 | F11: 13300 | I11: 31.68316832
A12: Бражная колонна "Викинг Эконом" - 1,5 дюйма, комплектация на выбор (Шланг ПВХ или под Быстросъем)
A13: 00707 | B13: Бражная колонна "Викинг Эконом" куб 16 литров | D13: шт. | E13: 11090 | F13: 14000 | H13: Описание на сайте | I13: =(F13-E13)/E13*100 -> 26.23985573
A14: 02578 | B14: Бражная колонна "Викинг Эконом" куб 20 литров | D14: шт | E14: 11490 | F14: 14500 | I14: 26.19669278
A15: 02579 | B15: Бражная колонна "Викинг Эконом" куб 25 литров | D15: шт | E15: 11490 | F15: 14990 | I15: 30.46127067
A16: Дистиллятор-колонна Viking с кубами. Комплектация на выбор (Шланг ПВХ или под Быстросъем)
A17: 00137 | B17: Дистиллятор-колонна Viking 20л. 1.5 дюйма с выходом под тэн | D17: шт. | E17: 15900 | F17: 19900 | I17: =(F17-E17)/E17*100 -> 25.1572327
A18: 38600 | B18: Дистиллятор-колонна Viking 37л. 1.5 дюйма с выходом под тэн | D18: шт. | E18: 17900 | F18: 21900 | I18: 22.34636872
A19: 38610 | B19: Дистиллятор-колонна Viking 37л. 2 дюйма с выходом под тэн резьба 1/2 | D19: шт. | E19: 18900 | F19: 22800 | I19: 20.63492063
B20: Дистиллятор-колонна Viking 50л. 1,5 дюйма с выходом под тэн | D20: шт. | E20: 19900 | F20: 24700 | I20: 24.12060302
A21: 38620 | B21: Дистиллятор-колонна Viking 50л. 2 дюйма с выходом под | D21: шт. | E21: 20900 | F21: 25700 | I21: 22.96650718
A22: Колонны Викинг без Бака подвод резьба 1/2
A23: РУ38830 | B23: Бражная колонна Viking 1.5 дюйма без куба 1/2 резьба + термометр | D23: шт. | E23: 7990 | F23: 9700 | I23: =(F23-E23)/E23*100 -> 21.40175219
A24: РУ38840 | B24: Бражная колонна Viking 2 дюйма без куба резьба 1/2 + термометр | D24: шт. | E24: 9400 | F24: 11900 | I24: 26.59574468
A25: 48607 | B25: Бражная колонна Viking 3 дюйма без куба резьба 1/2 + термометр | D25: шт. | E25: 14500 | F25: 17900 | I25: 23.44827586
B26: Коплектация к колонне подвод (шланги ПВХ) | D26: шт. | E26: 1025 | F26: 2190 | I26: 113.6585366
A27: 48702 | B27: Коплектация к колонне на быстросьемах и жестких шлангах | D27: шт. | E27: 1350 | F27: 2190 | I27: 62.22222222
A28: Колонна Викинг Про подвод 1/2 резьба
A29: 01979 | B29: Ректификационная колонна с отбором по пару Викинг Про 1,5 дюйма без куба резьба 1/2 + термометр | D29: шт. | E29: 12300 | F29: 15900 | I29: 29.26829268
A30: 01980 | B30: Ректификационная колонна с отбором по пару Викинг Про 2 дюйма без куба резьба 1/2 + термометр | D30: шт. | E30: 14900 | F30: 18700 | I30: 25.5033557
B31: Коплектация к колонне подвод (шланги ПВХ) | D31: шт. | E31: 1025 | F31: 2190 | I31: 113.6585366
A32: 48702 | B32: Коплектация к колонне на быстросьемах и жестких шлангах | D32: шт. | E32: 1350 | F32: 2190 | I32: 62.22222222
A33: Колонна Викинг Альфа подвод 1/2 резьба
A34: РУ03625698 | B34: Ректификационная колонна с отбором по жидкости Викинг Альфа 1,5 дюйма без куба резьба 1/2 + термометр | D34: шт. | E34: 10790 | F34: 13890 | I34: =(F34-E34)/E34*100 -> 28.73030584
A35: РУ0013658 | B35: Ректификационная колонна с отбором по жидкости Викинг Альфа 2 дюйма без куба резьба 1/2 + термометр | D35: шт. | E35: 13000 | F35: 16780 | I35: 29.07692308
A36: РУ0025694 | B36: Ректификационная колонна с отбором по жидкости Викинг Альфа 3 дюйма без куба резьба 1/2 + термометр | D36: шт. | E36: 22990 | F36: 26990 | I36: 17.39886907
B37: Коплектация к колонне подвод (шланги ПВХ) | D37: шт. | E37: 1025 | F37: 2190 | I37: 113.6585366
A38: 48702 | B38: Коплектация к колонне на быстросьемах и жестких шлангах | D38: шт. | E38: 1350 | F38: 2190 | I38: 62.22222222
A39: Кубы
A40: 01372 | B40: Куб Заготовщик 37 литров/2" с цельной купольной крышкой | D40: шт. | E40: 12500 | F40: 15990 | I40: =(F40-E40)/E40*100 -> 27.92
A41: 01874 | B41: Куб Заготовщик 50 литров/2" с цельной купольной крышкой | D41: шт. | E41: 13300 | F41: 16990 | I41: 27.7443609
A42: РУ999887 | B42: Куб Викинг 25 л. купольная крышка 1,5 дюйма | D42: шт. | E42: 10540 | F42: 11800 | I42: 11.9544592
A43: РУ999888 | B43: Куб Викинг 25 л. купольная крышка 2 дюйма | D43: шт. | E43: 10540 | F43: 12400 | I43: 17.64705882
A44: РУ999889 | B44: Куб Викинг 37 л. купольная крышка 1,5 дюйма | D44: шт. | E44: 10900 | F44: 13900 | I44: 27.52293578
A45: РУ999890 | B45: Куб Викинг 37 л. купольная крышка 2 дюйма | D45: шт. | E45: 11200 | F45: 14300 | I45: 27.67857143
A46: РУ999891 | B46: Куб Викинг 37 л. купольная крышка 3 дюйма | D46: шт. | E46: 11600 | F46: 14900 | I46: 28.44827586
A47: РУ999892 | B47: Куб Викинг 50 л. купольная крышка 1,5 дюйма | D47: шт. | E47: 11900 | F47: 13900 | I47: 16.80672269
A48: РУ999893 | B48: Куб Викинг 50 л. купольная крышка 2 дюйма | D48: шт. | E48: 12300 | F48: 14800 | I48: 20.32520325
A49: РУ999894 | B49: Куб Викинг 50 л. купольная крышка 3 дюйма | D49: шт. | E49: 13300 | F49: 15900 | I49: 19.54887218
A50: РУ999887 | B50: Перегонный куб Wein 1,5 дюйма, 20 л | D50: шт. | E50: 8300 | F50: 9990 | I50: =(F50-E50)/E50*100 -> 20.36144578
A51: РУ999889 | B51: Перегонный куб Wein 1,5 дюйма, 37 л | D51: шт. | E51: 10080 | F51: 11990 | I51: 18.9484127
A52: РУ999890 | B52: Перегонный куб Wein 2 дюйма, 37 л | D52: шт. | E52: 10980 | F52: 13490 | I52: 22.85974499
A53: РУ999893 | B53: Перегонный куб Wein 2 дюйма, 50 л | D53: шт. | E53: 13450 | F53: 16490 | I53: 22.60223048

Sheet Геликон
A1: Сделай-Дома.ру 88007001323 (Бесплатно) +79642506913 (Звонки и Ватсап) manager@sdelai-doma.ru
B3: Наименование | C3: Фото | E3: Ваша цена | F3: РРЦ | G3: Заказ | H3: Ссылки на описания | I3: Наценка, %
A4: ФИНЛЯНДИЯ ЭКСТРА 2021/ГЕРМАНИЯ 2021
B5: Финляндия Экстра 2021 змеевик, 15 л | D5: шт. | E5: 7800 | F5: 9870 | H5: Описание на сайте | I5: =(F5-E5)/E5*100 -> 26.53846154
A6: 01478 | B6: Финляндия Экстра 2021 змеевик, 22 л | D6: шт. | E6: 8170 | F6: 10500 | I6: =(F6-E6)/E6*100 -> 28.51897185
A7: 00483 | B7: Финляндия Экстра 2021 змеевик, 30 л | D7: шт. | E7: 8490 | F7: 10800 | I7: 27.20848057
A8: 00255 | B8: Германия 2021 трубчатый, 15 л | D8: шт. | E8: 7800 | F8: 9870 | H8: Описание на сайте | I8: 26.53846154
A9: 00258 | B9: Германия 2021 трубчатый, 22 л | D9: шт. | E9: 8170 | F9: 10500 | I9: 28.51897185
A10: 02145 | B10: Германия 2021 трубчатый, 30 л | D10: шт. | E10: 8490 | F10: 10800 | I10: 27.20848057
A11: АВТОКЛАВЫ
A12: 48745 | B12: Автоклав Белорусский NEW с терм., 27л (УБ-18) | D12: шт. | E12: 5490 | F12: 6990 | I12: =(F13-E13)/E13*100 -> 23.11248074
A13: 48711 | B13: Автоклав Белорусский NEW с терм., 33 л. (УБ-24) | D13: шт. | E13: 6490 | F13: 7990 | I13: 23.11248074
A14: 48712 | B14: Автоклав Белорусский NEW с терм., 39 л. (УБ-30) | D14: шт. | E14: 7490 | F14: 8990 | I14: 20.02670227
A15: ДЫМОГЕНЕРАТОРЫ
A16: 01982 | B16: Дымогенератор Merkel New Standart, 1,3 л (в комплекте с компрессором) | D16: шт. | E16: 5510 | F16: 7490 | I16: 35.93466425
A17: 02786 | B17: Дымогенератор Merkel New Optima, 2,5 л (в комплекте с компрессором) | D17: шт. | E17: 6890 | F17: 8990 | I17: 30.47895501
A18: 00081 | B18: Дымогенератор Merkel New Premium, 5 л (в комплекте с 2 компрессорами) | D18: шт. | E18: 9990 | F18: 11990 | I18: 20.02002002
A19: 00087 | B19: Дымогенератор Ворон 10 л | D19: шт. | E19: 6310 | F19: 7990 | I19: 26.62440571
A20: 00143 | B20: Дымогенератор Ворон 20 л | D20: шт. | E20: 8610 | F20: 10450 | I20: 21.37049942
A21: 00333 | B21: Камера для дымогенератора (оцинкованная сталь) | D21: шт. | E21: 2990 | F21: 3990 | I21: 33.44481605 | J21: =(D21*1.025*1.187) ->  | L21: =(E21-J21)/J21*100 -> 
A22: Коптильни BRAVO NEW | J22: =(D22*1.025*1.187) -> 0
B23: Коптильня Bravo New, 10 л | D23: шт. | E23: 5620 | F23: 6990 | I23: 24.3772242 | J23: =(D23*1.025*1.187) -> 
A24: 00138 | B24: Коптильня Bravo New, 20 л | D24: шт. | E24: 6200 | F24: 7990 | I24: 28.87096774 | J24: =(D24*1.025*1.187) -> 
A25: 01953 | B25: Коптильня Bravo New, 30 л | D25: шт. | E25: 7230 | F25: 8990 | I25: 24.34301521
A26: 49072 | B26: Таймер механический магнитный к коптильне | D26: шт. | E26: 890 | F26: 1090 | I26: 22.47191011 | J26: =(D26*1.025*1.187) -> 
A27: Домашние пивоварни БАВАРИЯ
A28: 02956 | B28: Бавария, 30 л | D28: шт. | E28: 40300 | F28: 44900 | H28: Описание на сайте | I28: 11.41439206
A29: 02957 | B29: Бавария, 50 л | D29: шт. | E29: 45000 | F29: 50900 | I29: 13.11111111
A30: 02959 | B30: Бавария, 70 л | D30: шт. | E30: 55500 | F30: 61000 | I30: 9.90990991
B31: Бавария Wi-Fi, 30 л | D31: шт. | E31: 49700 | F31: 54900 | I31: 10.46277666
A32: 02958 | B32: Бавария Wi-Fi, 50 л | D32: шт. | E32: 54500 | F32: 59900 | I32: 9.908256881
B33: Бавария Wi-Fi, 70 л | D33: шт. | E33: 63700 | F33: 69900 | I33: =(F33-E33)/E33*100 -> 9.733124019
B34: Чиллер (подходит для всех моделей Бавария) | D34: шт. | E34: 2300 | F34: 2990 | I34: =(F34-E34)/E34*100 -> 30
A35: Прессы
A36: 48573 | B36: Пресс домкратный для отжима SOK, 6 л | D36: шт. | E36: 6650 | F36: 8990 | I36: =(F36-E36)/E36*100 -> 35.18796992
A37: 00696 | B37: Пресс домкратный для отжима SOK, 10 л | D37: шт. | E37: 7840 | F37: 9990 | I37: 27.42346939
A38: 48574 | B38: Пресс домкратный для отжима SOK, 15 л | D38: шт. | E38: 8790 | F38: 10990 | I38: 25.02844141
B39: Подставка для пресса SOK | D39: шт. | E39: 1690 | F39: 2390 | I39: 41.42011834
B40: Кожух металлический для пресса SOK, 6 л | D40: шт. | E40: 1090 | F40: 1590 | I40: 45.87155963
B41: Кожух металлический для пресса SOK, 10 л | D41: шт. | E41: 1490 | F41: 1890 | I41: 26.84563758
B42: Кожух металлический для пресса SOK, 15 л | D42: шт. | E42: 1690 | F42: 2390 | I42: =(F42-E42)/E42*100 -> 41.42011834
B43: Пресс бутылочный для отжима SOK, 12 л | D43: шт. | E43: 12990 | F43: 15990 | I43: =(F43-E43)/E43*100 -> 23.09468822
B44: Пресс бутылочный для отжима SOK, 23 л | D44: шт. | E44: 14390 | F44: 17990 | I44: 25.01737318
B45: Пресс бутылочный для отжима SOK, 30 л | D45: шт. | E45: 15890 | F45: 19900 | I45: 25.23599748
B46: Кожух для бутылочного пресса SOK, 12 л | D46: шт. | E46: 1190 | F46: 1790 | I46: 50.42016807
B47: Кожух для бутылочного пресса SOK, 23 л | D47: шт. | E47: 1890 | F47: 2900 | I47: 53.43915344
B48: Кожух для бутылочного пресса SOK, 30 л | D48: шт. | E48: 2990 | F48: 3990 | I48: =(F48-E48)/E48*100 -> 33.44481605
A49: Сыроварни
B50: Бергман, 12 л | E50: 9990 | F50: 12990 | H50: Описание на сайте | I50: =(F50-E50)/E50*100 -> 30.03003003
A51: 48760 | B51: Бергман, 20 л | E51: 11790 | F51: 14990 | I51: 27.14164546
B52: Бергман, 30 л | E52: 15300 | F52: 18300 | I52: 19.60784314
A53: 00405 | B53: Бергман, 12 л + ТЭН и автоматика | E53: 16890 | F53: 21990 | I53: 30.19538188
A54: 01893 | B54: Бергман, 20 л + ТЭН и автоматика | E54: 19690 | F54: 23990 | I54: 21.8384967
A55: 00762 | B55: Бергман, 30 л + ТЭН и автоматика | E55: 23990 | F55: 28990 | I55: 20.84201751
B56: Мешалка для сыроварни (каждый третий покупатель сыроварни приобретает этот товар) | E56: 4200 | F56: 5200 | I56: 23.80952381
B57: Пресс для сыроварения (63% покупателей сыроварен приобретают дополнительно пресс) | E57: 2400 | F57: 2990 | I57: 24.58333333
B58: Лира - изделие для резки сырной массы к сыроварне | E58: 2700 | F58: 3490 | I58: 29.25925926
B59: Фальшдно для сыроварни | E59: 2000 | F59: 2450 | I59: 22.5

Sheet Заготовщик
A1: Сделай-Дома.ру 88007001323 (Бесплатно) +79642506913 (Звонки и Ватсап) manager@sdelai-doma.ru
B3: Наименование | C3: Фото | E3: Ваша цена | F3: РРЦ | G3: Заказ | H3: Ссылки на описания | I3: Наценка, %
A4: Бражная колонна Ястреб(Заготовщик)
A5: ЗА0012569 | B5: БРАЖНАЯ КОЛОННА "ЯСТРЕБ" без бака | D5: шт. | E5: 13280 | F5: 16500 | I5: =(F5-E5)/E5*100 -> 24.24698795
A6: ЗА002569 | B6: БРАЖНАЯ КОЛОННА "ЯСТРЕБ" 37 литров | D6: шт. | E6: 27390 | F6: 33500 | H6: Описание на сайте | I6: =(F6-E6)/E6*100 -> 22.30741146
A7: ЗА00125887 | B7: БРАЖНАЯ КОЛОННА "ЯСТРЕБ" 50 литров | D7: шт. | E7: 28600 | F7: 34900 | I7: =(F7-E7)/E7*100 -> 22.02797203
A8: Автоклавы "Заготовщик"
A9: 49059 | B9: АВТОКЛАВ 18 литров (1 фальшдно) | D9: шт. | E9: 14990 | F9: 18490 | I9: =(F9-E9)/E9*100 -> 23.34889927
A10: 49060 | B10: АВТОКЛАВ 26 литров (1 фальшдно) | D10: шт. | E10: 15700 | F10: 19490 | I10: 24.14012739
A11: 49061 | B11: АВТОКЛАВ 35 литров (1 фальшдно) | D11: шт. | E11: 17800 | F11: 21990 | I11: 23.53932584
B12: Замок для крышек (автоклав) | D12: шт.
A13: 49062 | B13: Фальшдно автоклава | D13: шт. | E13: 1125 | F13: 1490 | I13: 32.44444444
A14: ЗА1203 | B14: Фальшдно автоклава с ножками | D14: шт. | E14: 1350 | F14: 1790 | I14: 32.59259259
B15: Прокладка крышки автоклава | D15: шт. | E15: 790 | F15: 1090 | I15: 37.97468354
A16: Прессы и измельчители
A17: 48795 | B17: Гидропресс «Заготовщик» 40л. | D17: шт. | E17: 29900 | F17: 37990 | I17: =(F17-E17)/E17*100 -> 27.05685619
A18: 48794 | B18: Измельчитель овощей и фруктов «Самурай 2.0» | D18: шт. | E18: 37900 | F18: 48490 | I18: =(F18-E18)/E18*100 -> 27.94195251
A19: 00306 | B19: Пресс «Добрыня» для отжима натурального сока, 18 л. | D19: шт. | E19: 18600 | F19: 23500 | I19: =(F19-E19)/E19*100 -> 26.34408602
A20: Коптильни
B21: Коптильня Гестия 25 л. 1 поддон | D21: шт. | E21: 7990 | F21: 10700 | I21: =(F21-E21)/E21*100 -> 33.91739675
B22: Поддон дополнительный к Гестия | D22: шт. | E22: 890 | F22: 1090 | I22: 22.47191011
A23: 00139 | B23: Насадка для курицы | D23: шт. | E23: 590 | F23: 790 | I23: 33.89830508

Sheet Русская дымка
A1: Сделай-Дома.ру 88007001323 (Бесплатно) +79642506913 (Звонки и Ватсап) manager@sdelai-doma.ru
B3: Наименование | C3: Фото | E3: Ваша цена | F3: РРЦ | G3: Заказ | H3: Ссылки на описания | I3: Наценка, %
A4: Автоклавы Русская Дымка
A5: 49063 | B5: Автоклав Wein (Вейн), 23 литра | D5: шт. | E5: 14200 | F5: 18990 | I5: =(F5-E5)/E5*100 -> 33.73239437
A6: 49064 | B6: Автоклав Wein (Вейн), 42 литра | D6: шт. | E6: 17990 | F6: 22990 | I6: 27.79321845
A7: 10235 | B7: Автоклав Беларусь 24 | D7: шт. | E7: 5640 | F7: 6990 | I7: =(F7-E7)/E7*100 -> 23.93617021
A8: 49065 | B8: Автоклав Fansel Mini | D8: шт. | E8: 7900 | F8: 10990 | I8: =(F8-E8)/E8*100 -> 39.11392405
A9: 49066 | B9: Автоклав Fansel 2, 20 л | D9: шт. | E9: 9780 | F9: 13490 | I9: 37.93456033
A10: Копчение
A11: 10269 | B11: Коптильня Ханхи | D11: шт. | E11: 4790 | F11: 5990 | I11: =(F11-E11)/E11*100 -> 25.05219207
A12: 01469 | B12: Коптильный шкаф Ханхи | D12: шт. | E12: 7990 | F12: 9490 | I12: 18.77346683
A13: 02785 | B13: Дымогенератор Ханхи | D13: шт. | E13: 6500 | F13: 7990 | I13: 22.92307692
A14: 00350 | B14: Деревянный коптильный шкаф Hanhi | D14: шт. | E14: 3900 | F14: 4990 | I14: 27.94871795
A15: Аппараты и кубы
A16: 00713 | B16: Колонна Wein ReForm без бака, Комплект | D16: шт. | E16: 7690 | F16: 9490 | I16: =(F16-E16)/E16*100 -> 23.40702211
A17: РУ999887 | B17: Перегонный куб Wein 1,5 дюйма, 20 л | D17: шт. | E17: 8300 | F17: 9990 | I17: 20.36144578
A18: РУ999889 | B18: Перегонный куб Wein 1,5 дюйма, 37 л | D18: шт. | E18: 10080 | F18: 11990 | I18: 18.9484127
A19: РУ999890 | B19: Перегонный куб Wein 2 дюйма, 37 л | D19: шт. | E19: 10980 | F19: 13490 | I19: 22.85974499
A20: РУ999893 | B20: Перегонный куб Wein 2 дюйма, 50 л | D20: шт. | E20: 13450 | F20: 16490 | I20: 22.60223048
B21: Колонна Wein ReForm на 20 л. | D21: шт. | E21: 15400 | F21: 19990 | H21: Описание на сайте | I21: 29.80519481
B22: Колонна Wein ReForm на 37 л. | D22: шт. | E22: 17490 | F22: 21490 | I22: 22.87021155

Sheet Аппараты LUXSTAL
A1: Сделай-Дома.ру 88007001323 (Бесплатно) +79642506913 (Звонки и Ватсап) manager@sdelai-doma.ru
B3: Наименование | C3: Фото | E3: Ваша цена | F3: РРЦ | G3: Заказ | H3: Ссылки на описания | I3: Наценка, %
A4: 00360 | B4: LUXSTAHL 8М 37л - Дистиллятор; - 2 царги = 1 м; - 4,8 кг СПН 3,5х3,5; - Сантехкомплект; | D4: шт. | E4: 36780 | F4: 42500 | H4: Описание на сайте | I4: =(F4-E4)/E4*100 -> 15.5519304
A5: 00217 | B5: Модуль увеличения объёма 20 л с обручем и прокладкой | D5: шт. | E5: 2990 | F5: 3990 | I5: 33.44481605
A6: 48680 | B6: Фальшдно LUXSTAHL | D6: шт. | E6: 1490 | F6: 1990 | I6: 33.55704698
A7: 02910 | B7: ТЭН 3,5 кВт с цифровой регулировкой ± 1 В и стабилизацией | D7: шт. | E7: 6490 | F7: 8490 | I7: 30.81664099
A8: 00289 | B8: "Попугай" на банку с краном для слива | D8: шт. | E8: 1390 | F8: 2390 | I8: 71.94244604

Sheet Пивоварение
A1: Сделай-Дома.ру 88007001323 (Бесплатно) +79642506913 (Звонки и Ватсап) manager@sdelai-doma.ru
B3: Наименование | C3: Фото | E3: Ваша цена | F3: РРЦ | G3: Заказ | H3: Ссылки на описания | I3: Наценка, %
A4: Пивные концентраты СВОЯ КРУЖКА
A5: Серия"ОХМЕЛЕННОЕ"
A6: 10254 | B6: Ячменное классическое охмеленное 2,1 кг на 23л. | D6: шт. | E6: 940 | F6: 1350 | H6: Описание на сайте | I6: =(F6-E6)/E6*100 -> 43.61702128
A7: 10262 | B7: Пшеничное классическое охмеленное 2,1 кг на 23л. | D7: шт. | E7: 960 | F7: 1350 | I7: =(F7-E7)/E7*100 -> 40.625
A8: 10255 | B8: Ржаной ЭЛЬ охмеленный 2,1 кг на 23л. | D8: шт. | E8: 940 | F8: 1350 | I8: 43.61702128
A9: 10256 | B9: Светлый ЭЛЬ охмеленный 2,1 кг на 23л. | D9: шт. | E9: 940 | F9: 1350 | I9: 43.61702128
A10: 10257 | B10: Темный ЭЛЬ охмеленный 2,1 кг на 23л. | D10: шт. | E10: 940 | F10: 1350 | I10: 43.61702128
A11: 10258 | B11: Бархатный ЭЛЬ охмеленный 2,1 кг на 23л. | D11: шт. | E11: 940 | F11: 1350 | I11: 43.61702128
A12: 10263 | B12: Янтарный Биттер 2.1 кг на 23л. | D12: шт. | E12: 940 | F12: 1350 | I12: 43.61702128
A13: 01884 | B13: American Pale Ale 2,1 кг на 23л | D13: шт. | E13: 1140 | F13: 1590 | I13: 39.47368421
A14: 00357 | B14: Кофейный стаут Охмелённый" | D14: шт. | E14: 1060 | F14: 1390 | I14: 31.13207547
A15: 10256 | B15: Венский ЛАГЕР | D15: шт. | E15: 1060 | F15: 1390 | I15: 31.13207547
A16: 01883 | B16: Indian Pale Ale 2,1 кг на 23л | D16: шт. | E16: 1140 | F16: 1590 | I16: 39.47368421
A17: 00599 | B17: Легендарное Пшеничное | D17: шт. | E17: 1060 | F17: 1390 | I17: 31.13207547
A18: 10259 | B18: Жигулевский Лагер охмеленный 2,1 кг на 23л. | D18: шт. | E18: 1060 | F18: 1390 | I18: 31.13207547
B19: Концентрат пивной "WHEAT (ПШЕНИЧНОЕ) 1,6 кг" | D19: шт. | E19: 630 | F19: 890 | I19: 41.26984127 | J19: 850
B20: Концентрат пивной "LAGER (ЛАГЕР) 1,6 кг" | D20: шт. | E20: 630 | F20: 890 | I20: 41.26984127 | J20: 850
B21: Концентрат пивной "ЭЛЬ 1,6 кг" | D21: шт. | E21: 630 | F21: 890 | I21: 41.26984127 | J21: 850
A22: Серия "Импровизация"
A23: 10260 | B23: Ячменное темное ИМПРОВИЗАЦИЯ 2,1 кг на 23л. | D23: шт. | E23: 940 | F23: 1350 | H23: Описание на сайте | I23: 43.61702128
A24: 10261 | B24: Пшеничное классическое ИМПРОВИЗАЦИЯ 2,1 кг на 23л. | D24: шт. | E24: 940 | F24: 1350 | I24: 43.61702128
A25: 02924 | B25: Ячменное классическое ИМПРОВИЗАЦИЯ 2,1 кг на 23л. | D25: шт. | E25: 940 | F25: 1350 | I25: 43.61702128
A26: Серия "Неохмеленка" для добавления в сусло
A27: 10264 | B27: Неохмелённый концентрат для СВЕТЛЫХ сортов, 1кг | D27: шт. | E27: 320 | F27: 490 | H27: Описание на сайте | I27: 53.125
A28: 02923 | B28: Неохмелённый концентрат для ПШЕНИЧНЫХ сортов, 1кг | D28: шт. | E28: 320 | F28: 490 | I28: 53.125
A29: 10265 | B29: Неохмелённый концентрат для ТЁМНЫХ сортов, 1кг | D29: шт. | E29: 320 | F29: 490 | I29: 53.125
A30: Серия "WHISKEY" Готовые наборы для приготовления виски и самогона
A31: 01156 | B31: Солодовый экстракт Своя Кружка WHISKEY Original 4,5 кг | D31: шт. | E31: 1290 | F31: 1590 | H31: Описание на сайте | I31: 23.25581395
A32: 01157 | B32: Солодовый экстракт Своя Кружка ПОЛУГАР Пшеничный 4.5 кг | D32: шт. | E32: 1290 | F32: 1590 | I32: 23.25581395
A33: Пивоварни для приготовления пива из солода
A34: 01975 | B34: Автоматическая пивоварня Easy Brew-40 | D34: шт. | E34: 29600 | F34: 39700 | H34: Описание на сайте | I34: 34.12162162
A35: 02008 | B35: Автоматическая пивоварня Easy Brew-40, с чиллером | E35: 30800 | F35: 41700 | I35: 35.38961039
B36: Автоматическая пивоварня Easy Brew-50 | D36: шт. | E36: 33200 | F36: 45700 | I36: 37.65060241
A37: 01714 | B37: Автоматическая пивоварня Easy Brew-50, с чиллером | D37: шт. | E37: 34400 | F37: 47700 | I37: 38.6627907
B38: Автоматическая пивоварня Easy Brew-70 | E38: 45100 | F38: 60900 | I38: 35.03325942
A39: 02219 | B39: Автоматическая пивоварня Easy Brew-70, с чиллером | D39: шт. | E39: 52200 | F39: 65700 | I39: 25.86206897
A40: 02956 | B40: Бавария, 30 л | D40: шт. | E40: 40300 | F40: 44900 | H40: Описание на сайте | I40: 11.41439206
A41: 02957 | B41: Бавария, 50 л | D41: шт. | E41: 45000 | F41: 50900 | I41: 13.11111111
A42: 02959 | B42: Бавария, 70 л | D42: шт. | E42: 55500 | F42: 61000 | I42: 9.90990991
B43: Бавария Wi-Fi, 30 л | D43: шт. | E43: 49700 | F43: 54900 | I43: 10.46277666
A44: 02958 | B44: Бавария Wi-Fi, 50 л | D44: шт. | E44: 54500 | F44: 59900 | I44: 9.908256881
B45: Бавария Wi-Fi, 70 л | D45: шт. | E45: 63700 | F45: 69900 | I45: 9.733124019
B46: Чиллер (подходит для всех моделей Бавария) | D46: шт. | E46: 2300 | F46: 2990 | I46: 30
A47: 02851 | B47: Мешок для затирки солода, плотность 200. Размер 20х30 см | D47: шт. | E47: 79 | F47: 150 | I47: 89.87341772
A48: 02469 | B48: Мешок для затирки солода, плотность 200. Размер 45х62 см | D48: шт. | E48: 120 | F48: 250 | I48: 108.3333333
A49: 02845 | B49: Чиллер универсальный | D49: шт. | E49: 2100 | F49: 2790 | I49: 32.85714286
A50: Пивные дрожжи
A51: 10279 | B51: Fermentis Safale S-33 (верховое брожение) 11,5 гр | D51: шт. | E51: 170 | F51: 210 | H51: Описание на сайте | I51: 23.52941176
A52: 10278 | B52: Fermentis Safale S-04 (верховое брожение) 11,5 гр | D52: шт. | E52: 170 | F52: 240 | I52: 41.17647059
A53: 02944 | B53: Fermentis Safale s-23 (низовое брожение) 15,5 гр | D53: шт. | E53: 280 | F53: 360 | I53: 28.57142857
A54: 02945 | B54: Fermentis Safale US-05 (верховое брожение) 11,5 гр | D54: шт. | E54: 180 | F54: 235 | I54: 30.55555556
A55: 10280 | B55: Fermentis Safale WB -06 (пшеничные) (верховое брожение) 11,5 | D55: шт. | E55: 220 | F55: 290 | I55: 31.81818182
A56: 01700 | B56: Дрожжи пивные Ale A12 ТМ "Своя Кружка" | D56: шт. | E56: 149 | F56: 275 | H56: Описание на сайте | I56: 84.56375839
A57: 01703 | B57: Дрожжи пивные Lager L36 ТМ "Своя Кружка" | D57: шт. | E57: 158 | F57: 275 | I57: 74.05063291
A58: 01702 | B58: Дрожжи пивные Wheat W43 ТМ "Своя Кружка" | D58: шт. | E58: 138 | F58: 240 | I58: 73.91304348
A59: 01701 | B59: Дрожжи пивные Ale A29 ТМ "Своя Кружка" | D59: шт. | E59: 173 | F59: 300 | I59: 73.41040462
A60: 01699 | B60: Дрожжи пивные Ale A05 ТМ "Своя Кружка" | D60: шт. | E60: 119 | F60: 240 | I60: 101.6806723
A61: 01856 | B61: Дрожжи Beervingem для бельгийского пива "Belgian Ale BVG-06", 10 г | D61: шт. | E61: 190 | F61: 279 | H61: Описание на сайте | I61: 46.84210526
A62: 01854 | B62: Дрожжи Beervingem для охмеленного пива "American Ale BVG-04" | D62: шт. | E62: 190 | F62: 265 | I62: 39.47368421
A63: 01853 | B63: Дрожжи Beervingem для пшеничного пива "Wheat BVG-03" | D63: шт. | E63: 190 | F63: 275 | I63: 44.73684211
A64: 01852 | B64: Дрожжи Beervingem для темного пива "Dark Ale BVG-02" | D64: шт. | E64: 249 | F64: 350 | I64: 40.562249
A65: 01851 | B65: Дрожжи Beervingem пивные универсальные "Universal BVG-01" | D65: шт. | E65: 200 | F65: 270 | I65: 35
A66: 01855 | B66: Дрожжи Beervingem для светлого пива "Lager BVG-05" | D66: шт. | E66: 170 | F66: 260 | I66: 52.94117647
A67: Солод "Курский Солод" Пакеты по 0,5 и 1 кг.
A68: 1528 | B68: Солод ячменный Pale Ale (зерно) (Фасовка 1 кг) | D68: шт. | E68: 95 | F68: 115 | H68: Описание на сайте | I68: 21.05263158
A69: 1532 | B69: Солод ячменный светлый Pilsner (зерно) (Фасовка 1 кг) | D69: шт. | E69: 95 | F69: 110 | I69: =(F69-E69)/E69*100 -> 15.78947368
A70: 1530 | B70: Солод ячменный Венский (зерно) (Фасовка 1 кг) | D70: шт. | E70: 95 | F70: 115 | I70: 21.05263158
A71: 02934 | B71: Солод Пшеничный(зерно) (Фасовка 1 кг) | D71: шт. | E71: 95 | F71: 115 | I71: 21.05263158
A72: 1536 | B72: Солод карамельный 150(зерно) (фасовка 0,5 кг) | D72: шт. | E72: 105 | F72: 125 | I72: 19.04761905
A73: 02423 | B73: Пшеница, продовольственная, не соложенная (зерно) (фасовка 1 кг) | D73: шт. | E73: 110 | F73: 140 | I73: 27.27272727
A74: Солод "Курский Солод" Мешки по 5 кг.
A75: 00336 | B75: Солод ячменный Pale Ale (зерно) фасовка 5кг мешок | D75: шт. | E75: 475 | F75: 570 | H75: Описание на сайте | I75: =(F75-E75)/E75*100 -> 20
A76: 00337 | B76: Солод ячменный светлый Pilsner(зерно) 5кг | D76: шт. | E76: 475 | F76: 550 | I76: 15.78947368
A77: 00338 | B77: Солод ячменный Венский (зерно) 5кг | D77: шт. | E77: 475 | F77: 570 | I77: 20
A78: 00335 | B78: Солод Пшеничный(зерно) 5кг | D78: шт. | E78: 475 | F78: 570 | I78: 20
A79: 00334 | B79: Кукуруза продовольственная, на пищевые цели, дробленая Фасовка 5 кг | D79: шт. | E79: 550 | F79: 790 | I79: 43.63636364
A80: 00053 | B80: Пшеница, продовольственная, не соложенная (зерно) (фасовка 5 кг) | D80: шт. | E80: 550 | F80: 700 | I80: 27.27272727
A81: Хмель
A82: 10282 | B82: Хмель гранулированный Подвязный (Россия, Арома, Альфа 2.5%), 50гр | D82: шт. | E82: 69 | F82: 109 | H82: Описание на сайте | I82: 57.97101449
A83: 10281 | B83: Хмель гранулированный Истринский (Россия, Арома, Альфа 4.6-5.1%), 50гр | D83: шт. | E83: 69 | F83: 109 | I83: 57.97101449
A84: 10283 | B84: Хмель гранулированный Ранний Московский 50 гр | D84: шт. | E84: 69 | F84: 109 | I84: 57.97101449
A85: 02393 | B85: Хмель CASCADE (20гр) | D85: шт. | E85: 75 | F85: 115 | I85: 53.33333333
A86: 02409 | B86: Хмель COLUMBUS (20гр) | D86: шт. | E86: 75 | F86: 130 | I86: 73.33333333
A87: 02413 | B87: Хмель TRADITION (20гр) | D87: шт. | E87: 66 | F87: 110 | I87: 66.66666667
A88: 02408 | B88: Хмель SAAZ (20гр) | D88: шт. | E88: 95 | F88: 160 | I88: 68.42105263
A89: 02407 | B89: Хмель PERLE (20гр) | D89: шт. | E89: 60 | F89: 110 | I89: 83.33333333
A90: 02404 | B90: Хмель MAGNUM (20гр) | D90: шт. | E90: 66 | F90: 115 | I90: 74.24242424
A91: Доп товары
A92: 10168 | B92: Глюкоза в фасовке 1 кг. | D92: шт. | E92: 119 | F92: 170 | I92: =(F92-E92)/E92*100 -> 42.85714286
B93: Глюкоза в мешке 25 кг. | D93: шт. | E93: 2790 | F93: 3890 | I93: 39.4265233
A94: 02848 | B94: Мешочек для варки хмеля 18х15 см | D94: шт. | E94: 79 | F94: 179 | I94: 126.5822785
A95: 02851 | B95: Мешок для затирки солода, плотность 200. Размер 20х30 см | D95: шт. | E95: 79 | F95: 150 | I95: 89.87341772
A96: 02469 | B96: Мешок для затирки солода, плотность 200. Размер 45х62 см | D96: шт. | E96: 120 | F96: 250 | I96: 108.3333333
A97: 10246 | B97: Домашняя пивоварня Новичок 32л (без солодового концентрата) | D97: шт. | E97: 1690 | F97: 3490 | I97: =(F97-785-E97)/E97*100 -> 60.0591716
A98: 03803 | B98: Домашняя пивоварня Оптима 32л (без солодового концентрата) | D98: шт. | E98: 2090 | F98: 3990 | I98: =(F98-785-E98)/E98*100 -> 53.3492823
A99: 10338 | B99: Кран для емкостей с дрожжеуловителем(10мм) | D99: шт. | E99: 55 | F99: 150 | I99: 172.7272727
A100: 01877 | B100: Кран для бродильных емкостей с установочным диаметром 21 мм | D100: шт. | E100: 146 | F100: 185 | I100: 26.71232877
A101: 01958 | B101: Мельница для солода двух вальцовая с бункером | D101: шт. | E101: 6200 | F101: 7400 | I101: 19.35483871
A102: 10287 | B102: Мельница для солода CORONA как мясорубка | D102: шт. | E102: 2200 | F102: 2900 | I102: 31.81818182
A103: 00584 | B103: Осветлитель Ирландский мох Beervingem Банка , 30 гр | D103: шт. | E103: 169 | F103: 250 | I103: 47.92899408
A104: 00240 | B104: Осветлитель для пива и вина Beervingem, 30 г | D104: шт. | E104: 59 | F104: 90 | I104: 52.54237288
A105: Пробки, укупорки, воронки
A106: 10286 | B106: Укупорка кроненпробок Emily | D106: шт. | E106: 1290 | F106: 2190 | I106: =(F106-E106)/E106*100 -> 69.76744186
A107: 10288 | B107: Укупорка кроненпробок Hammer | D107: шт. | E107: 550 | F107: 690 | I107: 25.45454545
A108: 48606 | B108: Кронен-пробки для стеклянных бутылок (белые) Упаковка 100 шт | D108: шт. | E108: 149 | F108: 290 | I108: 94.63087248
A109: 48605 | B109: Кронен-пробки для стеклянных бутылок (черные) Упаковка 100 шт | D109: шт. | E109: 169 | F109: 349 | I109: 106.5088757
A110: 48604 | B110: Кронен-пробки для стеклянных бутылок (золотистые) Упаковка 100 шт | D110: шт. | E110: 149 | F110: 290 | I110: 94.63087248
A111: 00578 | B111: Кронен-пробки для стеклянных бутылок (зеленые) Упаковка 100 шт | D111: шт. | E111: 169 | F111: 349 | I111: 106.5088757
A112: 00580 | B112: Кронен-пробки для стеклянных бутылок (синие) Упаковка 100 шт | D112: шт. | E112: 169 | F112: 349 | I112: 106.5088757
A113: 00579 | B113: Кронен-пробки для стеклянных бутылок (красные) Упаковка 100 шт | D113: шт. | E113: 169 | F113: 349 | I113: 106.5088757
A114: 10289 | B114: Трубка наливная с клапаном | D114: шт. | E114: 210 | F114: 330 | I114: 57.14285714
A115: 03091 | B115: Таблетки для дизинфекции Неотабс (Пакет -2шт) | D115: шт. | E115: 20 | F115: 30 | I115: 50
A116: 03101 | B116: Сифон с помпой для перекачки браги и пива | D116: шт. | E116: 150 | F116: 260 | I116: 73.33333333
A117: 00348 | B117: Ложка пластиковая для сусла 62см | D117: шт. | E117: 230 | F117: 290 | I117: 26.08695652
A118: 02778 | B118: Воронка Ø11 см, нерж. 304 | D118: шт. | E118: 240 | F118: 380 | I118: 58.33333333
A119: 00346 | B119: Воронка Ø13 см, нерж. 304 | D119: шт. | E119: 290 | F119: 390 | I119: 34.48275862
A120: 00251 | B120: Воронка с фильтром Ø 15 см, нерж. 304 | D120: шт. | E120: 290 | F120: 430 | I120: 48.27586207
A121: 00083 | B121: Фильтр Базука 15 см | D121: шт. | E121: 470 | F121: 680 | H121: Описание на сайте | I121: 44.68085106
A122: 00082 | B122: Фильтр Базука 30 см | D122: шт. | E122: 530 | F122: 780 | I122: 47.16981132
A123: 02843 | B123: Устройство для закручивания ПЭТ бутылок | D123: шт. | E123: 77 | F123: 160 | I123: 107.7922078
A124: Солодовые концентраты кваса, пива и виски
A125: 10276 | B125: Концентрат ячменно-солодовый (виски) (банка 0,68 кг ) | D125: шт. | E125: 173 | F125: 260 | I125: 50.28901734
A126: 10308 | B126: Концентрат пивного сусла охмеленный (банка 0,68 кг) | D126: шт. | E126: 179 | F126: 280 | I126: 56.42458101
A127: 00764 | B127: Солодовый концентрат пивного сусла "ЛАГЕР" Канистра 5,5 кг, светлое | D127: шт. | E127: 1190 | F127: 1950 | I127: =(F127-E127)/E127*100 -> 63.86554622
A128: 00765 | B128: Солодовый концентрат пивного сусла "ПОРТЕР" Канистра 5,5 кг, темное | D128: шт. | E128: 1190 | F128: 1950 | I128: =(F128-E128)/E128*100 -> 63.86554622
A129: 00766 | B129: Солодовый концентрат "ВИСКИ" 5 кг. | D129: шт. | E129: 1160 | F129: 1900 | I129: 63.79310345

Sheet Вкусоароматика
A1: Сделай-Дома.ру 88007001323 (Бесплатно) +79642506913 (Звонки и Ватсап) opt@sdelai-doma.ru
B3: Наименование | C3: Фото | E3: Ваша цена | F3: РРЦ | G3: Заказ | H3: Ссылки на описания | I3: Наценка, %
A4: Эссенция для улучшения вкуса ALCOSTAR
A5: 02478 | B5: Absinthe (Абсент) | D5: шт | E5: 133 | F5: 219 | H5: Описание на сайте | I5: =(F5-E5)/E5*100 -> 64.66165414
A6: 02264 | B6: Armagnac (Армянский коньяк) | D6: шт | E6: 133 | F6: 219 | I6: 64.66165414
A7: 02374 | B7: XO brandy (Бренди ХО) | D7: шт | E7: 133 | F7: 219 | I7: 64.66165414
A8: 02248 | B8: Amaretto (Ликер Аммарето) | D8: шт | E8: 133 | F8: 219 | I8: 64.66165414
A9: 02364 | B9: Vodka Platinum (Водка Платиновая) | D9: шт | E9: 133 | F9: 219 | I9: 64.66165414
A10: 02259 | B10: Black Currant (Черная смородина) | D10: шт | E10: 133 | F10: 219 | I10: 64.66165414
A11: 02486 | B11: Blue Curacao ( Апельсиновый ликер) | D11: шт | E11: 133 | F11: 219 | I11: 64.66165414
A12: 02367 | B12: Brandy Peach (Персиковый бренди) | D12: шт | E12: 133 | F12: 219 | I12: 64.66165414
A13: 02254 | B13: Brandy (Бренди) | D13: шт | E13: 133 | F13: 219 | I13: 64.66165414
A14: 02492 | B14: Cherry (Вишня) | D14: шт | E14: 133 | F14: 219 | I14: 64.66165414
A15: 02252 | B15: Cherry Brandy (Вишневый бренди) | D15: шт | E15: 133 | F15: 219 | I15: 64.66165414
A16: 02255 | B16: Cognac (Коньяк) | D16: шт | E16: 133 | F16: 219 | I16: 64.66165414
A17: 02482 | B17: Mint Liquor ( Мятный ликер) | D17: шт | E17: 133 | F17: 219 | I17: 64.66165414
A18: 02369 | B18: Jagermeister (Егермейстер) | D18: шт | E18: 133 | F18: 219 | I18: 64.66165414
A19: 02360 | B19: Pepper Vodka (Перцовая водка) | D19: шт | E19: 133 | F19: 219 | I19: 64.66165414
A20: 02483 | B20: Coffe Spice Liquor (Кофейный ликер) | D20: шт | E20: 133 | F20: 219 | I20: 64.66165414
A21: 02481 | B21: Cranberry Vodka (Клюквенная водка) | D21: шт | E21: 133 | F21: 219 | H21: Описание на сайте | I21: 64.66165414
A22: 02362 | B22: Grapefruit (Грейфрут) | D22: шт | E22: 133 | F22: 219 | I22: 64.66165414
A23: 02373 | B23: Spiced Rum (Ром со специями) | D23: шт | E23: 133 | F23: 219 | I23: 64.66165414
A24: 02366 | B24: Strawberry (Клубника) | D24: шт | E24: 133 | F24: 219 | I24: 64.66165414
A25: 02365 | B25: Cherry Gin (Вишневый джин) | D25: шт | E25: 133 | F25: 219 | I25: 64.66165414
A26: 02263 | B26: Coconut Rum (Кокосовый ром) | D26: шт | E26: 133 | F26: 219 | I26: 64.66165414
A27: 02257 | B27: Green Apple (Зеленое яблоко) | D27: шт | E27: 133 | F27: 219 | I27: 64.66165414
A28: 02480 | B28: Irish Cream (Ирландский крем ликер) | D28: шт | E28: 133 | F28: 219 | I28: 64.66165414
A29: 02250 | B29: Irish Whiskey (Ирландский виски) | D29: шт | E29: 133 | F29: 219 | I29: 64.66165414
A30: 02253 | B30: Lemoncello ( Лимонный ликер) | D30: шт | E30: 133 | F30: 219 | I30: 64.66165414
A31: 00487 | B31: London Dry Gin (Лондонский сухой джин) | D31: шт | E31: 133 | F31: 219 | I31: 64.66165414
A32: 02261 | B32: Orange (Апельсин) | D32: шт | E32: 133 | F32: 219 | I32: 64.66165414
A33: 02260 | B33: Pineapple (Ананас) | D33: шт | E33: 133 | F33: 219 | I33: 64.66165414
A34: 00013 | B34: Sambuca (Самбука) | D34: шт | E34: 133 | F34: 219 | I34: 64.66165414
A35: 02251 | B35: Scotch Whiskey (Скотч Виски) | D35: шт | E35: 133 | F35: 219 | I35: 64.66165414
A36: 02371 | B36: Schnaps Pear Apple (Ябл.-груш. коньяк) | D36: шт | E36: 133 | F36: 219 | H36: Описание на сайте | I36: 64.66165414
A37: 02368 | B37: Pomegrante liquor (Гранатовый ликер) | D37: шт | E37: 133 | F37: 219 | I37: 64.66165414
A38: 00014 | B38: Pear (Груша) | D38: шт | E38: 133 | F38: 219 | I38: 64.66165414
A39: 00015 | B39: Fruit mix (Фруктовый микс) | D39: шт | E39: 133 | F39: 219 | I39: 64.66165414
A40: 02370 | B40: Aquavita (Аквавита) | D40: шт | E40: 133 | F40: 219 | I40: 64.66165414
A41: 02592 | B41: On the beach ( Коктейль на пляже) | D41: шт | E41: 133 | F41: 219 | I41: 64.66165414
A42: 02247 | B42: Aperol (Апероль) | D42: шт | E42: 133 | F42: 219 | I42: 64.66165414
A43: 02485 | B43: Slivovice (Сливововый бренди) | D43: шт | E43: 133 | F43: 219 | I43: 64.66165414
A44: 02262 | B44: Martini (Мартини) | D44: шт | E44: 133 | F44: 219 | I44: 64.66165414
A45: 02258 | B45: Tequila (Текила) | D45: шт | E45: 133 | F45: 219 | I45: 64.66165414
A46: 02479 | B46: Cuba Rum ( Кубинский ром) | D46: шт | E46: 133 | F46: 219 | I46: 64.66165414
A47: 02249 | B47: Calvados (Кальвадос) | D47: шт | E47: 133 | F47: 219 | I47: 64.66165414
A48: 02361 | B48: Grappa (Граппа) | D48: шт | E48: 133 | F48: 219 | I48: 64.66165414
A49: 02256 | B49: Georgian Chacha (Грузинская чача) | D49: шт | E49: 133 | F49: 219 | I49: =(F49-E49)/E49*100 -> 64.66165414
A50: Словенские добавки на 10 л. ETOL
A51: 00786 | B51: Абсент | D51: шт. | E51: 49 | F51: 89 | H51: Описание на сайте | I51: =(F51-E51)/E51*100 -> 81.63265306
A52: 00817 | B52: Амаретто на пробу | D52: шт. | E52: 49 | F52: 89 | I52: 81.63265306
A53: 00787 | B53: Бонификатор на пробу | D53: шт. | E53: 49 | F53: 89 | I53: 81.63265306
A54: 00788 | B54: Виски на пробу | D54: шт. | E54: 49 | F54: 89 | I54: 81.63265306
A55: 00798 | B55: Водка клюквенная | D55: шт. | E55: 49 | F55: 89 | I55: 81.63265306
A56: 00799 | B56: Водка черничная | D56: шт. | E56: 49 | F56: 89 | I56: 81.63265306
A57: 00800 | B57: Водка Черносмородиновая | D57: шт. | E57: 49 | F57: 89 | I57: 81.63265306
A58: 00801 | B58: Водка Хлебная | D58: шт. | E58: 49 | F58: 89 | I58: 81.63265306
A59: 00789 | B59: Граппа | D59: шт. | E59: 49 | F59: 89 | I59: 81.63265306
A60: 00790 | B60: Джин на пробу | D60: шт. | E60: 49 | F60: 89 | I60: 81.63265306
A61: 00802 | B61: Коньяк Шоколадный | D61: шт. | E61: 49 | F61: 89 | H61: Описание на сайте | I61: 81.63265306
A62: 00803 | B62: Коньяк на пробу | D62: шт. | E62: 49 | F62: 89 | I62: 81.63265306
A63: 00804 | B63: Коньяк Ореховый | D63: шт. | E63: 49 | F63: 89 | I63: 81.63265306
A64: 00805 | B64: Коньяк Кофейный | D64: шт. | E64: 49 | F64: 89 | I64: 81.63265306
A65: 00806 | B65: Коньяк Миндальный | D65: шт. | E65: 49 | F65: 89 | I65: 81.63265306
A66: 00807 | B66: Чернослив на коньяке | D66: шт. | E66: 49 | F66: 89 | I66: 81.63265306
A67: 00808 | B67: Рябина на коньяке | D67: шт. | E67: 49 | F67: 89 | I67: 81.63265306
A68: 00809 | B68: Вишня на коньяке | D68: шт. | E68: 49 | F68: 89 | I68: 81.63265306
A69: 00810 | B69: Ликер Калуа (Кофейный) | D69: шт. | E69: 49 | F69: 89 | I69: 81.63265306
A70: 00811 | B70: Ликер Блю Кюрасао (апельсиновый) | D70: шт. | E70: 49 | F70: 89 | I70: 81.63265306
A71: 00812 | B71: Ликер Черри-Бренди (Вишневый) | D71: шт. | E71: 49 | F71: 89 | I71: 81.63265306
A72: 00814 | B72: Ликер Лимончелло (лимонный) | D72: шт. | E72: 49 | F72: 89 | I72: 81.63265306
A73: 00816 | B73: Ликер Бейлис (сливовый) | D73: шт. | E73: 49 | F73: 89 | H73: Описание на сайте | I73: 81.63265306
A74: 00792 | B74: Ром на пробу | D74: шт. | E74: 49 | F74: 89 | I74: 81.63265306
A75: 00793 | B75: Текила на пробу | D75: шт. | E75: 49 | F75: 89 | I75: 81.63265306
A76: 00785 | B76: Кальвадос на пробу | D76: шт. | E76: 49 | F76: 89 | I76: 81.63265306
A77: 00818 | B77: Бехеровка на пробу | D77: шт. | E77: 49 | F77: 89 | I77: 81.63265306
A78: 00784 | B78: Чача (изабелла) на пробу | D78: шт. | E78: 49 | F78: 89 | I78: 81.63265306
A79: 00822 | B79: Груша | D79: шт. | E79: 49 | F79: 89 | I79: 81.63265306
A80: 00823 | B80: Дыня | D80: шт. | E80: 49 | F80: 89 | I80: 81.63265306
A81: 00825 | B81: Лайм | D81: шт. | E81: 49 | F81: 89 | I81: 81.63265306
A82: 01840 | B82: Клюква на коньяке | D82: шт. | E82: 49 | F82: 89 | I82: 81.63265306
A83: 01865 | B83: Брусника на коньяке | D83: шт. | E83: 49 | F83: 89 | H83: Описание на сайте | I83: 81.63265306
A84: 02092 | B84: Коньяк армянский | D84: шт. | E84: 49 | F84: 89 | I84: 81.63265306
A85: 00827 | B85: Вишня с косточкой | D85: шт. | E85: 49 | F85: 89 | I85: 81.63265306
A86: 01693 | B86: Коньяк фисташковый | D86: шт. | E86: 49 | F86: 89 | I86: 81.63265306
A87: 00830 | B87: Лимон | D87: шт. | E87: 49 | F87: 89 | I87: 81.63265306
A88: 00831 | B88: Яблоко | D88: шт. | E88: 49 | F88: 89 | I88: 81.63265306
A89: 01922 | B89: Изабелла | D89: шт. | E89: 49 | F89: 89 | I89: 81.63265306
A90: 02094 | B90: Барбарис | D90: шт. | E90: 49 | F90: 89 | I90: 81.63265306
A91: 02809 | B91: Колер карамельный 50гр. | D91: шт. | E91: 100 | F91: 190 | I91: =(F91-E91)/E91*100 -> 90
A92: 02810 | B92: Колер карамельный 100гр. | D92: шт. | E92: 200 | F92: 340 | I92: 70
A93: Бонификаторы Для улучшения качества Алкоголя
A94: 00903 | B94: Углеводный комплекс Алко-Премиум, 150 гр. | D94: шт. | E94: 470 | F94: 650 | H94: Описание на сайте | I94: =(F94-E94)/E94*100 -> 38.29787234
A95: 10136 | B95: Углеводный комплекс Алко-Премиум, 60 гр. | D95: шт. | E95: 310 | F95: 440 | I95: 41.93548387
A96: 02035 | B96: Бонификатор Янталак ГФ 150 гр. | D96: шт. | E96: 470 | F96: 650 | I96: 38.29787234
A97: 10137 | B97: Бонификатор Янталак ГФ 60 гр. | D97: шт. | E97: 310 | F97: 440 | I97: 41.93548387
A98: 02633 | B98: Углеводный комплекс Виктория, 150 гр. | D98: шт. | E98: 470 | F98: 650 | I98: 38.29787234
A99: 10135 | B99: Углеводный комплекс Виктория, 60 гр. | D99: шт. | E99: 310 | F99: 440 | I99: 41.93548387
A100: 10138 | B100: Бонификатор Виталайт 60 гр. | D100: шт. | E100: 310 | F100: 440 | I100: 41.93548387
A101: 10139 | B101: Бонификатор Хлебный дар 60 гр. | D101: шт. | E101: 310 | F101: 440 | I101: 41.93548387
A102: 02632 | B102: Бонификатор Алковит 60 г | D102: шт. | E102: 310 | F102: 440 | I102: 41.93548387

Sheet Базы для напитков (hidden)
A4: Меласса тростниковая (для приготовления рома)
B5: Меласса тростниковая 4кг(канистра) | D5: шт | E5: 650 | F5: 650 | G5: 1090 | J5: =(G5-F5)/F5*100 -> 67.69230769
B6: Меласса тростниковая канистра 7кг | D6: шт | E6: 1350 | F6: 1350 | G6: 1990 | J6: 47.40740741

Sheet Ингредиенты для браги
A1: Сделай-Дома.ру 88007001323 (Бесплатно) +79642506913 (Звонки и Ватсап) manager@sdelai-doma.ru
B3: Наименование | C3: Фото | E3: Ваша цена | F3: РРЦ | G3: Заказ | H3: Ссылки на описания | I3: Наценка, %
A4: Глюкоза
A5: 10168 | B5: Глюкоза в фасовке 1 кг. Россия (Декстрозы моногидрат) | D5: шт. | E5: 119 | F5: 159 | I5: =(F5-E5)/E5*100 -> 33.61344538
B6: Глюкоза в мешке 25 кг.Россия (Декстрозы моногидрат) | D6: шт. | E6: 2890 | F6: 3790 | I6: 31.14186851
A7: Концентрированные соки
A8: 02661 | B8: БЕЛЫЙ ВИНОГРАД СОК(1 кг) | D8: шт. | E8: 250 | F8: 360 | H8: Описание на сайте | I8: =(F8-E8)/E8*100 -> 44
A9: 02662 | B9: КРАСНЫЙ ВИНОГРАД СОК(1 кг) | D9: шт. | E9: 339 | F9: 420 | I9: 23.89380531
A10: 02663 | B10: ГРУША СОК ( 1кг) | D10: шт. | E10: 269 | F10: 360 | I10: 33.82899628
A11: 02664 | B11: ЯБЛОКО СОК ( 1кг) | D11: шт. | E11: 269 | F11: 360 | I11: 33.82899628
A12: 00054 | B12: ВИШНЯ Сок концентрированный бутылка 1 кг | D12: шт. | E12: 399 | F12: 520 | I12: 30.32581454
A13: 00055 | B13: КЛЮКВА Сок концентрированный бутылка 1 кг | D13: шт. | E13: 490 | F13: 650 | I13: 32.65306122
A14: 00057 | B14: БРУСНИКА Сок концентрированный бутылка 1 кг | D14: шт. | E14: 472 | F14: 620 | I14: 31.3559322
A15: 00462 | B15: СМОРОДИНА Сок концентрированный бутылка 1 кг | D15: шт. | E15: 420 | F15: 520 | I15: 23.80952381
A16: 00007 | B16: ЯБЛОКО СОК ( 5 кг) | D16: шт. | E16: 990 | F16: 1290 | I16: 30.3030303
A17: 00010 | B17: БЕЛЫЙ ВИНОГРАД СОК (5 кг) | D17: шт. | E17: 947 | F17: 1290 | I17: 36.21964097
A18: 00008 | B18: КРАСНЫЙ ВИНОГРАД СОК (5 кг) | D18: шт. | E18: 1250 | F18: 1550 | I18: 24
A19: 00009 | B19: ГРУША СОК (5 кг) | D19: шт. | E19: 1040 | F19: 1290 | I19: 24.03846154
A20: 00061 | B20: ВИШНЯ СОК (5 кг) | D20: шт. | E20: 1490 | F20: 1890 | I20: 26.84563758
A21: Меласса
A22: 01218 | B22: Меласса(Вьетнам) канистра 4 кг. | D22: шт. | E22: 850 | F22: 1190 | I22: =(F22-E22)/E22*100 -> 40
A23: Солодовые концентраты кваса, пива и виски
A24: 10276 | B24: Концентрат ячменно-солодовый (виски) (банка 0,68 кг ) | D24: шт. | E24: 173 | F24: 260 | I24: =(F24-E24)/E24*100 -> 50.28901734
A25: 10308 | B25: Концентрат пивного сусла охмеленный (банка 0,68 кг) | D25: шт. | E25: 179 | F25: 280 | I25: 56.42458101
A26: 00764 | B26: Солодовый концентрат пивного сусла "ЛАГЕР" Канистра 5,5 кг, светлое | D26: шт. | E26: 1190 | F26: 1950 | I26: 63.86554622
A27: 00765 | B27: Солодовый концентрат пивного сусла "ПОРТЕР" Канистра 5,5 кг, темное | D27: шт. | E27: 1190 | F27: 1950 | I27: 63.86554622
A28: 00766 | B28: Солодовый концентрат "ВИСКИ" 5 кг. | D28: шт. | E28: 1160 | F28: 1900 | I28: 63.79310345
A29: Серия "WHISKEY" Готовые наборы для приготовления виски и самогона
A30: 01156 | B30: Солодовый экстракт Своя Кружка WHISKEY Original 4,5 кг | D30: шт. | E30: 1290 | F30: 1590 | H30: Описание на сайте | I30: =(F30-E30)/E30*100 -> 23.25581395
A31: 01157 | B31: Солодовый экстракт Своя Кружка ПОЛУГАР Пшеничный 4.5 кг | D31: шт. | E31: 1290 | F31: 1590 | I31: 23.25581395

Sheet Дрожжи
A1: Сделай-Дома.ру 88007001323 (Бесплатно) +79642506913 (Звонки и Ватсап) manager@sdelai-doma.ru
B3: Наименование | C3: Фото | E3: Ваша цена | F3: РРЦ | G3: Заказ | H3: Ссылки на описания | I3: Наценка, %
A4: Спиртовые дрожжи Эконом Сегмент
A5: 15440 | B5: Дрожжи Хмельные 100 гр (Турция) | D5: шт. | E5: 50 | F5: 65 | I5: =(F5-E5)/E5*100 -> 30
A6: 15460 | B6: Дрожжи Хмельные Active 100 гр (Турция) | D6: шт. | E6: 77 | F6: 110 | I6: =(F6-E6)/E6*100 -> 42.85714286
A7: 15450 | B7: Дрожжи Хмельные Gold 100 гр (Турция) | D7: шт. | E7: 87 | F7: 130 | I7: =(F7-E7)/E7*100 -> 49.42528736
A8: 02124 | B8: Дрожжи "Самогон" сухие для изготовления напитков 100 г | D8: шт. | E8: 53 | F8: 75 | I8: 41.50943396
A9: 02126 | B9: Дрожжи Самогон Gold сухие для изготовления напитков 100 г | D9: шт. | E9: 87 | F9: 130 | I9: 49.42528736
A10: 02125 | B10: Дрожжи Самогон Active сухие для изготовления напитков 100 г | D10: шт. | E10: 77 | F10: 110 | I10: 42.85714286
A11: 01565 | B11: Дрожжи быстродействующие сухие «Хмельной Эксперт» 100 гр. | D11: шт. | E11: 49 | F11: 69 | I11: 40.81632653
A12: 00400 | B12: Дрожжи «Правильные дрожжи «Домашний Эксперт»100 гр. | D12: шт. | E12: 59 | F12: 76 | I12: 28.81355932
A13: 00401 | B13: Дрожжи «Хмельной Эксперт» ПРЕМИУМ 100 гр | D13: шт. | E13: 93 | F13: 115 | I13: 23.65591398
A14: 00402 | B14: Дрожжи «Хмельной Эксперт» ТУРБО 48 130 гр. | D14: шт. | E14: 146 | F14: 189 | I14: 29.45205479
A15: 15470 | B15: Дрожжи Хмельные Красноярские 100 гр | D15: шт. | E15: 49 | F15: 69 | I15: 40.81632653
A16: 15473 | B16: Красноярские хмельные турбо | E16: 115 | F16: 159 | I16: 38.26086957
A17: 10195 | B17: Дрожжи Бекмая | D17: шт. | E17: 49 | F17: 75 | I17: 53.06122449
A18: 4060 | B18: Дрожжи Pakmaya Cristal 100 гр (Турция) | D18: шт. | E18: 64 | F18: 89 | I18: 39.0625
A19: 10197 | B19: Спиртовые дрожжи 100гр на 40л (Беларусь) | D19: шт. | E19: 95 | F19: 130 | I19: 36.84210526
A20: 15410 | B20: Спиртовые дрожжи 200гр на 100л (Беларусь) | D20: шт. | E20: 170 | F20: 245 | I20: 44.11764706
A21: 15420 | B21: Спиртовые дрожжи 500гр на 200л (Беларусь) | D21: шт. | E21: 390 | F21: 530 | I21: 35.8974359
A22: Турбо дрожжи
A23: 16030 | B23: Турбо дрожжи Double Snake C48 130гр (Великобритания) | D23: шт. | E23: 205 | F23: 260 | I23: =(F23-E23)/E23*100 -> 26.82926829
A24: 10200 | B24: Турбо дрожжи Double Snake C24 175гр (Великобритания) | D24: шт. | E24: 279 | F24: 360 | I24: 29.03225806
A25: 10202 | B25: Турбо дрожжи Double Snake Fruit Turbo 50 гр (Великобритания) | D25: шт. | E25: 228 | F25: 290 | I25: 27.19298246
A26: 01949 | B26: Турбо дрожжи Double Dragon D48 Turbo 132 г(Великобритания) | D26: шт. | E26: 220 | F26: 290 | I26: 31.81818182
A27: 10203 | B27: Турбо дрожжи Double Snake Whisky 70гр (Великобритания) | D27: шт. | E27: 235 | F27: 320 | I27: 36.17021277
A28: 16580 | B28: Турбо дрожжи Double Snake C3 90гр (Великобритания) | D28: шт. | E28: 192 | F28: 240 | I28: 25
A29: 10206 | B29: Турбо дрожжи Double Snake Rum 70гр (Великобритания) | D29: шт. | E29: 197 | F29: 255 | I29: 29.44162437
A30: 16750 | B30: Турбо дрожжи Puriferm UK-XXL на 100 литров браги | D30: шт. | E30: 390 | F30: 490 | I30: 25.64102564
A31: 36470 | B31: Турбо дрожжи Puriferm Москва 140 гр | D31: шт. | E31: 205 | F31: 255 | I31: 24.3902439
A32: 16660 | B32: Турбо дрожжи Alcotec Т3 120гр (Великобритания) | D32: шт. | E32: 170 | F32: 235 | I32: =(F32-E32)/E32*100 -> 38.23529412
A33: 16840 | B33: Турбо дрожжи Alсoteс Mega Pack на 100 литров 360гр | D33: шт. | E33: 500 | F33: 590 | I33: 18
A34: 16860 | B34: Дрожжи Alcotec 48 YEAST | D34: шт. | E34: 205 | F34: 270 | I34: 31.70731707
A35: 16950 | B35: Спиртовые дрожжи ALCOTEC 24 | D35: шт. | E35: 289 | F35: 390 | I35: 34.94809689
A36: 48612 | B36: Спиртовые турбо дрожжи Double Distill T48 130гр | D36: шт. | E36: 185 | F36: 280 | I36: 51.35135135
A37: 48590 | B37: Спиртовые турбо дрожжи Double Distill T24 175гр | D37: шт. | E37: 200 | F37: 300 | I37: 50
A38: 48591 | B38: Спиртовые турбо дрожжи Double Distill Vodka 66гр | D38: шт. | E38: 165 | F38: 230 | I38: 39.39393939
A39: 48713 | B39: Спиртовые турбо дрожжи Double Distill Whiskey 70гр | D39: шт. | E39: 190 | F39: 260 | I39: 36.84210526
A40: 48592 | B40: Спиртовые турбо дрожжи Double Distill Т3 90гр | D40: шт. | E40: 175 | F40: 240 | I40: 37.14285714
A41: 48593 | B41: Спиртовые турбо дрожжи Double Distill Fruits 50гр | D41: шт. | E41: 165 | F41: 230 | I41: 39.39393939
A42: 00545 | B42: Спиртовые дрожжи Pathfinder "24 Ultra Fast Ferment" | D42: шт | E42: 270 | F42: 350 | I42: 29.62962963
A43: 00546 | B43: Спиртовые дрожжи Pathfinder "48 Turbo High Power Ferment", 135 г | D43: шт | E43: 215 | F43: 260 | I43: 20.93023256
A44: 10209 | B44: СПИРТОВЫЕ ТУРБО ДРОЖЖИ BRAGMAN FRUITY, 60 Г (Англия) | D44: шт. | E44: 210 | F44: 260 | I44: 23.80952381
A45: 10214 | B45: Спиртовые дрожжи Bragman "48 Universal", 135 г | D45: шт. | E45: 199 | F45: 250 | I45: 25.6281407
A46: 00114 | B46: Дрожжи спиртовые Bragman "Whisky Spirit", 50 г | D46: шт. | E46: 235 | F46: 280 | I46: 19.14893617
A47: 10212 | B47: СПИРТОВЫЕ ДРОЖЖИ BRAGMAN VODKA, 66 Г (Англия) | D47: шт. | E47: 175 | F47: 220 | I47: 25.71428571
A48: 10210 | B48: СПИРТОВЫЕ ДРОЖЖИ BRAGMAN TURBO 115гр | D48: шт. | E48: 230 | F48: 290 | I48: 26.08695652 | J48: 290 | K48: 220 | N48: =(I48-H48)/H48*100 -> 
A49: 10213 | B49: СПИРТОВЫЕ ДРОЖЖИ BRAGMAN RUM TURBO, 72 Г | D49: шт. | E49: 205 | F49: 260 | I49: 26.82926829
A50: 02811 | B50: Дрожжи Кодзи (Китай) 500 гр | D50: шт. | E50: 520 | F50: 720 | I50: 38.46153846
A51: Дрожжи для вина, сидра, энзимы, осветлители
A52: 00543 | B52: Энзимы Beervingem, 2 г (Фермент для улучшения вкуса вина и повышения его прозрачности.) | D52: шт. | E52: 55 | F52: 90 | I52: =(F52-E52)/E52*100 -> 63.63636364
A53: 03098 | B53: Бентонит Фасовка в ведро 100 гр | D53: шт. | E53: 50 | F53: 75 | I53: 52.54237288
A54: 03096 | B54: Бентонит Фасовка в ведро 200 гр | D54: шт. | E54: 60 | F54: 85 | I54: 89.87341772
A55: 00475 | B55: Бентонит Фасовка в ведро 500 гр. | D55: шт. | E55: 75 | F55: 100 | I55: 175.2293578
A56: 10190 | B56: Дрожжи винные сухие 100 грамм | D56: шт. | E56: 95 | F56: 125 | I56: 31.57894737
A57: 15100 | B57: Дрожжи винные сухие 250 грамм | D57: шт. | E57: 199 | F57: 250 | I57: 25.6281407
A58: 00215 | B58: Дрожжи Cider C50 ТМ "Своя Кружка" | D58: шт. | E58: 140 | F58: 240 | I58: 71.42857143
A59: 02025 | B59: Дрожжи винные с питательной солью Beervingem, 25г | D59: шт. | E59: 98 | F59: 130 | I59: 32.65306122
A60: 00364 | B60: Винные дрожжи Beervingem "Red Wine R15", 5 г | D60: шт. | E60: 75 | F60: 110 | I60: 46.66666667
A61: 02276 | B61: Дрожжи Beervingem для медовухи "Mead BVG-08", 10 г | D61: шт. | E61: 165 | F61: 209 | I61: 26.66666667
A62: 02277 | B62: Дрожжи Beervingem для сидра "Cider BVG-07", 10 г | D62: шт. | E62: 154 | F62: 200 | I62: 29.87012987
A63: 00363 | B63: Винные дрожжи Beervingem "Fruit Wine F18", 5 г | D63: шт. | E63: 77 | F63: 109 | I63: 41.55844156
A64: 02280 | B64: Винные дрожжи Beervingem "Universal U18", 5 г | D64: шт. | E64: 77 | F64: 109 | I64: 41.55844156
A65: 00533 | B65: Винные дрожжи Beervingem "High alcohol HA18", 5 г | D65: шт. | E65: 77 | F65: 109 | I65: 41.55844156
A66: 00240 | B66: Осветлитель для пива и вина Beervingem, 30 г | D66: шт. | E66: 59 | F66: 90 | I66: 52.54237288
A67: 00290 | B67: Винные дрожжи Gervin "Universal GV1", 5 г | D67: шт. | E67: 105 | F67: 140 | I67: 33.33333333
A68: 00534 | B68: Винные дрожжи Gervin "White Fruit Wine GV5", 5 г | D68: шт. | E68: 105 | F68: 140 | I68: 33.33333333

Sheet Емкости для сбраживания
A1: Сделай-Дома.ру 88007001323 (Бесплатно) +79642506913 (Звонки и Ватсап) manager@sdelai-doma.ru
B3: Наименование | C3: Фото | E3: Ваша цена | F3: РРЦ | G3: Заказ | H3: Ссылки на описания | I3: Наценка, %
A4: 10277 | B4: Бак 32 л. пищевой с герметичной крышкой (Радиан) | D4: шт. | E4: 540 | F4: 750 | H4: Описание на сайте | I4: =(F4-E4)/E4*100 -> 38.88888889
A5: 49073 | B5: Бак 45 л. пищевой с герметичной крышкой (Радиан) | D5: шт. | E5: 770 | F5: 990 | I5: =(F5-E5)/E5*100 -> 28.57142857
A6: 49074 | B6: крышка к емкости 32л | D6: шт. | E6: 140 | F6: 240 | H6: Описание на сайте | I6: 71.42857143
A7: 48564 | B7: крышка к емкости 32л с отверстием под гидрозатвор | D7: шт. | E7: 140 | F7: 240 | I7: 71.42857143
A8: 03092 | B8: Емкость 32л без отверстия | D8: шт. | E8: 510 | F8: 690 | I8: 35.29411765
A9: 01905 | B9: Емкость 32л с гидрозатвором 32 л. | D9: шт. | E9: 590 | F9: 790 | I9: 33.89830508
A10: 00024 | B10: Мерная шкала для бака 32л | E10: 49 | F10: 79 | I10: 61.2244898
A11: 10164 | B11: Клеевой термомометр | D11: шт. | E11: 33 | F11: 49 | I11: 48.48484848
A12: 02020 | B12: Бочка 30л герметичная с широким горлом | D12: шт. | E12: 770 | F12: 990 | I12: 28.57142857
A13: 02021 | B13: Бочка 40л герметичная с широким горлом | D13: шт. | E13: 890 | F13: 1190 | I13: 33.70786517
A14: 01193 | B14: Бочка 50л герметичная с широким горлом | D14: шт. | E14: 950 | F14: 1290 | I14: 35.78947368
A15: 01194 | B15: Бочка 60л герметичная с широким горлом | D15: шт. | E15: 1140 | F15: 1590 | I15: 39.47368421
A16: 00643 | B16: Крышка на бочки герметичная 30-40л. | D16: шт. | E16: 330 | F16: 590 | H16: Описание на сайте | I16: 78.78787879
A17: 02391 | B17: Крышка на бочки герметичная 50-60л. | D17: шт. | E17: 330 | F17: 590 | I17: 78.78787879
B18: Крышка на бочки герметичная с отверстием под гидрозавтор 30-40л. | D18: шт. | E18: 330 | F18: 590 | I18: 78.78787879
B19: Крышка на бочки герметичная с отверстием под гидрозавтор 50-60л. | D19: шт. | E19: 330 | F19: 590 | I19: 78.78787879
A20: 02846 | B20: Ферментер с гидрозатвором (емкость для брожения) 40л. Нерж | D20: шт. | E20: 10700 | F20: 13100 | I20: 22.42990654
A21: 02847 | B21: Ферментер с гидрозатвором (емкость для брожения) 50л. Нерж | D21: шт. | E21: 11500 | F21: 14900 | I21: 29.56521739
A22: 01475 | B22: Ферментер с гидрозатвором (емкость для брожения) 100л. Нерж | D22: шт. | E22: 14700 | F22: 20900 | I22: 42.17687075
B23: ЦКТ Алковар М 45 л с гидрозатвором | E23: 15300 | F23: 19500 | H23: Описание на сайте | I23: 27.45098039
B24: ЦКТ Алковар М 60 л с гидрозатвором | E24: 17500 | F24: 21990 | I24: 25.65714286
A25: 10182 | B25: Гидрозатвор S-образный | D25: шт. | E25: 45 | F25: 85 | I25: =(F25-E25)/E25*100 -> 88.88888889
A26: 10183 | B26: Гидрозатвор пластиковый (3-камерный, бесшумный) | D26: шт. | E26: 64 | F26: 115 | I26: 79.6875
A27: 10338 | B27: Кран для емкостей с дрожжеуловителем(10мм) | D27: шт | E27: 68 | F27: 150 | I27: 120.5882353
A28: 01877 | B28: Кран для бродильных емкостей с установочным диаметром 21 мм | D28: шт | E28: 146 | F28: 185 | I28: 26.71232877
A29: 01601 | B29: Нагреватель для браги, Xilong AT-700 | D29: шт | E29: 490 | F29: 690 | I29: 40.81632653
A30: 03101 | B30: Сифон с помпой для перекачки браги и пива | D30: шт. | E30: 150 | F30: 260 | I30: 73.33333333

Sheet Дубовые бочки
A1: Сделай-Дома.ру 88007001323 (Бесплатно) +79642506913 (Звонки и Ватсап) manager@sdelai-doma.ru
B3: Наименование | C3: Фото | E3: Ваша цена | F3: РРЦ | G3: Заказ | H3: Ссылки на описания | I3: Наценка, %
A4: Бочки дубовые на подставке (Воронеж) дубовая доска
A5: 00877 | B5: Бочка дубовая 3 л | D5: шт. | E5: 4810 | F5: 5700 | H5: Описание на сайте | I5: =(F5-E5)/E5*100 -> 18.5031185
A6: 00878 | B6: Бочка дубовая 5 л | D6: шт. | E6: 4800 | F6: 6200 | I6: =(F6-E6)/E6*100 -> 29.16666667
A7: 10017 | B7: Бочка дубовая 10 л | D7: шт. | E7: 5500 | F7: 6900 | I7: 25.45454545
A8: 00879 | B8: Бочка дубовая 15 л | D8: шт. | E8: 6400 | F8: 8500 | I8: 32.8125
A9: 03103 | B9: Бочка дубовая 20 л | D9: шт. | E9: 7200 | F9: 9500 | I9: 31.94444444
A10: 00880 | B10: Бочка дубовая 25 л | D10: шт. | E10: 8130 | F10: 10200 | I10: 25.46125461
A11: 00881 | B11: Бочка дубовая 30 л | D11: шт. | E11: 8350 | F11: 10500 | I11: 25.74850299
A12: 00882 | B12: Бочка дубовая 50 л | D12: шт. | E12: 10400 | F12: 13900 | I12: 33.65384615
A13: 00883 | B13: Бочка дубовая 100 л | D13: шт. | E13: 14600 | F13: 17900 | I13: 22.60273973
A14: Бочки дубовые на подставке (Адыгея, г. Майкоп) колотый дуб
A15: СТОП 10018 | B15: Бочка дубовая 3 л (колотый дуб) с краном | D15: шт. | F15: 5790 | H15: Описание на сайте
A16: СТОП 00884 | B16: Бочка дубовая 5 л (колотый дуб) с краном | D16: шт. | F16: 6490
A17: СТОП 10019 | B17: Бочка дубовая 10 л (колотый дуб) с краном | D17: шт. | F17: 6890
A18: СТОП 10020 | B18: Бочка дубовая 15 л(колотый дуб) | D18: шт. | F18: 7790
A19: СТОП 00885 | B19: Бочка дубовая 20 л(колотый дуб) | D19: шт. | F19: 8190
A20: СТОП 00886 | B20: Бочка дубовая 25 л(колотый дуб) | D20: шт. | F20: 8890
A21: СТОП 00887 | B21: Бочка дубовая 30 л(колотый дуб) | D21: шт. | F21: 9900
A22: СТОП 00888 | B22: Бочка дубовая 50 л (колотый дуб) | D22: шт. | F22: 13990
A23: СТОП 00889 | B23: Бочка дубовая (100 л) (колотый дуб) | D23: шт. | F23: 19990

Sheet Стеклянные бутыли
A1: Сделай-Дома.ру 88007001323 (Бесплатно) +79642506913 (Звонки и Ватсап) manager@sdelai-doma.ru
B3: Наименование | C3: Фото | E3: Ваша цена | F3: РРЦ | G3: Заказ | H3: Ссылки на описания | I3: Наценка, %
A4: Стеклянные бутыли
A5: 01474 | B5: Бутылка "Вышегор для Охотников" 1л. пробка Гуала | D5: шт. | E5: 160 | F5: 230 | I5: =(F5-E5)/E5*100 -> 43.75
A6: 01473 | B6: Бутылка "Вышегор для Рыбаков" 1л. пробка Гуала | D6: шт. | E6: 160 | F6: 230 | I6: 43.75
A7: 00418 | B7: Бутылка Домашняя водка 1л пробка Гуала | D7: шт. | E7: 160 | F7: 230 | H7: Описание на сайте | I7: 43.75
A8: 00416 | B8: Бутылка Домашняя настойка деревенская 1 л пробка Гуала | D8: шт. | E8: 160 | F8: 230 | I8: =(F8-E8)/E8*100 -> 43.75
A9: 00415 | B9: Бутылка Домашняя настойка 1 л пробка Гуала | D9: шт. | E9: 160 | F9: 230 | I9: 43.75
A10: 00419 | B10: Бутылка Домашний Виски 1л пробка Гуала | D10: шт. | E10: 160 | F10: 230 | I10: 43.75
A11: 00420 | B11: Бутылка Домашний Ром 1л пробка Гуала | D11: шт. | E11: 160 | F11: 230 | I11: 43.75
A12: 03002 | B12: Бутылка коричневая 0,5л с бугель-пробкой | D12: шт | E12: 57 | F12: 75 | I12: =(F12-E12)/E12*100 -> 31.57894737
A13: 03026 | B13: Бутылка прозрачная 0,5 л с бугель-пробкой | D13: шт. | E13: 55 | F13: 69 | I13: =(F13-E13)/E13*100 -> 25.45454545
A14: 03027 | B14: Бутыль оливковая 0.75л с бугель.пробкой | D14: шт. | E14: 65 | F14: 79 | I14: 21.53846154
A15: 10025 | B15: Бутыль коричневая 0.75л с бугель.пробкой | D15: шт. | E15: 65 | F15: 79 | I15: =(F15-E15)/E15*100 -> 21.53846154
A16: 03004 | B16: Бутылка коричневая 1л с бугель-пробкой | D16: шт | E16: 75 | F16: 99 | I16: 32
A17: 03003 | B17: Бутылка прозрачная 1л с бугель-пробкой | D17: шт | E17: 129 | F17: 169 | I17: =(F17-E17)/E17*100 -> 31.00775194
A18: 02135 | B18: Бутылка прозрачная 2л с бугель-пробкой | E18: 255 | F18: 360 | I18: 41.17647059
A19: 02039 | B19: Бутылка Домашняя 0,5л (под камю) (пробка в комплекте) | D19: шт | E19: 27 | F19: 37 | I19: 37.03703704
A20: 48577 | B20: Бутылка стеклянная Оригинальная 0.5 л пробка в комплекте | D20: шт | E20: 30 | F20: 45 | I20: 50
A21: 48578 | B21: Бутылка стеклянная Оригинальная 0.7 л пробка в комплекте | D21: шт | E21: 43 | F21: 65 | I21: 51.1627907
A22: 02487 | B22: Бутылка Гуала 0,5 л Пробка в комплекте | D22: шт | E22: 25 | F22: 35 | I22: 40
A23: 00413 | B23: Бутылка Наполеон 0.5 л с пробкой и термоусадочным колпачком | D23: шт | E23: 35 | F23: 45 | I23: 28.57142857
A24: Стеклянные банки для браги
A25: 03005 | B25: Банка с гидрозатвором 10 л | D25: шт
A26: 03006 | B26: Банка с гидрозатвором 20 л | D26: шт
A27: 03007 | B27: Банка с гидрозатвором 25 л | D27: шт
A28: ПРОБКИ и УКУПОРКИ
A29: 00153 | B29: Укупорка винная | D29: шт. | E29: 1490 | F29: 2390 | I29: =(F29-E29)/E29*100 -> 60.40268456
A30: 10286 | B30: Укупорка кроненпробок | D30: шт. | E30: 1290 | F30: 2190 | I30: 69.76744186
A31: 10288 | B31: Укупорка кроненпробок эконом | D31: шт. | E31: 520 | F31: 750 | I31: 44.23076923
A32: 02144 | B32: Пробка корковая агломерированная для тихих вин 35х23 мм (20 штук) | D32: шт. | E32: 130 | F32: 170 | I32: 30.76923077
A33: 02144 | B33: Пробка корковая агломерированная для тихих вин 35х23 мм (50 штук) | D33: шт. | E33: 280 | F33: 360 | I33: 28.57142857
A34: 48606 | B34: Кронен-пробки для стеклянных бутылок (белые) Упаковка 100 шт | D34: шт. | E34: 149 | F34: 290 | I34: 94.63087248
A35: 48605 | B35: Кронен-пробки для стеклянных бутылок (черные) Упаковка 100 шт | D35: шт. | E35: 169 | F35: 349 | I35: 106.5088757
A36: 48604 | B36: Кронен-пробки для стеклянных бутылок (золотистые) Упаковка 100 шт | D36: шт. | E36: 149 | F36: 290 | I36: 94.63087248
A37: 00578 | B37: Кронен-пробки для стеклянных бутылок (зеленые) Упаковка 100 шт | D37: шт. | E37: 169 | F37: 349 | I37: 106.5088757
A38: 00580 | B38: Кронен-пробки для стеклянных бутылок (синие) Упаковка 100 шт | D38: шт. | E38: 169 | F38: 349 | I38: 106.5088757
A39: 00579 | B39: Кронен-пробки для стеклянных бутылок (красные) Упаковка 100 шт | D39: шт. | E39: 169 | F39: 349 | I39: 106.5088757
A40: 03519 | B40: Т-образная пробка | D40: шт. | E40: 10 | F40: 15 | I40: 50
A41: 01337 | B41: Термоусадочные колачки бордовый упаковка 10 шт | D41: уп. | E41: 39 | F41: 65 | I41: 66.66666667
A42: 01338 | B42: Термоусадочные колачки золотой упаковка 10 шт | D42: уп. | E42: 39 | F42: 65 | I42: 66.66666667
A43: 01336 | B43: Термоусадочные колачки черный упаковка 10 шт | D43: уп. | E43: 39 | F43: 65 | I43: 66.66666667
A44: Сушилки, мойки
A45: 02230 | B45: Стойка для сушки на 45 бутылок | D45: шт. | E45: 2100 | F45: 2590 | I45: =(F45-E45)/E45*100 -> 23.33333333
A46: 00249 | B46: Мойка для бутылок Фонтанчик | D46: шт. | E46: 1825 | F46: 2420 | I46: 32.60273973
A47: 01304 | B47: Щетка для бутылок | D47: шт | E47: 125 | F47: 175 | I47: 40

Sheet Лабораторные товары
A1: Сделай-Дома.ру 88007001323 (Бесплатно) +79642506913 (Звонки и Ватсап) manager@sdelai-doma.ru
B3: Наименование | C3: Фото | E3: Ваша цена | F3: РРЦ | G3: Заказ | H3: Ссылки на описания | I3: Наценка, %
A4: Мерные цилиндры, мерные стаканы
A5: 10028 | B5: Мерный цилиндр 50 мл (стекло на пластике) | D5: шт | E5: 75 | F5: 115 | I5: =(F5-E5)/E5*100 -> 53.33333333
A6: 10029 | B6: Мерный цилиндр 100 мл (стекло на пластике) | D6: шт | E6: 85 | F6: 165 | I6: =(F6-E6)/E6*100 -> 94.11764706
A7: 10030 | B7: Мерный цилиндр 250 мл (стекло на пластике) | D7: шт | E7: 220 | F7: 300 | I7: 36.36363636
A8: 10031 | B8: Мерный цилиндр 500 мл (стекло на пластике) | D8: шт | E8: 320 | F8: 440 | I8: 37.5
A9: 02770 | B9: Мерный цилиндр 50 мл (полипропилен) | D9: шт | E9: 68 | F9: 95 | I9: 39.70588235
A10: 02768 | B10: Мерный цилиндр 100 мл (полипропилен) | D10: шт | E10: 99 | F10: 150 | I10: 51.51515152
A11: 02769 | B11: Мерный цилиндр 250 мл (полипропилен) | D11: шт | E11: 140 | F11: 190 | I11: 35.71428571
A12: 02470 | B12: Мерный цилиндр 500 мл (полипропилен) | D12: шт | E12: 240 | F12: 390 | I12: 62.5
A13: 01308 | B13: Мерный стакан пластик 500 мл. | D13: шт | E13: 99 | F13: 150 | I13: 51.51515152
A14: 01309 | B14: Мерный стакан пластик 1000 мл. | D14: шт | E14: 135 | F14: 190 | I14: 40.74074074
A15: 01310 | B15: Мерный стакан пластик 2000 мл. | D15: шт | E15: 237 | F15: 350 | I15: 47.67932489
A16: 01347 | B16: Мерный стакан пластик 5000 мл. | D16: шт | E16: 355 | F16: 490 | I16: 38.02816901
A17: 48721 | B17: Фильтр для мерного стакана 2л | D17: шт | E17: 480 | F17: 590 | I17: 22.91666667
A18: 48722 | B18: Фильтр для мерного стакана 5л | D18: шт | E18: 672 | F18: 750 | I18: 11.60714286
A19: 00347 | B19: Фильтр-пакеты 10шт\упак | D19: уп. | E19: 40 | F19: 170 | I19: 325
A20: Спиртометры, Ареометры, Термометры
A21: 03513 | B21: Виномер капиллярный 0-25 | D21: шт | E21: 150 | F21: 200 | I21: =(F21-E21)/E21*100 -> 33.33333333
A22: 10155 | B22: Ареометр-виномер бытовой (Китай) | D22: шт | E22: 29 | F22: 55 | I22: 89.65517241
A23: 10153 | B23: Спиртомер бытовой Рюмочный 0-80 (Китай) | D23: шт | E23: 37 | F23: 70 | I23: 89.18918919
A24: 10154 | B24: Спиртомер Бытовой 0-96 (Китай) | D24: шт | E24: 30 | F24: 49 | I24: 63.33333333
A25: 10156 | B25: Спиртомер лабораторный (Ареометр спиртовой) 0-40 | D25: шт | E25: 95 | F25: 135 | I25: 42.10526316
A26: 10157 | B26: Спиртомер лабораторный (Ареометр спиртовой) 40-70 | D26: шт | E26: 95 | F26: 135 | I26: 42.10526316
A27: 10158 | B27: Спиртомер лабораторный (Ареометр спиртовой) 70-100 | D27: шт | E27: 95 | F27: 135 | I27: 42.10526316
A28: 02858 | B28: Рефрактометр для вина Сахар - 0-40, Спирт 0-25. | D28: шт | E28: 1190 | F28: 1590 | I28: =(F28-E28)/E28*100 -> 33.61344538
A29: 00587 | B29: Рефрактометр для Пива измеряемый уровень сах.: 0-32% Brix. | D29: шт | E29: 1190 | F29: 1590 | I29: 33.61344538
A30: 02859 | B30: Рефрактометр для спирта 0-80 | D30: шт | E30: 1190 | F30: 1590 | I30: 33.61344538
A31: 48703 | B31: Спиртомер лабораторный 0-100 | D31: шт | E31: 165 | F31: 250 | I31: 51.51515152
A32: 03548 | B32: Ложка -весы (вес - 500 гр. Точность 0,1) | D32: шт | E32: 450 | F32: 790 | I32: 75.55555556
A33: СТОП 00407 | B33: Ложка мерная маленькая, 0-30 мл | D33: шт | E33: 99 | F33: 140 | I33: 41.41414141
A34: СТОП 00408 | B34: Ложка мерная большая, 30-130 мл | D34: шт | E34: 129 | F34: 190 | I34: 47.28682171
A35: СТОП 10165 | B35: Ареометр-сахарометр АС-2 0-10 | D35: шт
A36: СТОП 10166 | B36: Ареометр-сахарометр АС-2 10-20 | D36: шт
A37: 10167 | B37: Ареометр-сахарометр АС-3 0-25 | D37: шт | E37: 125 | F37: 170 | I37: 36
A38: 10162 | B38: Термометр 0-100 стеклянный | D38: шт | E38: 55 | F38: 99 | I38: =(F38-E38)/E38*100 -> 80
A39: 10163 | B39: Термометр WT-1 черный | D39: шт | E39: 150 | F39: 195 | I39: 30
A40: 02771 | B40: Термометр биметалический осевой | D40: шт | E40: 299 | F40: 390 | I40: 30.43478261
A41: 02774 | B41: Цифровой термометр со щупом, с функцией звукового сигнала при достижении заданной температуры в блистерной упаковке | D41: шт | E41: 615 | F41: 740 | I41: 20.32520325
A42: 02773 | B42: Термометр цифровой с выносным датчиком | D42: шт | E42: 145 | F42: 250 | I42: 72.4137931
A43: 01311 | B43: Термометр со щупом ТА-288, 4 см, 4 мм.(короткий) | D43: шт | E43: 145 | F43: 220 | H43: Описание на сайте | I43: 51.72413793
A44: 48611 | B44: Термометр электронный поворотный ТА288(длинный) в блистерной упаковке | D44: шт | E44: 155 | F44: 220 | I44: 41.93548387
A45: 10164 | B45: Клеевой термомометр | D45: шт. | E45: 33 | F45: 49 | I45: 48.48484848
A46: 00037 | B46: Полоски индикаторные для определения PH | D46: шт. | E46: 62 | F46: 80 | I46: 29.03225806
A47: 02778 | B47: Воронка с фильтром Ø11 см, нерж. 304 | D47: шт. | E47: 240 | F47: 380 | I47: 58.33333333
A48: 00346 | B48: Воронка с фильтром Ø13 см, нерж. 304 | D48: шт. | E48: 290 | F48: 390 | I48: 34.48275862
A49: 00251 | B49: Воронка с фильтром Ø 15 см, нерж. 304 | D49: шт. | E49: 290 | F49: 430 | I49: 48.27586207
A50: Устройство непрерывного контроля (Попугай)
A51: РУ0342 | B51: Попугай на банку с пластиковой крышкой | D51: шт. | E51: 1090 | F51: 1390 | I51: 27.52293578
A52: РУ0234 | B52: Устройство непрерывного контроля (Попугай) на банку 88мм с металлической крышкой | D52: шт. | E52: 1190 | F52: 1480 | I52: 24.3697479
A53: РУ03023 | B53: Устройство непрерывного контроля (Попугай) на банку с приемным стаканом (крышка диам. 88 мм) | D53: шт. | E53: 1390 | F53: 1790 | I53: =(F53-E53)/E53*100 -> 28.77697842
A54: РУ10159 | B54: Устройство непрерывного контроля настольный с приемным стаканом (Попугай) | D54: шт. | E54: 990 | F54: 1490 | I54: 50.50505051
A55: РУ0923 | B55: Устройство непрерывного контроля (Попугай) эконом под 3-х литровую банку | D55: шт. | E55: 900 | F55: 1290 | I55: 43.33333333
A56: РУ00324 | B56: Устройство непрерывного контроля (Попугай) подвесной | D56: шт. | E56: 1290 | F56: 1790 | I56: 38.75968992
A57: 49048 | B57: Устройство непрерывного контроля (Попугай) подвесной с краном 1/4 | D57: шт. | E57: 1390 | F57: 1990 | I57: 43.16546763
A58: 00586 | B58: Стеклянный Устройство непрерывного контроля (Попугай) 250 мл | D58: шт. | E58: 690 | F58: 890 | I58: 28.98550725
A59: Наборы спиртомеров в деревянных коробках
A60: 00585 | B60: Набор ареометров для спирта 0-40, 40-70, 70-100 (с термометром) Габариты деревянного бокса 245х100х30 мм | D60: шт. | E60: 400 | F60: 690 | I60: 72.5
A61: 00676 | B61: Набор ареометров для спирта 0-40, 40-70, 70-100 (с термометром и пластиковым мерным стаканом ) Габариты деревянного бокса 29х15,5х6,5 см | D61: шт. | E61: 620 | F61: 990 | I61: 59.67741935
A62: 00725 | B62: Набор ареометров для спирта 0-40, 40-70, 70-100 (с термометром и стеклянным мерным стаканом ) Габариты деревянного бокса 29х15,5х6,5 см | D62: шт. | E62: 650 | F62: 1090 | I62: =(F62-E62)/E62*100 -> 67.69230769
A63: 00735 | B63: Профессиональный набор ареометров в синем пластиковом футляре | D63: шт. | E63: 250 | F63: 350 | I63: 40
A64: Ареометры для спирта профессиональные Ареометр для спирта АСП-1 (Диапазон 10) с Поверкой
A65: 02736 | B65: Ареометр для спирта АСП-1 0-10 | D65: шт | E65: 990 | F65: 1390 | H65: Описание на сайте | I65: =(F65-E65)/E65*100 -> 40.4040404
A66: 02737 | B66: Ареометр для спирта АСП-1 10- 20 | D66: шт | E66: 990 | F66: 1390 | I66: 40.4040404
A67: 02738 | B67: Ареометр для спирта АСП-1 20- 30 | D67: шт | E67: 990 | F67: 1390 | I67: 40.4040404
A68: 02739 | B68: Ареометр для спирта АСП-1 30-40 | D68: шт | E68: 990 | F68: 1390 | I68: 40.4040404
A69: 02740 | B69: Ареометр для спирта АСП-1 40-50 | D69: шт | E69: 990 | F69: 1390 | I69: 40.4040404
A70: 02741 | B70: Ареометр для спирта АСП-1 50-60 | D70: шт | E70: 990 | F70: 1390 | I70: 40.4040404
A71: 02742 | B71: Ареометр для спирта АСП-1 60-70 | D71: шт | E71: 990 | F71: 1390 | I71: 40.4040404
A72: 02743 | B72: Ареометр для спирта АСП-1 70-80 | D72: шт | E72: 990 | F72: 1390 | I72: 40.4040404
A73: 02744 | B73: Ареометр для спирта АСП-1 80-90 | D73: шт | E73: 990 | F73: 1390 | I73: 40.4040404
A74: 02745 | B74: Ареометр для спирта АСП-1 90-100 | D74: шт | E74: 990 | F74: 1390 | I74: 40.4040404
A75: 02746 | B75: Ареометр для спирта АСП-1 95-105 | D75: шт | E75: 990 | F75: 1390 | I75: 40.4040404
A76: Ареометры для спирта профессиональные Ареометр для спирта Ареометр для спирта АСП-2 (Диапазон 5) с Поверкой
A77: 02747 | B77: Ареометр для спирта АСП-2 11-16 | D77: шт | E77: 890 | F77: 1290 | H77: Описание на сайте | I77: 44.94382022
A78: 02748 | B78: Ареометр для спирта АСП-2 16-21 | D78: шт | E78: 890 | F78: 1290 | I78: 44.94382022
A79: 02749 | B79: Ареометр для спирта АСП-2 21-26 | D79: шт | E79: 890 | F79: 1290 | I79: 44.94382022
A80: 02750 | B80: Ареометр для спирта АСП-2 26-31 | D80: шт | E80: 890 | F80: 1290 | I80: 44.94382022
A81: 02751 | B81: Ареометр для спирта АСП-2 31-36 | D81: шт | E81: 890 | F81: 1290 | I81: 44.94382022
A82: 02752 | B82: Ареометр для спирта АСП-2 36-41 | D82: шт | E82: 890 | F82: 1290 | I82: 44.94382022
A83: 02753 | B83: Ареометр для спирта АСП-2 41-46 | D83: шт | E83: 890 | F83: 1290 | I83: 44.94382022
A84: 02754 | B84: Ареометр для спирта АСП-2 46-51 | D84: шт | E84: 890 | F84: 1290 | I84: 44.94382022
A85: 02755 | B85: Ареометр для спирта АСП-2 51-56 | D85: шт | E85: 890 | F85: 1290 | I85: 44.94382022
A86: 02756 | B86: Ареометр для спирта АСП-2 56-61 | D86: шт | E86: 890 | F86: 1290 | I86: 44.94382022
A87: 02757 | B87: Ареометр для спирта АСП-2 61-66 | D87: шт | E87: 890 | F87: 1290 | I87: 44.94382022
A88: 02758 | B88: Ареометр для спирта АСП-2 66-71 | D88: шт | E88: 890 | F88: 1290 | I88: 44.94382022
A89: 02759 | B89: Ареометр для спирта АСП-2 71-76 | D89: шт | E89: 890 | F89: 1290 | I89: 44.94382022
A90: 02760 | B90: Ареометр для спирта АСП-2 76-81 | D90: шт | E90: 890 | F90: 1290 | I90: 44.94382022
A91: 02761 | B91: Ареометр для спирта АСП-2 81-86 | D91: шт | E91: 890 | F91: 1290 | I91: 44.94382022
A92: 02762 | B92: Ареометр для спирта АСП-2 86-91 | D92: шт | E92: 890 | F92: 1290 | I92: 44.94382022
A93: 02763 | B93: Ареометр для спирта АСП-2 91-96 | D93: шт | E93: 890 | F93: 1290 | I93: 44.94382022
A94: 02764 | B94: Ареометр для спирта АСП-2 96-101 | D94: шт | E94: 890 | F94: 1290 | I94: 44.94382022

Sheet Наборы Алтайский Винокур
A1: Сделай-Дома.ру 88007001323 (Бесплатно) +79642506913 (Звонки и Ватсап) manager@sdelai-doma.ru
B3: Наименование | C3: Фото | E3: Ваша цена | F3: РРЦ | G3: Заказ | H3: Ссылки на описания | I3: Наценка, %
A4: Наборы Алтайский винокур
A5: 03108 | B5: Егерь Мастер | D5: шт. | E5: 128 | F5: 250 | H5: Описание на сайте | I5: =(F5-E5)/E5*100 -> 95.3125
A6: 48695 | B6: Пряный виски | D6: шт. | E6: 83 | F6: 180 | I6: =(F6-E6)/E6*100 -> 116.8674699
A7: 48864 | B7: Пряный виски 3в 1 | D7: шт. | E7: 165 | F7: 250 | I7: 51.51515152 | L7: =(H7-G7)/G7*100 -> 
A8: 01320 | B8: Вишня на коньяке | D8: шт. | E8: 175 | F8: 250 | I8: 42.85714286
A9: 10059 | B9: Зубровка | D9: шт. | E9: 75 | F9: 170 | I9: 126.6666667
A10: 00048 | B10: Бренди Вишневый | D10: шт. | E10: 126 | F10: 210 | I10: 66.66666667
A11: 10048 | B11: Бехеровка | D11: шт. | E11: 93 | F11: 220 | I11: 136.5591398
A12: 10067 | B12: Домашний Ром | D12: шт. | E12: 123 | F12: 230 | I12: 86.99186992
A13: 03111 | B13: Хреновуха | D13: шт. | E13: 103 | F13: 200 | I13: 94.17475728
A14: 01321 | B14: Миндальный коньяк | D14: шт. | E14: 155 | F14: 250 | I14: 61.29032258
A15: 10066 | B15: Алтайская кедровая | D15: шт. | E15: 79 | F15: 170 | I15: 115.1898734
A16: 10058 | B16: Коньяк по-латгальски | D16: шт. | E16: 89 | F16: 180 | I16: 102.247191
A17: 10049 | B17: Джин | D17: шт. | E17: 106 | F17: 200 | H17: Описание на сайте | I17: 88.67924528
A18: 01708 | B18: Копченая Груша | D18: шт. | E18: 139 | F18: 230 | I18: 65.4676259
A19: 00389 | B19: Апероль | D19: шт. | E19: 162 | F19: 270 | I19: 66.66666667
A20: 00393 | B20: Кальвадос яблочный | D20: шт. | E20: 113 | F20: 200 | I20: 76.99115044
A21: 00394 | B21: Кальвадос грушевый | D21: шт. | E21: 112 | F21: 200 | I21: 78.57142857
A22: 48625 | B22: Кальвадос яблочный 2 в 1 | D22: шт. | E22: 154 | F22: 240 | I22: 55.84415584 | L22: =(H22-G22)/G22*100 -> 
A23: 48624 | B23: Кальвадос грушевый 2 в 1 | D23: шт. | E23: 154 | F23: 240 | I23: 55.84415584
A24: 00396 | B24: Хохот Шамана | D24: шт. | E24: 132 | F24: 210 | I24: 59.09090909
A25: 00391 | B25: Джин Малиновый СТОП | D25: шт. | E25: 239 | F25: 330 | I25: 38.07531381
A26: 03118 | B26: Бехеровка LEMOND | D26: шт. | E26: 103 | F26: 230 | I26: 123.3009709
A27: 01710 | B27: Старка | D27: шт. | E27: 105 | F27: 200 | I27: 90.47619048
A28: 00090 | B28: Клюква | D28: шт. | E28: 136 | F28: 230 | I28: 69.11764706
A29: 02237 | B29: Макадамия | D29: шт. | E29: 164 | F29: 250 | I29: 52.43902439
A30: 00983 | B30: Украинская Перцовка | D30: шт. | E30: 90 | F30: 180 | I30: 100
A31: 10050 | B31: Абсент | D31: шт. | E31: 105 | F31: 200 | I31: 90.47619048
A32: 00047 | B32: Куантро | D32: шт. | E32: 157 | F32: 230 | H32: Описание на сайте | I32: 46.49681529
A33: 48599 | B33: Имбирная с мёдом | D33: шт. | E33: 157 | F33: 230 | I33: 46.49681529
A34: 10056 | B34: Ерофеич | D34: шт. | E34: 92 | F34: 180 | I34: 95.65217391
A35: 48863 | B35: Ерофеич 2в1 | D35: шт. | E35: 154 | F35: 240 | I35: 55.84415584
A36: 10065 | B36: Анисовая | D36: шт. | E36: 79 | F36: 170 | I36: 115.1898734
A37: 00049 | B37: Тутовник на Джине | D37: шт. | E37: 133 | F37: 230 | I37: 72.93233083
A38: 01483 | B38: Блю Кюрасао | D38: шт. | E38: 149 | F38: 250 | I38: 67.7852349
A39: 03117 | B39: Фирменная | D39: шт. | E39: 111 | F39: 210 | I39: 89.18918919
A40: 00982 | B40: Мятный ликер | D40: шт. | E40: 85 | F40: 170 | I40: 100
A41: 03110 | B41: 100 Листьев | D41: шт. | E41: 124 | F41: 200 | I41: 61.29032258
A42: 00043 | B42: Малина СТОП | D42: шт. | E42: 187 | F42: 280 | I42: 49.73262032
A43: 01709 | B43: Можжевеловая настойка | D43: шт. | E43: 115 | F43: 210 | I43: 82.60869565
A44: 03109 | B44: Глинтвейн | D44: шт. | E44: 163 | F44: 270 | I44: 65.64417178
A45: 02238 | B45: Черноплодка на коньяке | D45: шт. | E45: 111 | F45: 200 | I45: 80.18018018
A46: 10053 | B46: Самбука | D46: шт. | E46: 133 | F46: 250 | I46: 87.96992481
A47: 48862 | B47: Самбука Экстра | D47: шт. | E47: 133 | F47: 250 | I47: 87.96992481
A48: 48737 | B48: Копченый виски 3 в 1 | D48: шт. | E48: 156 | F48: 250 | I48: 60.25641026
A49: 1322 | B49: Рябина на коньяке | D49: шт. | E49: 111 | F49: 220 | I49: 98.1981982
A50: 48738 | B50: Торфяной виски 3 в 1 | D50: шт. | E50: 175 | F50: 250 | I50: 42.85714286
A51: 48740 | B51: Фруктовая | D51: шт. | E51: 111 | F51: 220 | I51: 98.1981982
A52: 48736 | B52: Кампари | D52: шт. | E52: 111 | F52: 220 | I52: 98.1981982
A53: 00979 | B53: Мононабор Калган (корень) | D53: шт. | E53: 157 | F53: 250 | I53: 59.23566879
A54: 00978 | B54: Мононабор Трава Зубровка (20гр) | D54: шт. | E54: 124 | F54: 220 | I54: 77.41935484
A55: 00985 | B55: Мононабор Ягоды можжевельника | D55: шт. | E55: 140 | F55: 220 | I55: 57.14285714
A56: 10051 | B56: Мононабор Анчан (синий Тайский чай) | D56: шт. | E56: 177 | F56: 250 | I56: 41.24293785
A57: 00440 | B57: Набор специй для автоклавов Для Плова | D57: шт. | E57: 141 | F57: 260 | H57: Описание на сайте | I57: 84.39716312
A58: 00441 | B58: Набор специй для автоклавов Для свинины | D58: шт. | E58: 133 | F58: 240 | I58: 80.45112782
A59: 00442 | B59: Набор специй для автоклавов Для баранины | D59: шт. | E59: 138 | F59: 240 | I59: 73.91304348
A60: 00443 | B60: Набор специй для автоклавов Для птицы | D60: шт. | E60: 127 | F60: 230 | I60: 81.1023622
A61: 00444 | B61: Набор специй для автоклавов Для рыбы | D61: шт. | E61: 127 | F61: 240 | I61: 88.97637795
A62: 00445 | B62: Набор специй для автоклавов Для огурцов | D62: шт. | E62: 135 | F62: 250 | I62: 85.18518519

Sheet Наборы для настаивания
A1: Сделай-Дома.ру 88007001323 (Бесплатно) +79642506913 (Звонки и Ватсап) manager@sdelai-doma.ru
B3: Наименование | C3: Фото | E3: Ваша цена | F3: РРЦ | G3: Заказ | H3: Ссылки на описания | I3: Наценка, %
A4: Наборы трав ecobar
A5: 03782 | B5: Настойка Ароматная на 3 литра | D5: шт. | E5: 76 | F5: 145 | H5: Описание на сайте | I5: =(F5-E5)/E5*100 -> 90.78947368
A6: 03783 | B6: Ароматный Виски на 3 литра | D6: шт. | E6: 76 | F6: 145 | I6: =(F6-E6)/E6*100 -> 90.78947368
A7: 03784 | B7: Настойка Вишневая на 1 литр | D7: шт. | E7: 72 | F7: 145 | I7: 101.3888889
A8: 03785 | B8: Старка на 3 литра | D8: шт. | E8: 78 | F8: 145 | I8: 85.8974359
A9: 03786 | B9: Настойка Ореховая 18 г. На 2 литра | D9: шт. | E9: 74 | F9: 145 | I9: 95.94594595
A10: 03787 | B10: Бренди на 3 литра | D10: шт. | E10: 74 | F10: 145 | I10: 95.94594595
A11: 03788 | B11: Коньяк на 3 литра | D11: шт. | E11: 78 | F11: 145 | I11: 85.8974359
A12: 03789 | B12: Настойка имбирно лимонная на 3 литра | D12: шт. | E12: 78 | F12: 145 | I12: 85.8974359
A13: 03792 | B13: А-ля-Курауазье на 1 литр | D13: шт. | E13: 74 | F13: 145 | I13: 95.94594595
A14: 03790 | B14: Кальвадос на 3 литра | D14: шт. | E14: 79 | F14: 165 | I14: 108.8607595
A15: 01557 | B15: Настойка кедровка на 3 литра | D15: шт. | E15: 69 | F15: 145 | H15: Описание на сайте | I15: 110.1449275
A16: 01558 | B16: Коньяк SARAJI на 3 литра | D16: шт. | E16: 74 | F16: 145 | I16: 95.94594595
A17: 01560 | B17: Фруктовый Виски на 1 литр | D17: шт. | E17: 74 | F17: 145 | I17: 95.94594595
A18: 01561 | B18: Пряный Ром на 1 литр | D18: шт. | E18: 79 | F18: 165 | I18: 108.8607595
A19: 01559 | B19: Клюковка на 1 литр | D19: шт. | E19: 79 | F19: 165 | I19: 108.8607595
A20: 03791 | B20: Карамельный Изюм на 3 литра | D20: шт. | E20: 74 | F20: 145 | I20: 95.94594595
A21: 00041 | B21: Бананакос | D21: шт. | E21: 96 | F21: 185 | I21: 92.70833333
A22: 02630 | B22: Егермейстер | D22: шт. | E22: 96 | F22: 185 | I22: 92.70833333
A23: 02629 | B23: Старый Талин | D23: шт. | E23: 74 | F23: 145 | I23: 95.94594595
A24: 02628 | B24: Черри Бренди | D24: шт. | E24: 74 | F24: 145 | H24: Описание на сайте | I24: 95.94594595
A25: 02627 | B25: Граф Разумовский | D25: шт. | E25: 84 | F25: 145 | I25: 72.61904762
A26: 02626 | B26: Пряная Груша | D26: шт. | E26: 74 | F26: 145 | I26: 95.94594595
A27: 02625 | B27: Сладкая парочка | D27: шт. | E27: 74 | F27: 145 | I27: 95.94594595
A28: 02623 | B28: Калгановка Французская | D28: шт. | E28: 79 | F28: 165 | I28: 108.8607595
A29: 02622 | B29: Вишня на коньяке | D29: шт. | E29: 78 | F29: 145 | I29: 85.8974359
A30: 02621 | B30: Копченая Груша по Турецки | D30: шт. | E30: 88 | F30: 185 | I30: 110.2272727
A31: 02620 | B31: Амаретто Disaronno | D31: шт. | E31: 90 | F31: 145 | I31: 61.11111111
A32: 02619 | B32: Амаретто | D32: шт. | E32: 74 | F32: 145 | I32: 95.94594595
A33: 02618 | B33: Грушевый Кальвадос | D33: шт. | E33: 79 | F33: 165 | H33: Описание на сайте | I33: 108.8607595
A34: 02617 | B34: Яблочный Ром | D34: шт. | E34: 74 | F34: 145 | I34: 95.94594595
A35: 02615 | B35: Сливовый Ром | D35: шт. | E35: 78 | F35: 145 | I35: 85.8974359
A36: 02616 | B36: Грушевый Ром | D36: шт. | E36: 74 | F36: 145 | I36: 95.94594595
A37: 02614 | B37: Малина на коньяке | D37: шт. | E37: 139 | F37: 195 | I37: 40.28776978
A38: 02613 | B38: Ледяная малина | D38: шт. | E38: 129 | F38: 185 | I38: 43.41085271
A39: 02607 | B39: Настойка Шиповника | D39: шт. | E39: 74 | F39: 145 | I39: 95.94594595
A40: 02612 | B40: Малиновая настойка | D40: шт. | E40: 129 | F40: 185 | I40: 43.41085271
A41: 02611 | B41: Кофейный ликер | D41: шт. | E41: 74 | F41: 145 | I41: 95.94594595
A42: 02610 | B42: Коньяк Лейла | D42: шт. | E42: 84 | F42: 175 | I42: 108.3333333
A43: 02609 | B43: Абрикосовый Ром | D43: шт. | E43: 78 | F43: 145 | I43: 85.8974359
A44: 02608 | B44: Вишневый Ром | D44: шт. | E44: 78 | F44: 145 | H44: Описание на сайте | I44: 85.8974359
A45: 02604 | B45: Зубровка | D45: шт. | E45: 79 | F45: 145 | I45: 83.5443038
A46: 00292 | B46: Коньяк Латгальский на 1л | D46: шт. | E46: 61 | F46: 145 | I46: 137.704918
A47: 02606 | B47: Миндальный коньяк | D47: шт. | E47: 129 | F47: 179 | I47: 38.75968992
A48: 02605 | B48: Охотничья | D48: шт. | E48: 79 | F48: 165 | I48: 108.8607595
A49: Щепа (чипсы) в ассортименте, Кубики, колышки.
A50: Щепа крафт-пакеты премиум.
A51: 48530 | B51: Щепа дуба средней обжарки(ПРЕМИУМ), на 25л-100 г | D51: шт. | E51: 65 | F51: 120 | I51: 84.61538462
A52: 48540 | B52: Щепа дуба сильной обжарки(ПРЕМИУМ), на 25л-100 г | D52: шт. | E52: 65 | F52: 120 | I52: 84.61538462
A53: 48550 | B53: Кубики дубовые средней обжарки(ПРЕМИУМ), на 25л-100 г | D53: шт. | E53: 82 | F53: 140 | I53: 70.73170732
A54: 48560 | B54: Кубики дубовые сильной обжарки(ПРЕМИУМ), на 25л-100 г | D54: шт. | E54: 82 | F54: 140 | I54: 70.73170732
A55: Чипсы и бусы из выдержанных бочек
A56: 48692 | B56: Чипсы из Бочек из под хереса | D56: шт. | E56: 149 | F56: 250 | I56: 67.7852349
A57: 48690 | B57: Чипсы из Бочек из под мадеры | D57: шт. | E57: 149 | F57: 250 | I57: 67.7852349
A58: 48693 | B58: Чипсы из Бочек из под портвейна белого | D58: шт. | E58: 149 | F58: 250 | I58: 67.7852349
A59: 48691 | B59: Чипсы из Бочек из под алеатико | D59: шт. | E59: 149 | F59: 250 | I59: 67.7852349
A60: 48608 | B60: Бусы из Бочек из под хереса | D60: шт. | E60: 270 | F60: 390 | I60: 44.44444444
A61: 48609 | B61: Бусы из Бочек из под мадеры | D61: шт. | E61: 270 | F61: 390 | I61: 44.44444444
A62: Щепа, колышки в прозрачной упаковке (вакуумный пакет)
A63: 01346 | B63: Сегмент дубовый сильный обжиг 100 г | D63: шт. | E63: 90 | F63: 199 | I63: 121.1111111
A64: 01345 | B64: Сегмент дубовый средний обжиг 100 г | D64: шт. | E64: 90 | F64: 199 | I64: 121.1111111
A65: 03148 | B65: Щепа дуба средней обжарки, на 25л-100 г | D65: шт. | E65: 55 | F65: 99 | I65: 80
A66: 03149 | B66: Щепа дуба сильной обжарки, на 25л-100 г | D66: шт. | E66: 55 | F66: 99 | I66: 80
A67: 10172 | B67: Колышки дубовые (средний обжиг) 100 г | D67: шт. | E67: 68 | F67: 99 | I67: 45.58823529
A68: 10171 | B68: Колышки дубовые (сильный обжиг) 100 г | D68: шт. | E68: 68 | F68: 99 | I68: 45.58823529
A69: 10174 | B69: Кубики дубовые (средний обжиг) 100 г | D69: шт. | E69: 68 | F69: 99 | I69: 45.58823529
A70: 10173 | B70: Кубики дубовые (сильный обжиг) 100 г | D70: шт. | E70: 68 | F70: 99 | I70: 45.58823529
A71: Фруктовая серия (щепа, колышки в прозрачной упаковке (вакуумный пакет))
A72: 01899 | B72: Колышки (Вишня) средний обжиг 100 гр | D72: шт. | E72: 60 | F72: 120 | I72: 100
A73: 01900 | B73: Колышки (Орех грецкий) средний обжиг 100 гр | D73: шт. | E73: 60 | F73: 120 | I73: 100
A74: 03143 | B74: Щепа для настаивания (абрикос) 100 гр. | D74: шт. | E74: 70 | F74: 140 | I74: 100
A75: 03144 | B75: Щепа для настаивания (вишня) 100 гр. | D75: шт. | E75: 70 | F75: 140 | I75: 100
A76: 03145 | B76: Щепа для настаивания (груша) 100 гр. | D76: шт. | E76: 70 | F76: 140 | I76: 100
A77: 03146 | B77: Щепа для настаивания (слива) 100 гр. | D77: шт. | E77: 70 | F77: 140 | I77: =(F77-E77)/E77*100 -> 100
A78: 00107 | B78: Щепа для настаивания (черешня) 100 гр. | D78: шт. | E78: 70 | F78: 140 | I78: 100
A79: 03147 | B79: Щепа для настаивания (яблоня) 100 гр. | D79: шт. | E79: 70 | F79: 140 | I79: 100
A80: Ореховая серия
A81: 48694 | B81: Скорлупа кедровых орехов 100 г | D81: шт. | E81: 45 | F81: 109 | I81: =(F81-E81)/E81*100 -> 142.2222222
A82: 48579 | B82: Скорлупа кедровых орехов 1 кг Пакет. | D82: шт. | E82: 250 | F82: 390 | I82: 56
B83: Скорлупа кедровых орехов 5 кг мешок | D83: шт. | E83: 1090 | F83: 1680 | I83: 54.12844037
A84: 10175 | B84: Перегородки Грецких орехов (Крафт пакет), 50 гр. | D84: шт. | E84: 99 | F84: 175 | I84: 76.76767677
B85: Перегородки Грецких орехов (Пакет), 1 кг. | D85: шт. | E85: 370 | F85: 550 | I85: 48.64864865
B86: Перегородки Грецких орехов (Мешок), 5 кг. | D86: шт. | E86: 1600 | F86: 2200 | I86: 37.5

Sheet Модернизация
A1: Сделай-Дома.ру 88007001323 (Бесплатно) +79642506913 (Звонки и Ватсап) manager@sdelai-doma.ru
B3: Наименование | C3: Фото | E3: Ваша цена | F3: РРЦ | G3: Заказ | H3: Ссылки на описания | I3: Наценка, %
A4: Холодильники и Носики
A5: 01866 | B5: Холодильник 1,5 дюйма штуцера 8 мм проточенные (400 мм, 4 трубки 10 мм) | D5: шт. | E5: 1990 | F5: 2690 | I5: =(F5-E5)/E5*100 -> 35.1758794
A6: РУ000369857 | B6: Холодильник 1,5 дюйма резьба 1/2 под быстросъем (400мм, 4 трубки 10 мм) | D6: шт. | E6: 2400 | F6: 3200 | I6: =(F6-E6)/E6*100 -> 33.33333333
A7: 01888 | B7: Холодильник 2 дюйма штуцера 8 мм проточенные (400 мм, 7 трубок 12 мм) | D7: шт. | E7: 2730 | F7: 3700 | I7: =(F7-E7)/E7*100 -> 35.53113553
A8: РУ00014697 | B8: Холодильник 2 дюйма резьба 1/2 под быстросъем (400 мм, 7 трубок 12 мм) | D8: шт. | E8: 2980 | F8: 3980 | I8: 33.55704698
A9: 49050 | B9: Холодильник 3 дюйма резьба 1/2 под быстросъем (400мм 19 трубок 12 мм) | D9: шт. | E9: 5580 | F9: 6990 | I9: 25.2688172
A10: ЗА0003695 | B10: Холодильник Димрота 2 дюйма, резьба 1/2, связь с атмосферой | D10: шт. | E10: 3690 | F10: 4690 | I10: 27.100271
A11: РУ000012345 | B11: Носик съемный 1.5 дюйма с атмосферным выходом | D11: шт. | E11: 455 | F11: 560 | I11: =(F11-E11)/E11*100 -> 23.07692308
A12: РУ00036547 | B12: Носик съемный 2 дюйма с атмосферным выходом | D12: шт. | E12: 490 | F12: 680 | I12: 38.7755102
A13: РУ0032654 | B13: Носик съемный 3 дюйма с атмосферным выходом | D13: шт. | E13: 790 | F13: 990 | I13: 25.3164557
A14: РУ0002258987 | B14: Носик съемный 1.5 дюйма | D14: шт. | E14: 430 | F14: 540 | I14: 25.58139535
A15: РУ00003674 | B15: Носик съемный 2 дюйма | D15: шт. | E15: 470 | F15: 630 | I15: 34.04255319
A16: 49051 | B16: Носик съемный 3 дюйма | D16: шт. | E16: 770 | F16: 980 | I16: 27.27272727
A17: 00088 | B17: Доохладитель для узла отбора 25 мм труба Вход 8 мм, выход 8 мм, подвод воды штуцера 8,5 мм | D17: шт. | E17: 890 | F17: 1290 | I17: 44.94382022
A18: 48571 | B18: Доохладитель для узла отбора 25 мм труба Вход 1/4, выход 8 мм, подвод воды1/2 | D18: шт. | E18: 1180 | F18: 1590 | I18: 34.74576271
A19: Клампы прокладки
A20: 02721 | B20: Хомут (Кламп) 1,5 Дюйма (без прокладки) | D20: шт. | E20: 150 | F20: 250 | I20: =(F20-E20)/E20*100 -> 66.66666667
A21: 02723 | B21: Хомут (Кламп) 2 Дюйма (без прокладки) | D21: шт. | E21: 170 | F21: 280 | I21: 64.70588235
A22: 00267 | B22: Хомут (Кламп) 3 Дюйма (без прокладки) | D22: шт. | E22: 230 | F22: 340 | I22: 47.82608696
A23: 02719 | B23: Силиконовая прокладка под кламп 1,5 дюйма | D23: шт. | E23: 16 | F23: 25 | I23: 56.25
A24: 02720 | B24: Силиконовая прокладка под кламп 2 дюйма | D24: шт. | E24: 22 | F24: 30 | I24: 36.36363636
A25: 00268 | B25: Силиконовая прокладка под кламп 3 дюйма | D25: шт. | E25: 37 | F25: 50 | I25: 35.13513514
A26: 02473 | B26: Силиконовая прокладка с сеточкой для СПН 1,5 дюйма | D26: шт. | E26: 100 | F26: 165 | I26: 65
A27: 02577 | B27: Силиконовая прокладка с сеточкой для СПН 2 дюйма | D27: шт. | E27: 120 | F27: 196 | I27: 63.33333333
A28: 00590 | B28: Силиконовая прокладка с сеточкой для СПН 3 дюйма | D28: шт. | E28: 155 | F28: 250 | I28: 61.29032258
A29: Дефлегматоры
A30: 01842 | B30: Дефлегматор кожухотрубный 1,5 дюйма штуцера 8 мм (200 мм, 4 трубки 10 мм) | D30: шт. | E30: 1490 | F30: 1990 | I30: =(F30-E30)/E30*100 -> 33.55704698
A31: РУ000364 | B31: Дефлегматор кожухотрубный 1,5 дюйма 1/2 под быстроъем (200 мм, 4 трубки 10 мм) | D31: шт. | E31: 1790 | F31: 2290 | I31: =(F31-E31)/E31*100 -> 27.93296089
A32: 01887 | B32: Дефлегматор кожухотрубный 2 дюйма штуцера 8 мм (200 мм, 7 трубки 12 мм) | D32: шт. | E32: 2050 | F32: 2490 | I32: =(F32-E32)/E32*100 -> 21.46341463
A33: РУ000033687 | B33: Дефлегматор кожухотрубный 2 дюйма 1/2 под быстроъем (200 мм, 7 трубки 12 мм) | D33: шт. | E33: 2390 | F33: 2890 | I33: =(F33-E33)/E33*100 -> 20.92050209
A34: 49052 | B34: Дефлегматор кожухотрубный 3 дюйма 1/2 под быстроъем (200 мм, 19 трубки 12 мм) | D34: шт. | E34: 4500 | F34: 5900 | I34: =(F34-E34)/E34*100 -> 31.11111111
A35: Царги
A36: 02713 | B36: Царга 1,5 дюйма 300 мм | D36: шт. | E36: 750 | F36: 990 | H36: Описание на сайте | I36: =(F36-E36)/E36*100 -> 32
A37: 02716 | B37: Царга 1,5 дюйма 500 мм | D37: шт. | E37: 910 | F37: 1200 | I37: =(F37-E37)/E37*100 -> 31.86813187
A38: 02714 | B38: Царга 1,5 дюйма 700 мм | D38: шт. | E38: 1140 | F38: 1500 | I38: =(F38-E38)/E38*100 -> 31.57894737
A39: 02712 | B39: Царга 1,5 дюйма 1000 мм | D39: шт. | E39: 1290 | F39: 1800 | I39: =(F39-E39)/E39*100 -> 39.53488372
A40: 00616 | B40: Царга 1,5 дюйма 300 мм под термометр | D40: шт. | E40: 880 | F40: 1320 | H40: Описание на сайте | I40: =(F40-E40)/E40*100 -> 50
A41: 00755 | B41: Царга 1,5 дюйма 500 мм под термометр | D41: шт. | E41: 1040 | F41: 1390 | I41: 33.65384615
A42: 00617 | B42: Царга 1,5 дюйма 700 мм под термометр | D42: шт. | E42: 1270 | F42: 1690 | I42: 33.07086614
A43: 02267 | B43: Царга 1,5 дюйма 1000 мм под термометр | D43: шт. | E43: 1420 | F43: 1930 | I43: 35.91549296
A44: 02715 | B44: Царга 2 дюйма 300 мм | D44: шт. | E44: 970 | F44: 1420 | H44: Описание на сайте | I44: =(F44-E44)/E44*100 -> 46.39175258
A45: 02711 | B45: Царга 2 дюйма 500 мм | D45: шт. | E45: 1140 | F45: 1490 | I45: 30.70175439
A46: 02717 | B46: Царга 2 дюйма 700 мм | D46: шт. | E46: 1260 | F46: 1780 | I46: 41.26984127
A47: 01530 | B47: Царга 2 дюйма 1000 мм | D47: шт. | E47: 1510 | F47: 1990 | I47: 31.78807947
A48: 00756 | B48: Царга 2 дюйма 300 мм под термометр | D48: шт. | E48: 1100 | F48: 1550 | H48: Описание на сайте | I48: 40.90909091
A49: 00309 | B49: Царга 2 дюйма 500 мм под термометр | D49: шт. | E49: 1270 | F49: 1690 | I49: 33.07086614
A50: 00458 | B50: Царга 2 дюйма 700 мм под термометр | D50: шт. | E50: 1390 | F50: 1890 | I50: 35.97122302
A51: 00157 | B51: Царга 2 дюйма 1000 мм под термометр | D51: шт. | E51: 1640 | F51: 2120 | I51: 29.26829268
A52: 00673 | B52: Царга 3 дюйма 300 мм | D52: шт. | E52: 1740 | F52: 2500 | H52: Описание на сайте | I52: 43.67816092
A53: 00669 | B53: Царга 3 дюйма 500 мм | D53: шт. | E53: 2260 | F53: 2990 | I53: 32.30088496
A54: 48563 | B54: Царга 3 дюйма 700 мм | D54: шт. | E54: 2790 | F54: 3750 | I54: 34.40860215
A55: 00694 | B55: Царга 3 дюйма 1000 мм | D55: шт. | E55: 3060 | F55: 3990 | I55: 30.39215686
A56: 00677 | B56: Царга 3 дюйма, под термометр 300 мм | D56: шт. | E56: 1890 | F56: 2650 | H56: Описание на сайте | I56: 40.21164021
B57: Царга 3 дюйма, под термометр 500 мм | D57: шт. | E57: 2410 | F57: 3140 | I57: 30.29045643
B58: Царга 3 дюйма, под термометр 700 мм | D58: шт. | E58: 2940 | F58: 3900 | I58: 32.65306122
A59: 00686 | B59: Царга 3 дюйма, под термометр 1000 мм | D59: шт. | E59: 3210 | F59: 4140 | I59: 28.97196262
A60: 00597 | B60: Царга стеклянная 1,5 дюйма 370 мм | D60: шт. | E60: 2800 | F60: 3990 | H60: Описание на сайте | I60: 42.5
A61: 00598 | B61: Царга стеклянная 2 дюйма 370 мм | D61: шт. | E61: 3500 | F61: 4990 | I61: 42.57142857
A62: 02376 | B62: Царга медная 1,5 дюйма 300 мм | D62: шт. | E62: 1490 | F62: 2590 | H62: Описание на сайте | I62: 73.82550336
A63: 01175 | B63: Царга медная 1,5 дюйма 500 мм | D63: шт. | E63: 1990 | F63: 2990 | I63: 50.25125628
A64: 02377 | B64: Царга медная 2 дюйма 300 мм | D64: шт. | E64: 2290 | F64: 3890 | H64: Описание на сайте | I64: 69.86899563
A65: 01176 | B65: Царга медная 2 дюйма 500 мм | D65: шт. | E65: 3290 | F65: 4790 | I65: 45.59270517
B66: Колпачковая колонна медная, тарелки 1,5 дюйма (51 мм), 4 уровня | D66: шт. | E66: 7590 | F66: 9900 | I66: 30.43478261
A67: 00675 | B67: Колпачковая колонна медная, тарелки 2 дюйма (51 мм), 4 уровня | D67: шт. | E67: 8990 | F67: 11990 | I67: 33.37041157
A68: 00593 | B68: Фиксатор сетки Панченкова 1,5 дюйма | D68: шт. | E68: 530 | F68: 790 | I68: 49.05660377
A69: 00594 | B69: Фиксатор сетки Панченкова 2 дюйма | D69: шт. | E69: 590 | F69: 890 | I69: 50.84745763
A70: 48730 | B70: Концентратор флегмы 2 дюйма | D70: шт. | E70: 310 | F70: 450 | I70: 45.16129032
A71: Узлы отбора
A72: 48595 | B72: Узел отбора по жидкости с доохладителм и игольчатым краном (нерж.) 1,5 дюйма (Штуцера 8 мм) | D72: шт. | E72: 2660 | F72: 3790 | I72: =(F72-E72)/E72*100 -> 42.48120301
A73: 00356 | B73: Узел отбора по жидкости с доохладителм и игольчатым краном (нерж.) 1,5 дюйма (резьба 1/2 под быстросъем) | D73: шт. | E73: 2790 | F73: 3990 | I73: =(F73-E73)/E73*100 -> 43.01075269
A74: 48596 | B74: Узел отбора по жидкости с доохладителм и игольчатым краном (нерж.) 2 дюйма (Штуцера 8 мм) | D74: шт. | E74: 2790 | F74: 3990 | I74: =(F74-E74)/E74*100 -> 43.01075269
A75: 01976 | B75: Узел отбора по жидкости с доохладителм и игольчатым краном (нерж.) 2 дюйма (резьба 1/2 под быстросъем) | D75: шт. | E75: 2990 | F75: 4390 | I75: 46.82274247
B76: Узел отбора по жидкости с доохладителм и игольчатым краном (нерж.) 3 дюйма (Штуцера 8 мм) | D76: шт. | E76: 3500 | F76: 4900 | I76: =(F76-E76)/E76*100 -> 40
A77: 00437 | B77: Узел отбора по жидкости с доохладителм и игольчатым краном (нерж.) 3 дюйма (резьба 1/2 под быстросъем) | D77: шт. | E77: 3650 | F77: 5400 | I77: 47.94520548
B78: Узел отбора по жидкости 1,5 дюйма,резьба 1/4 | D78: шт. | E78: 1150 | F78: 1590 | H78: Описание на сайте | I78: =(F78-E78)/E78*100 -> 38.26086957
A79: 00698 | B79: Узел отбора по жидкости 2 дюйма, резьба 1/4 | D79: шт. | E79: 1240 | F79: 1780 | I79: 43.5483871
B80: Узел отбора по жидкости 3 дюйма, резьба 1/4 | D80: шт. | E80: 1940 | F80: 2500 | I80: 28.86597938
A81: 01550 | B81: Узел отбора по жидкости 1,5 дюйма, штуцер 8 мм | D81: шт. | E81: 1100 | F81: 1400 | I81: 27.27272727
A82: 01551 | B82: Узел отбора по жидкости 2 дюйма, штуцер 8 мм | D82: шт. | E82: 1190 | F82: 1590 | I82: 33.61344538
B83: Узел отбора по жидкости 3 дюйма, штуцер 8 мм | D83: шт. | E83: 1810 | F83: 2350 | I83: 29.83425414
A84: 00752 | B84: Узел отбора по пару 1,5 дюйма | D84: шт. | E84: 2970 | F84: 4390 | I84: 47.81144781
A85: 00751 | B85: Узел отбора по пару 2 дюйма | D85: шт. | E85: 3350 | F85: 4990 | I85: 48.95522388
B86: Узел отбора по пару 3 дюйма | D86: шт. | E86: 5690 | F86: 7990 | I86: 40.42179262
A87: 48603 | B87: Универсальный узел отбора по жидкости и пару 1,5 дюйма | D87: шт. | E87: 4460 | F87: 5900 | I87: =(F87-E87)/E87*100 -> 32.28699552
A88: 48602 | B88: Универсальный узел отбора по жидкости и пару 2 дюйма | D88: шт. | E88: 4840 | F88: 6500 | I88: 34.29752066
A89: Отводы к колоннам
A90: 02729 | B90: Отвод на 90° к колонне на 1.5 дюйма | D90: шт. | E90: 490 | F90: 750 | H90: Описание на сайте | I90: =(F90-E90)/E90*100 -> 53.06122449
A91: 02730 | B91: Отвод на 90° к колонне на 2 дюйма | D91: шт. | E91: 590 | F91: 850 | I91: 44.06779661
A92: 48707 | B92: Отвод на 90° к колонне на 3 дюйма | D92: шт.
A93: 02731 | B93: Отвод на 90° со штуцером под термометр к колонне на 1.5 дюйма | D93: шт. | E93: 640 | F93: 880 | I93: 37.5
A94: 01892 | B94: Отвод на 90° со штуцером под термометр к колонне на 2 дюйма | D94: шт. | E94: 740 | F94: 990 | I94: 33.78378378
A95: 48708 | B95: Отвод на 90° со штуцером под термометр к колонне на 3 дюйма | D95: шт.
A96: Джин-корзины, Вкладыши Экстрактор Сокслета
A97: РУ0002258 | B97: Джин-корзина Тип "S" 1.5 дюйма с краном для слива | D97: шт. | E97: 2950 | F97: 3890 | I97: =(F97-E97)/E97*100 -> 31.86440678
A98: РУ00001447 | B98: Джин-корзина Тип "S" 2 дюйма с краном для слива | D98: шт. | E98: 3560 | F98: 4790 | I98: 34.5505618
A99: РУ00002256 | B99: Джин-корзина Тип "К" 1.5 дюйма с краном для слива | D99: шт. | E99: 3075 | F99: 3990 | H99: Описание на сайте | I99: 29.75609756
A100: РУ0000447 | B100: Джин-корзина Тип "К" 2 дюйма с краном для слива | D100: шт. | E100: 3690 | F100: 4890 | I100: 32.5203252
A101: РУ003664 | B101: Вкладыш в джин корзину или диоптр 1,5 дюйма | D101: шт. | E101: 510 | F101: 790 | H101: Описание на сайте | I101: 54.90196078
A102: РУ00367521 | B102: Вкладыш в джин корзину или диоптр 2 дюйма | D102: шт. | E102: 780 | F102: 990 | I102: 26.92307692
A103: ЗА00066887 | B103: Экстрактор Сокслета 2 дюйма для быстрого получения ароматных настоек | D103: шт. | E103: 2890 | F103: 3590 | H103: Описание на сайте | I103: 24.22145329
B104: Экстрактор Сокслета 2 дюйма для быстрого получения ароматных настоек с ситом-вкладышем | D104: шт. | E104: 3490 | F104: 4210 | I104: =(F104-E104)/E104*100 -> 20.63037249
A105: Диоптры, Диоптры с узлом отбора
A106: 02709 | B106: Диоптр смотровой, 1,5 дюйма | D106: шт. | E106: 1430 | F106: 1740 | I106: 21.67832168
A107: 02710 | B107: Диоптр смотровой, 2 дюйма | D107: шт. | E107: 1700 | F107: 2200 | I107: 29.41176471
A108: 00654 | B108: Диоптр смотровой, 3 дюйма | D108: шт. | E108: 2400 | F108: 2950 | I108: 22.91666667
A109: 02911 | B109: Диоптр смотровой LX 5, 2 дюйма | D109: шт. | E109: 1390 | F109: 1990 | I109: 43.16546763
A110: 00591 | B110: Диоптр 1,5 дюйма с узлом отбора | D110: шт. | E110: 3390 | F110: 4590 | H110: Описание на сайте | I110: 35.39823009
A111: 00592 | B111: Диоптр 2 дюйма с узлом отбора | D111: шт. | E111: 4090 | F111: 4990 | I111: 22.00488998
A112: Дистилляторы без куба Сделай-Дома (Подойдут для любых кубов и автоклавов)
A113: 48671 | B113: Насадка для дистиляции внутренняя резьба 1/2 дюйма (Комплектация) | D113: шт. | E113: 2700 | F113: 3600 | H113: Описание на сайте | I113: =(F113-E113)/E113*100 -> 33.33333333
A114: 48670 | B114: Насадка для дистиляции, внешняя резьба 1/2 дюйма (Комплектация) | D114: шт. | E114: 2700 | F114: 3600 | I114: 33.33333333
A115: 48630 | B115: Дистиллятор без куба Практик с одним сухопарником, внешняя резьба 1/2 дюйма (Комплектация) | D115: шт. | E115: 2700 | F115: 3600 | H115: Описание на сайте | I115: 33.33333333
A116: 48633 | B116: Дистиллятор без куба Практик с одним, внутренняя резьба 1/2 дюйма (Комплектация) | D116: шт. | E116: 2700 | F116: 3600 | I116: =(F116-E116)/E116*100 -> 33.33333333
A117: 48626 | B117: Дистиллятор без куба Практик с одним сухопарником, выход на кламп 1,5 дюйма (Комплектация) | D117: шт. | E117: 3460 | F117: 4500 | H117: Описание на сайте | I117: 30.05780347
A118: 48631 | B118: Дистиллятор без куба Практик с одним сухопарником, выход на кламп 2 дюйма (Комплектация) | D118: шт. | E118: 3530 | F118: 4990 | I118: 41.35977337
A119: 48634 | B119: Дистиллятор без куба Практик с двумя сухопарниками, внешняя резьба 1/2 дюйма (Комплектация) | D119: шт. | E119: 4110 | F119: 5590 | H119: Описание на сайте | I119: 36.00973236
A120: 48645 | B120: Дистиллятор без куба Практик с двумя сухопарниками, внутренняя резьба 1/2 дюйма | D120: шт. | E120: 4110 | F120: 5590 | I120: 36.00973236
B121: Дистиллятор без куба Практик с двумя сухопарниками, выход на кламп 1,5 дюйма (Комплектация) | D121: шт. | E121: 4390 | F121: 5990 | I121: 36.44646925
A122: РУ00000114 | B122: Дистиллятор без куба Изюмовка (Комплектация) | D122: шт. | E122: 5300 | F122: 6600 | I122: 24.52830189
A123: 28570 | B123: Дистиллятор колонного типа без куба Нобель 1.5 дюйма (Комплектация) | D123: шт. | E123: 3700 | F123: 4800 | I123: 29.72972973
A124: 48669 | B124: Бражная колонна Иртыш (Витязь 3) (Комплектация) | D124: шт. | E124: 3700 | F124: 4800 | I124: 29.72972973
A125: 48668 | B125: Дистиллятор без куба Миниколонна с сухопарником 2 дюйма (Комплектация) | D125: шт. | E125: 3970 | F125: 5190 | I125: 30.73047859
A126: 48666 | B126: Дистиллятор без куба Кама внешняя резьба 1/2 дюйма (Комплектация) | D126: шт. | E126: 2780 | F126: 3550 | I126: 27.69784173
A127: 48667 | B127: Дистиллятор без куба Кама Про внешняя резьба 1/2 дюйма (Комплектация) | D127: шт. | E127: 3480 | F127: 4590 | I127: 31.89655172
B128: Дистиллятор без куба Кама внешняя резьба 1/2 дюйма (Комплектация) | D128: шт. | E128: 4300 | I128: -100
A129: 49053 | B129: Змеевик деревенский в ведро внешняя резьба 1/2 дюйма | D129: шт. | E129: 4300 | F129: 5290 | I129: =(F129-E129)/E129*100 -> 23.02325581
A130: УМЕ034 | B130: Змеевик деревенский в ведро с крышкой-сухопарником внешняя резьба 1/2 дюйма | D130: шт. | E130: 5240 | F130: 6590 | I130: =(F130-E130)/E130*100 -> 25.76335878
A131: 00897 | B131: Крышка-сухопарник на банку | D131: шт. | E131: 670 | F131: 870 | I131: =(F131-E131)/E131*100 -> 29.85074627
A132: Переходники с одного размера на другой
A133: РУ000222669985 | B133: Переходник внешняя резьба 1/2 на кламп 1,5 дюйма | D133: шт. | E133: 550 | F133: 790 | I133: =(F133-E133)/E133*100 -> 43.63636364
A134: РУ000222647 | B134: Переходник внешняя резьба 1/2 на кламп 2 дюйма | D134: шт. | E134: 550 | F134: 790 | I134: =(F134-E134)/E134*100 -> 43.63636364
A135: РУ000011558 | B135: Переходник внутренняя резьба 1/2 на кламп 1,5 дюйма | D135: шт. | E135: 550 | F135: 790 | I135: =(F135-E135)/E135*100 -> 43.63636364
A136: РУ00065858 | B136: Переходник внутренняя резьба 1/2 на кламп 2 дюйма | D136: шт. | E136: 550 | F136: 790 | I136: =(F136-E136)/E136*100 -> 43.63636364
A137: РУ0932 | B137: Переходник с 1,5 на 2 | D137: шт. | E137: 510 | F137: 790 | I137: 54.90196078
A138: РУ9238 | B138: Переходник с 2 на 3 | D138: шт. | E138: 720 | F138: 1050 | I138: 45.83333333
A139: 48687 | B139: Переходник с 1,5 на 2 плавный переход | D139: шт. | E139: 590 | F139: 850 | I139: 44.06779661
A140: 48689 | B140: Переходник с 2 на 3 плавный переход | D140: шт. | E140: 1190 | F140: 1590 | I140: 33.61344538
A141: 01174 | B141: Переходник с клампа 1.5 дюйма на трубку 10 мм | D141: шт. | E141: 320 | F141: 490 | I141: 53.125
A142: 01173 | B142: Переходник с клампа 2 дюйма на трубку 10 мм | D142: шт. | E142: 320 | F142: 490 | I142: 53.125
A143: РУ00022288 | B143: Переходник с клампа 1.5 дюйма на трубку 10 мм (Эконом) | D143: шт. | E143: 150 | F143: 250 | I143: 66.66666667
A144: РУ000033366688 | B144: Переходник с клампа 2 дюйма на трубку 10 мм (Эконом) | D144: шт. | E144: 150 | F144: 250 | I144: 66.66666667
A145: РУ0342 | B145: Попугай на банку с пластиковой крышкой | D145: шт | E145: 1090 | F145: 1390 | I145: =(F145-E145)/E145*100 -> 27.52293578
A146: РУ0234 | B146: Устройство непрерывного контроля (Попугай) на банку 88мм с металлической крышкой | D146: шт | E146: 1190 | F146: 1480 | I146: 24.3697479
A147: РУ03023 | B147: Устройство непрерывного контроля (Попугай) на банку с приемным стаканом (крышка диам. 88 мм) | D147: шт | E147: 1390 | F147: 1790 | I147: 28.77697842
A148: РУ10159 | B148: Устройство непрерывного контроля (Попугай) | D148: шт | E148: 990 | F148: 1490 | I148: 50.50505051
A149: РУ0923 | B149: Устройство непрерывного контроля (Попугай) эконом под 3-х литровую банку | D149: шт | E149: 900 | F149: 1290 | I149: 43.33333333
A150: РУ00324 | B150: Устройство непрерывного контроля (Попугай) подвесной | D150: шт | E150: 1290 | F150: 1790 | I150: 38.75968992
A151: РУ0923 | B151: Устройство непрерывного контроля (Попугай) подвесной с краном 1/4 | D151: шт | E151: 1390 | F151: 1990 | I151: 43.16546763
A152: Угольный колонны
A153: 27220 | B153: Угольная колонна 2" классическая | D153: шт. | E153: 1200 | F153: 1670 | I153: =(F153-E153)/E153*100 -> 39.16666667
A154: 27210 | B154: Угольная колонна 2 дюйма герметичная сверху кламп | D154: шт. | E154: 1790 | F154: 2490 | I154: 39.10614525
A155: 27200 | B155: Угольная колонна 1,5" герметичная сверху кламп | D155: шт. | E155: 1690 | F155: 2390 | I155: 41.42011834

Sheet Расходные материалы
A2: Сделай-Дома.ру 88007001323 (Бесплатно) +79642506913 (Звонки и Ватсап) manager@sdelai-doma.ru
B4: Наименование | C4: Фото | E4: Ваша цена | F4: РРЦ | G4: Заказ | H4: Ссылки на описания | I4: Наценка, %
A5: Переходники на кран
A6: 10176 | B6: Переходник на кран универсальный 8 мм металлическая резьба | D6: шт. | E6: 170 | F6: 260 | H6: Описание на сайте | I6: =(F6-E6)/E6*100 -> 52.94117647
A7: 10177 | B7: Переходник на кран универсальный 10 мм металлическая резьба | D7: шт. | E7: 170 | F7: 260 | I7: =(F7-E7)/E7*100 -> 52.94117647
A8: 03128 | B8: Металлический переходник 8 мм | D8: шт. | E8: 129 | F8: 250 | I8: 93.79844961
A9: 10179 | B9: Металлический переходник 10 мм | D9: шт. | E9: 129 | F9: 250 | I9: 93.79844961
A10: 48681 | B10: Металлический переходник 12 мм | D10: шт. | E10: 129 | F10: 250 | I10: 93.79844961
A11: 03127 | B11: Переходник металлический для всех переходников | D11: шт. | E11: 55 | F11: 79 | I11: 43.63636364
A12: Подлючение воды, крыны, быстросъемы, тройники, зажимы
A13: 48728 | B13: Зажим гофмана Эконом | D13: шт. | E13: 57 | F13: 85 | I13: =(F13-E13)/E13*100 -> 49.12280702
A14: 10231 | B14: Зажим гофмана | D14: шт. | E14: 69 | F14: 99 | I14: 43.47826087
A15: 01307 | B15: Зажим гофмана Проффи | D15: шт. | E15: 130 | F15: 190 | I15: 46.15384615
A16: Латунь
A17: 01491 | B17: Переходник МАМА латунный, резьба 1/2, штуцер 8 мм | D17: шт. | E17: 60 | F17: 90 | I17: =(F17-E17)/E17*100 -> 50
A18: 01492 | B18: Переходник МАМА латунный, резьба 1/2, штуцер 10 мм | D18: шт. | E18: 60 | F18: 90 | I18: =(F18-E18)/E18*100 -> 50
A19: 48726 | B19: Переходник МАМА латунный, резьба 1/2, штуцер 12 мм | D19: шт. | E19: 60 | F19: 90 | I19: =(F19-E19)/E19*100 -> 50
A20: 03139 | B20: Тройник (латунь) все выходы 8 мм | D20: шт. | E20: 55 | F20: 75 | I20: =(F20-E20)/E20*100 -> 36.36363636
A21: 03132 | B21: Тройник (латунь) все выходы 10 мм | D21: шт. | E21: 55 | F21: 75 | I21: 36.36363636
A22: 03131 | B22: Тройник (латунь) все выходы 12 мм | D22: шт. | E22: 55 | F22: 75 | I22: 36.36363636
A23: 03140 | B23: Переходник латунный с 8 мм на 8 мм | D23: шт. | E23: 39 | F23: 70 | I23: =(F23-E23)/E23*100 -> 79.48717949
A24: 03129 | B24: Переходник латунный с 10 мм на 10 мм | D24: шт. | E24: 39 | F24: 70 | I24: 79.48717949
A25: 48725 | B25: Переходник латунный с 12 мм на 12 мм | D25: шт. | E25: 39 | F25: 70 | I25: 79.48717949
A26: 03140 | B26: Переходник латунный с 6 мм на 8 мм | D26: шт. | E26: 39 | F26: 70 | I26: =(F26-E26)/E26*100 -> 79.48717949
A27: 03129 | B27: Переходник латунный с 8 мм на 10 мм | D27: шт. | E27: 39 | F27: 70 | I27: 79.48717949
A28: 48727 | B28: Переходник латунный с 10 мм на 12 мм | D28: шт. | E28: 39 | F28: 70 | I28: 79.48717949
A29: 01716 | B29: Быстросъемная гайка (мама) 10-6 (1/2 резьба) | D29: шт. | E29: 75 | F29: 135 | I29: 80
A30: 03133 | B30: Быстросъемная гайка (мама) 12х8 (1/2 резьба) | D30: шт. | E30: 75 | F30: 135 | I30: 80
A31: Пластик
A32: 48601 | B32: Игольчатый кран, пластик (тонкой настройки) 10х6 Под пневмошланг 10х6 | D32: шт. | E32: 175 | F32: 230 | I32: =(F32-E32)/E32*100 -> 31.42857143
A33: 48600 | B33: Игольчатый кран, пластик (тонкой настройки) 12х8. Под пневмошланг 12х8 | D33: шт. | E33: 175 | F33: 230 | I33: 31.42857143
A34: 02472 | B34: Тройник для пневмошлангов Y-образный 10х6 | D34: шт. | E34: 45 | F34: 69 | I34: 53.33333333
A35: 03130 | B35: Тройник, пластик под пневмошланг Y-образный 12х8 | D35: шт. | E35: 45 | F35: 69 | I35: 53.33333333
A36: 00252 | B36: Тройник для пневмошлангов Т-образный 10х6 | D36: шт. | E36: 45 | F36: 69 | I36: 53.33333333
A37: 00253 | B37: Тройник для пневмошлангов Т-образный 12х8 | D37: шт. | E37: 45 | F37: 69 | I37: 53.33333333
A38: 48776 | B38: Переходник быстросъемный 10-10 мм | D38: шт. | E38: 45 | F38: 69 | I38: 53.33333333
A39: 02472 | B39: Переходник быстросъемный 10-12 мм | E39: 45 | F39: 69 | I39: 53.33333333
A40: Краны
A41: 02735 | B41: Клапан избыточного давления 13 мм | D41: шт. | E41: 69 | F41: 120 | I41: =(F41-E41)/E41*100 -> 73.91304348
A42: 01348 | B42: Ниппель для установки термометра 8мм | D42: шт. | E42: 60 | F42: 99 | I42: 65
A43: 02734 | B43: Ниппель для установки термометра 12мм | D43: шт. | E43: 60 | F43: 99 | I43: 65
A44: 02045 | B44: Кран никелированный сливной (мама-папа) 1/2 | D44: шт. | E44: 190 | F44: 290 | I44: =(F44-E44)/E44*100 -> 52.63157895
A45: 00596 | B45: Кран никелированный сливной (папа на шланг) 1/4 | D45: шт. | E45: 105 | F45: 168 | I45: 60
B46: Кран Игольчатый под трубку 8 мм (латунь) | D46: шт. | E46: 160 | F46: 230 | I46: 43.75
B47: Кран Игольчатый под трубку 10мм (латунь) | D47: шт. | E47: 160 | F47: 230 | I47: 43.75
A48: 03137 | B48: Кран игольчатый (латунь) с трубками 8мм | D48: шт. | E48: 220 | F48: 290 | I48: 31.81818182
A49: 03138 | B49: Кран игольчатый (латунь) с трубками 10мм | D49: шт. | E49: 220 | F49: 290 | I49: 31.81818182
A50: 01674 | B50: Кран игольчатый, металлический, 6 мм с трубками | D50: шт. | E50: 830 | F50: 1090 | I50: 31.3253012
B51: Кран игольчатый, нерж. сталь, резьба 1/4, папа | D51: шт. | E51: 570 | F51: 690 | I51: 21.05263158
B52: Кран игольчатый, нерж. сталь, резьба 1/2, мама | D52: шт. | E52: 790 | F52: 990 | I52: 25.3164557
B53: Кран игольчатый, нерж. сталь, резьба 1/4, мама | D53: шт. | E53: 570 | F53: 690 | I53: 21.05263158
A54: Шланги ПВХ, шланги для быстросьемов
A55: 01670 | B55: Хомут с ключом 8-12 мм | D55: шт. | E55: 19 | F55: 25 | I55: =(F55-E55)/E55*100 -> 31.57894737
A56: 10326 | B56: Шланг ПВХ 6 мм | D56: п.м. | E56: 16.5 | F56: 35 | I56: 112.1212121
A57: 10327 | B57: Шланг ПВХ 8 мм | D57: п.м. | E57: 21 | F57: 39 | I57: 85.71428571
A58: 10328 | B58: Шланг ПВХ 10 мм | D58: п.м. | E58: 28 | F58: 39 | I58: 39.28571429
A59: 10329 | B59: Шланг ПВХ 12мм | D59: п.м. | E59: 56 | F59: 79 | I59: 41.07142857
A60: 00379 | B60: Трубка ПВХ d-6*2,0 мм (6/10) СИНЯЯ (для быстросьема 10) | D60: п.м. | E60: 69 | F60: 89 | I60: 28.98550725
A61: 00380 | B61: Трубка ПВХ d-6*2,0 мм (6/10) КРАСНАЯ (для быстросьема 10) | D61: п.м. | E61: 69 | F61: 89 | I61: 28.98550725
A62: 00381 | B62: Трубка ПВХ d-8*2,0 мм (8/12) КРАСНАЯ (для быстросьема 12) | D62: п.м. | E62: 74 | F62: 99 | I62: 33.78378378
A63: 00382 | B63: Трубка ПВХ d-8*2,0 мм (8/12) СИНЯЯ (для быстросьема 12) | D63: п.м. | E63: 74 | F63: 99 | I63: 33.78378378
B64: Шланг ПВХ 6 мм (Бобина 100 м) | D64: шт. | E64: 1650 | F64: 2300 | I64: 39.39393939
B65: Шланг ПВХ 8 мм (Бобина 100 м) | D65: шт. | E65: 2100 | F65: 2780 | I65: 32.38095238
B66: Шланг ПВХ 10 мм (Бобина 100 м) | D66: шт. | E66: 2800 | F66: 3700 | I66: 32.14285714
B67: Шланг ПВХ 12мм (Бобина 100 м) | D67: шт. | E67: 5600 | F67: 7600 | I67: 35.71428571
A68: 00379 | B68: Трубка ПВХ(6/10) СИНЯЯ (для быстросьема 10) длина 100 м | D68: шт. | E68: 6400 | F68: 7900 | H68: Описание на сайте | I68: 23.4375
A69: 00380 | B69: Трубка ПВХ (6/10) КРАСНАЯ (для быстросьема 10) длина 100 м | D69: шт. | E69: 6400 | F69: 7900 | I69: 23.4375
A70: 00381 | B70: Трубка ПВХ (8/12) КРАСНАЯ (для быстросьема 12) длина 100 м | D70: шт. | E70: 6900 | F70: 8400 | H70: Описание на сайте | I70: 21.73913043
A71: 00382 | B71: Трубка ПВХ (8/12) СИНЯЯ (для быстросьема 12) длина 100 м | D71: шт. | E71: 6900 | F71: 8400 | I71: 21.73913043
B72: Комплект для охлаждения самогонного аппарата На ПВХ 8 мм | D72: шт.
B73: Комплект охлаждения на быстросъемах 6-10 мм | D73: шт.
B74: Комплект охлаждения на быстросъемах 8-12 мм | D74: шт.
B75: Быстросъёмный комплект подключения 6-10 мм Полный | D75: шт.
A76: 48702 | B76: Быстросъёмный комплект подключения 8-12 мм Полный | D76: шт.
A77: 10330 | B77: Силиконовый шланг 6,0х1,5 мм | D77: п.м. | E77: 68 | F77: 100 | I77: 47.05882353
A78: 03151 | B78: Силиконовый шланг 8,0 х 1,5 мм | D78: п.м. | E78: 76 | F78: 110 | I78: 44.73684211
A79: 10331 | B79: Силиконовый шланг 10,0 х 1,5 мм | D79: п.м. | E79: 90 | F79: 120 | I79: 33.33333333
A80: 10332 | B80: Силиконовый шланг 12,0 х 2,0 мм | D80: п.м. | E80: 107 | F80: 149 | I80: 39.25233645
A81: 10333 | B81: Силиконовый шланг 16,0 х 2,0 мм | D81: п.м. | E81: 220 | F81: 290 | I81: 31.81818182
A82: Клампы и допы к ним
A83: 02721 | B83: Хомут (Кламп) 1,5 Дюйма (без прокладки) | D83: шт. | E83: 150 | F83: 250 | I83: =(F83-E83)/E83*100 -> 66.66666667
A84: 02723 | B84: Хомут (Кламп) 2 Дюйма (без прокладки) | D84: шт. | E84: 170 | F84: 280 | I84: 64.70588235
A85: 00267 | B85: Хомут (Кламп) 3 Дюйма (без прокладки) | D85: шт. | E85: 230 | F85: 340 | I85: 47.82608696
A86: 02725 | B86: Заглушка под кламп 1,5 | D86: шт. | E86: 100 | F86: 135 | I86: 35
A87: 02726 | B87: Заглушка под кламп 2 | D87: шт. | E87: 110 | F87: 150 | I87: 36.36363636
A88: 48686 | B88: Заглушка под кламп 3 | D88: шт. | E88: 180 | F88: 290 | I88: 61.11111111
A89: 02718 | B89: Патрубок(приварной с юбкой) 1,5 дюйма | D89: шт. | E89: 95 | F89: 190 | I89: 100
A90: 02722 | B90: Патрубок(приварной с юбкой) 2 дюйма | D90: шт. | E90: 125 | F90: 210 | I90: =(F90-E90)/E90*100 -> 68
A91: 00358 | B91: Патрубок(приварной с юбкой) 3 дюйма | D91: шт. | E91: 185 | F91: 320 | I91: =(F91-E91)/E91*100 -> 72.97297297
A92: 01375 | B92: Фланец (Кольцо) без патрубка 1,5 дюйма | D92: шт. | E92: 95 | F92: 175 | I92: =(F92-E92)/E92*100 -> 84.21052632
A93: 01376 | B93: Фланец (Кольцо) без патрубка 2 дюйма | D93: шт. | E93: 125 | F93: 190 | I93: 52
B94: Фланец (Кольцо) без патрубка 3 дюйма | D94: шт. | E94: 185 | F94: 260 | I94: 40.54054054
A95: 01549 | B95: Кламп в сборе 1,5 дюйма | D95: шт. | E95: 355 | F95: 590 | I95: 66.1971831
A96: 01623 | B96: Кламп в сборе 2 дюйма | D96: шт. | E96: 435 | F96: 690 | I96: 58.62068966
B97: Кламп в сборе 3 дюйма | D97: шт. | E97: 615 | F97: 890 | I97: 44.71544715
A98: 02692 | B98: Переходник под Тэн 2 дюйма, | D98: шт. | E98: 390 | F98: 530 | I98: =(F98-E98)/E98*100 -> 35.8974359
A99: Уплотнительные прокладки, фумлента
A100: 02719 | B100: Силиконовая прокладка под кламп 1,5 дюйма | D100: шт. | E100: 16 | F100: 25 | I100: =(F100-E100)/E100*100 -> 56.25
A101: 02720 | B101: Силиконовая прокладка под кламп 2 дюйма | D101: шт. | E101: 22 | F101: 30 | I101: 36.36363636
A102: 00268 | B102: Силиконовая прокладка под кламп 3 дюйма | D102: шт. | E102: 37 | F102: 50 | I102: 35.13513514
A103: 02473 | B103: Силиконовая прокладка с сеточкой для СПН 1,5 дюйма | D103: шт. | E103: 100 | F103: 165 | I103: 65
A104: 02577 | B104: Силиконовая прокладка с сеточкой для СПН 2 дюйма | D104: шт. | E104: 120 | F104: 196 | I104: 63.33333333
A105: 00590 | B105: Силиконовая прокладка с сеточкой для СПН 3 дюйма | D105: шт. | E105: 155 | F105: 250 | I105: 61.29032258
A106: 10180 | B106: Прокладка для уплотнения фляг 38-40 л. (резина) | D106: шт | E106: 115 | F106: 190 | I106: 65.2173913
A107: 10181 | B107: Прокладка для уплотнения фляг 38-40 л. (силикон) 240 мм диаметр | D107: шт | E107: 250 | F107: 370 | I107: 48
A108: 48763 | B108: Прокладка для уплотнения фляг 25 л. (силикон) 190 мм | E108: 240 | F108: 350 | I108: 45.83333333
A109: 00732 | B109: Прокладка для Афганского казана 5 л. | D109: шт | E109: 150 | F109: 230 | I109: 53.33333333
A110: 00733 | B110: Прокладка для Афганского казана 8 л. | D110: шт | E110: 150 | F110: 230 | I110: 53.33333333
A111: 00734 | B111: Прокладка для Афганского казана от 10 л. и выше | D111: шт | E111: 150 | F111: 230 | I111: 53.33333333
A112: 49054 | B112: Прокладка под бак Практик Пищевая резина | D112: шт. | E112: 120 | F112: 180 | I112: =(F112-E112)/E112*100 -> 50
A113: 49055 | B113: Прокладка под бак Практик силикон 3мм | D113: шт. | E113: 190 | F113: 260 | I113: 36.84210526
A114: 49076 | B114: Прокладка под крышку сух. силикон (Наши аппараты, Дымка, Германия) | D114: шт. | E114: 69 | F114: 149 | I114: 115.942029
B115: Прокладка под крышку сух. пищ.резина (Наши аппараты, Дымка, Германия) | D115: шт. | E115: 45 | F115: 76 | I115: 68.88888889
B116: Прокладка для банки для крышки сухопарника | D116: шт. | E116: 50 | F116: 70 | I116: 40
A117: РУ000256987 | B117: Силиконовое кольцо на 20-25 л, П-обр. профиль, ширина 9 мм, стенка 3,5 мм | D117: шт. | E117: 270 | F117: 440 | I117: 62.96296296
A118: РУ000236985 | B118: Силиконовое кольцо на 30-37 л, П-обр. профиль, ширина 9 мм, стенка 3,5 мм | D118: шт. | E118: 290 | F118: 480 | I118: =(F118-E118)/E118*100 -> 65.51724138
A119: РУ000258963 | B119: Силиконовое кольцо на 50 л, П-обр. профиль, ширина 9 мм, стенка 3,5 мм | D119: шт. | E119: 320 | F119: 540 | I119: 68.75
A120: 02097 | B120: Силиконовое уплотнение для автоклава Ханхи (Hanhi) и Фансел 2 | D120: шт. | E120: 240 | F120: 390 | I120: =(F120-E120)/E120*100 -> 62.5
A121: 48769 | B121: Уплотнение для автоклава Беларусь Люкс Белый | D121: шт. | E121: 140 | F121: 240 | I121: =(F121-E121)/E121*100 -> 71.42857143
A122: 00232 | B122: Прокладка из термоустойчивой резины в крышку автоклава Белорусский Серый | D122: шт. | E122: 120 | F122: 240 | I122: =(F122-E122)/E122*100 -> 100
A123: 03152 | B123: Пластина 100 на 100 мм. 3 мм толщина (Для вырезания редких прокладок) | E123: 140 | F123: 200 | I123: =(F123-E123)/E123*100 -> 42.85714286
A124: 01237 | B124: Пластина 200 на 200 мм. 3 мм толщина (Для вырезания редких прокладок) | E124: 490 | F124: 675 | I124: =(F124-E124)/E124*100 -> 37.75510204
A125: 00601 | B125: Лента фум 8м х 12мм | D125: шт | E125: 25 | F125: 40 | I125: 60
A126: Гидрозатворы
A127: 10182 | B127: Гидрозатвор S-обр. с резинкой | D127: шт. | E127: 45 | F127: 85 | I127: 88.88888889
A128: 10183 | B128: Гидрозатвор пластиковый (3-камерный, бесшумный) с резинкой | D128: шт. | E128: 64 | F128: 115 | I128: 79.6875
A129: 03090 | B129: Крышка на банку с гидрозатвором с трубкой | D129: шт. | E129: 67 | F129: 110 | I129: 64.17910448
A130: 01158 | B130: Крышка для банки с гидрозатвором | D130: шт. | E130: 29 | F130: 50 | I130: 72.4137931
A131: 02381 | B131: Уплотнитель под гидрозатвор для бутылей 19л | D131: шт. | E131: 179 | F131: 270 | I131: 50.83798883
A132: 03089 | B132: Гидрозатвор для бутылей 19л | D132: шт. | E132: 69 | F132: 130 | I132: 88.4057971
A133: Нагреватель для браги
A134: 01601 | B134: Нагреватель для браги, Xilong AT-700 | D134: шт | E134: 490 | F134: 690 | I134: 40.81632653
A135: Уголь и бентонит
A136: 10185 | B136: Кокосовый уголь активированный 0,5 кг | D136: шт. | E136: 180 | F136: 280 | I136: 55.55555556
A137: 48742 | B137: Кокосовый уголь активированный 1 кг | D137: шт. | E137: 290 | F137: 550 | I137: 89.65517241
A138: 00699 | B138: Активированный древесный уголь Березняк, 150 г | D138: шт. | E138: 170 | F138: 250 | I138: 47.05882353
A139: 00700 | B139: Активированный древесный уголь Березняк, 500 г | D139: шт. | E139: 310 | F139: 460 | I139: =(F139-E139)/E139*100 -> 48.38709677
A140: 00739 | B140: Сорбент для очистки спиртовых дистиллятов "Чистогонъ" 150 гр. | D140: шт. | E140: 150 | F140: 190 | I140: 26.66666667
A141: 00084 | B141: Сорбент для очистки спиртовых дистиллятов "Чистогонъ" 350 гр. | D141: шт. | E141: 280 | F141: 395 | I141: 41.07142857
A142: 03098 | B142: Бентонит Фасовка в ведро 100 гр | D142: шт. | E142: 50 | F142: 75 | I142: 52.54237288
A143: 03096 | B143: Бентонит Фасовка в ведро 200 гр | D143: шт. | E143: 60 | F143: 85 | I143: 89.87341772
A144: 00475 | B144: Бентонит Фасовка в ведро 500 гр. | D144: шт. | E144: 75 | F144: 100 | I144: 175.2293578
A145: Угольный колонны, Фильтровальные установки, базуки, кувшины
A146: 27220 | B146: Угольная колонна 2" классическая | D146: шт. | E146: 1200 | F146: 1670 | I146: 39.16666667
A147: 27210 | B147: Угольная колонна 2" герметичная сверху кламп | D147: шт. | E147: 1790 | F147: 2490 | I147: 39.10614525
A148: 27200 | B148: Угольная колонна 1,5" герметичная сверху кламп | D148: шт. | E148: 1690 | F148: 2390 | I148: 41.42011834
A149: 10188 | B149: Кувшин Макарыч | D149: шт. | E149: 990 | F149: 1190 | I149: 20.2020202
A150: 10189 | B150: Картридж к кувшину Макарыч | D150: шт. | E150: 390 | F150: 490 | I150: 25.64102564
A151: 01240 | B151: Фильтрующее устройство АЛКОВАР | D151: шт. | E151: 4990 | F151: 6490 | I151: 30.06012024
A152: КНИГИ
A153: 02991 | B153: 60 страниц лучших рецептов (Пивоварение) | D153: шт. | E153: 49 | F153: 70 | H153: Описание на сайте | I153: 42.85714286
A154: 02989 | B154: 60 страниц лучших рецептов (Копчение рыбы) | D154: шт. | E154: 49 | F154: 70 | I154: 42.85714286
A155: 02990 | B155: 60 страниц лучших рецептов (Копчение мяса) | D155: шт. | E155: 49 | F155: 70 | I155: 42.85714286
A156: 02988 | B156: 60 страниц лучших рецептов (Копчение колбасы) | D156: шт. | E156: 39 | F156: 70 | I156: 79.48717949
A157: 10219 | B157: Лучшие рецепты Вино Настойка Самогон (Лужковская) | D157: шт | E157: 49 | F157: 80 | I157: 63.26530612
A158: Наклейки на бутылки
A159: 10226 | B159: Домашнее пиво 65*95 мм | D159: 10 шт. | E159: 36 | F159: 49 | H159: Описание на сайте | I159: 36.11111111
A160: 10224 | B160: Домашнее вино (светлые) 65*95 мм | D160: 10 шт. | E160: 36 | F160: 49 | I160: 36.11111111
A161: 10225 | B161: Домашнее вино (темные) 65*95 мм | D161: 10 шт. | E161: 36 | F161: 49 | I161: 36.11111111
A162: 10228 | B162: Домашний коньяк 65*95 мм | D162: 10 шт. | E162: 36 | F162: 49 | I162: 36.11111111
A163: 10227 | B163: Домашний виски 65*95 мм | D163: 10 шт. | E163: 36 | F163: 49 | I163: 36.11111111
A164: 10229 | B164: Наливка 65*95 мм | D164: 10 шт. | E164: 36 | F164: 49 | I164: 36.11111111
A165: 10230 | B165: Настойка 65*95 мм | D165: 10 шт. | E165: 36 | F165: 49 | I165: 36.11111111
A166: 03157 | B166: Домашнее пиво 70*105 мм | D166: 10 шт. | E166: 49 | F166: 69 | H166: Описание на сайте | I166: 40.81632653
A167: 03155 | B167: Домашнее вино(светлые) 70*105 мм | D167: 10 шт. | E167: 49 | F167: 69 | I167: 40.81632653
A168: 03156 | B168: Домашнее вино(темные) 70*105 мм | D168: 10 шт. | E168: 49 | F168: 69 | I168: =(F168-E168)/E168*100 -> 40.81632653
A169: 03159 | B169: Домашний коньяк 70*105 мм | D169: 10 шт. | E169: 49 | F169: 69 | I169: 40.81632653
A170: 03158 | B170: Домашний виски 70*105 мм | D170: 10 шт. | E170: 49 | F170: 69 | I170: 40.81632653
A171: 03160 | B171: Наливка 70*105 мм | D171: 10 шт. | E171: 49 | F171: 69 | I171: 40.81632653
A172: 03161 | B172: Настойка 70*105 мм | D172: 10 шт. | E172: 49 | F172: 69 | I172: 40.81632653
A173: Регулярная проволочная насадка
A174: 01339 | B174: Регулярная проволочная насадка Панченкова Нерж ПРЕМИУМ 40см (110 г/м) | D174: 40см. | E174: 94 | F174: 160 | I174: 70.21276596
A175: 01179 | B175: Регулярная проволочная насадка Панченкова Нерж ПРЕМИУМ 1м (110 г/м) | D175: 100см. | E175: 185 | F175: 250 | I175: 35.13513514
A176: 01675 | B176: Регулярная проволочная насадка Панченкова медная ПРЕМИУМ 50см 150 г/м; | D176: 50см. | E176: 240 | F176: 320 | I176: 33.33333333
A177: 01178 | B177: Регулярная проволочная насадка Панченкова медная ПРЕМИУМ 1м 150 г/м; | D177: 100см. | E177: 340 | F177: 450 | I177: 32.35294118
A178: 01847 | B178: Насадка РПН (комбинированная НЕРЖ/МЕДЬ) ПРЕМИУМ 50см 130 г/м; | D178: 50см. | E178: 150 | F178: 270 | I178: 80
A179: 01846 | B179: Насадка РПН (комбинированная НЕРЖ/МЕДЬ) ПРЕМИУМ 1м 130 г/м; | D179: 100см. | E179: 280 | F179: 380 | I179: 35.71428571
A180: 00318 | B180: СПН Селиваненко 3,5х3,5 Медь (фасовка пластиковое ведро 0,5 кг) ~0,39 л. | D180: 0,5кг-0,39л | E180: 980 | F180: 1290 | I180: 31.63265306
A181: 03142 | B181: СПН Селиваненко 3,5х3,5 Нерж (фасовка пластиковое ведро 0,5 кг) ~0,53 л. | D181: 0,5кг-0,53л | E181: 890 | F181: 1190 | I181: 33.70786517
A182: 02473 | B182: Силиконовая прокладка с сеточкой для СПН 1,5 дюйма | D182: шт. | E182: 100 | F182: 165 | I182: =(F182-E182)/E182*100 -> 65
A183: Вакуумные наборы "ВАКС"
A184: 48500 | B184: Вакуумный набор ВАКС 82Н | D184: шт. | E184: 369.57 | F184: 529 | H184: Описание на сайте | I184: 43.13932408
A185: 48510 | B185: Вакуумный набор ВАКС-02Н | D185: шт. | E185: 540 | F185: 690 | I185: 27.77777778
A186: 02066 | B186: Вакуумный набор в блистерной упаковке ВАКС 82БМ | D186: шт. | E186: 335.28 | F186: 459 | I186: 36.90050107
A187: 48520 | B187: Вакуумный набор ВАКС-03Н | D187: шт. | E187: 713.74 | F187: 1090 | I187: 52.71667554
A188: Компрессор для автономного охладжения
A189: 03480 | B189: Компрессор для автономного охлаждения (8W,600 л.ч) | D189: шт. | E189: 690 | F189: 990 | I189: 43.47826087
B190: Компрессор для автономного охлаждения (1000 л/с 8 Ват) | D190: шт. | E190: 890 | F190: 1190 | I190: 33.70786517

Sheet Плиты и тэны
A1: Сделай-Дома.ру 88007001323 (Бесплатно) +79642506913 (Звонки и Ватсап) manager@sdelai-doma.ru
B3: Наименование | C3: Фото | E3: Ваша цена | F3: РРЦ | G3: Заказ | H3: Ссылки на описания | I3: Наценка, %
A4: Индукционные плиты
A5: 38980 | B5: Индукционная плита Hotberg 3500B | D5: шт. | E5: 10590 | F5: 12990 | I5: =(F5-E5)/E5*100 -> 22.66288952
A6: 38050 | B6: Индукционная плита Hotberg 3500 А | D6: шт. | E6: 7590 | F6: 9500 | I6: 25.16469038
A7: 02224 | B7: Индукционная плита Hotberg 3500 С | D7: шт. | E7: 10990 | F7: 13400 | I7: 21.92902639
A8: 00757 | B8: Индукционная плита Hotberg 3500СX-33 | D8: шт. | E8: 16470 | F8: 19800 | I8: 20.21857923
A9: 02026 | B9: Индукционная плита Hotberg 3500X-33 | D9: шт. | E9: 18830 | F9: 22600 | I9: =(F9-E9)/E9*100 -> 20.0212427
A10: 02246 | B10: Индукционная плита IPLATE Alina 3500 Вт | D10: шт. | E10: 13800 | F10: 18990 | I10: 37.60869565
A11: 01919 | B11: Индукционная плита IPLATE YZ-T24, 2000Вт, таймер 24 часа, сенсорное управление | D11: шт. | E11: 4500 | F11: 5850 | I11: 30
A12: Стоп | B12: Плита индукционная безымпульсная с термощупом Iplate AT 2700 | D12: шт.
A13: Стоп | B13: Плита индукционная Iplate NORA 3500 | D13: шт.
A14: Тэны и регуляторы
A15: 01945 | B15: ТЭН 3 кВт с регулятором 4000W | D15: шт. | E15: 6280 | F15: 7590 | I15: 20.85987261
A16: 48420 | B16: ТЭН 3 кВт с регулятором GT-10000W | D16: шт. | E16: 6700 | F16: 8400 | I16: 25.37313433
B17: ТЭН 3 кВт из темной нержавейки и регулятором GT-10000W | D17: шт. | E17: 6300 | F17: 7780 | I17: 23.49206349
B18: ТЭН 3 кВт из темной нержавейки и регулятором ВТ-4000 | D18: шт. | E18: 5800 | F18: 7310 | I18: 26.03448276
A19: 48683 | B19: Тен 4,5 кВт с регулятором GT-10000W | D19: шт. | E19: 7000 | F19: 8900 | I19: 27.14285714
A20: 00432 | B20: ТЭН 3 кВт из темной нержавейки | D20: шт. | E20: 2390 | F20: 3400 | I20: 42.25941423
A21: 02639 | B21: ТЭН без терморегулятора 3 кВт | D21: шт. | E21: 2900 | F21: 3900 | I21: 34.48275862
A22: 02342 | B22: ТЭН без терморегулятора 4,5 кВт | D22: шт. | E22: 3100 | F22: 4200 | I22: 35.48387097
A23: 02593 | B23: ТЭН без терморегулятора 6 кВт Без вилки | D23: шт. | E23: 3100 | F23: 4200 | I23: 35.48387097
A24: 01901 | B24: Регулятор напряжения GT-10000W | D24: шт. | E24: 3990 | F24: 4990 | I24: 25.06265664
A25: 02689 | B25: Регулятор напряжения ВТ-4000 | D25: шт. | E25: 3490 | F25: 4200 | I25: =(F25-E25)/E25*100 -> 20.34383954
A26: 00544 | B26: Регулятор мощности 0-4 кВт | D26: шт. | E26: 920 | F26: 1310 | I26: =(F26-E26)/E26*100 -> 42.39130435

Sheet Автоклавы
A1: Сделай-Дома.ру 88007001323 (Бесплатно) +79642506913 (Звонки и Ватсап) manager@sdelai-doma.ru
B3: Наименование | C3: Фото | E3: Ваша цена | F3: РРЦ | G3: Заказ | H3: Ссылки на описания | I3: Наценка, %
A4: Актоклавы Вятка
A5: 49056 | B5: Автоклав Вятка 14л | D5: шт. | E5: 10370 | F5: 13990 | I5: =(F5-E5)/E5*100 -> 34.90838959
A6: 49057 | B6: Автоклав Вятка 23л | D6: шт. | E6: 12810 | F6: 17990 | I6: =(F6-E6)/E6*100 -> 40.43715847
A7: 49058 | B7: Коптильный набор для автоклавов Вятка 23 | D7: шт. | E7: 2990 | F7: 3890 | I7: 30.10033445
A8: Автоклавы "Заготовщик"
A9: 49059 | B9: АВТОКЛАВ 18 литров (1 фальшдно) | D9: шт. | E9: 14990 | F9: 18490 | I9: =(F9-E9)/E9*100 -> 23.34889927
A10: 49060 | B10: АВТОКЛАВ 26 литров (1 фальшдно) | D10: шт. | E10: 15700 | F10: 19490 | I10: 24.14012739
A11: 49061 | B11: АВТОКЛАВ 35 литров (1 фальшдно) | D11: шт. | E11: 17800 | F11: 21990 | I11: 23.53932584
B12: Замок для крышек (автоклав) | D12: шт.
A13: 49062 | B13: Фальшдно автоклава | D13: шт. | E13: 1125 | F13: 1490 | I13: 32.44444444
A14: ЗА1203 | B14: Фальшдно автоклава с ножками | D14: шт. | E14: 1350 | F14: 1790 | I14: 32.59259259
B15: Прокладка крышки автоклава | D15: шт. | E15: 790 | F15: 1090 | I15: 37.97468354
A16: Автоклав Белорусский Геликон
A17: 48745 | B17: Автоклав Белорусский NEW с терм., 27л (УБ-18) | D17: шт. | E17: 5490 | F17: 6990 | I17: =(F17-E17)/E17*100 -> 27.32240437
A18: 48711 | B18: Автоклав Белорусский NEW с терм., 33 л. (УБ-24) | D18: шт. | E18: 6490 | F18: 7990 | I18: 23.11248074
A19: 48712 | B19: Автоклав Белорусский NEW с терм., 39 л. (УБ-30) | D19: шт. | E19: 7490 | F19: 8990 | I19: 20.02670227
A20: Автоклавы Русская Дымка
A21: 49063 | B21: Автоклав Wein (Вейн), 23 литра | D21: шт. | E21: 14200 | F21: 18990 | I21: =(F21-E21)/E21*100 -> 33.73239437
A22: 49064 | B22: Автоклав Wein (Вейн), 42 литра | D22: шт. | E22: 17990 | F22: 22990 | I22: 27.79321845
A23: 10235 | B23: Автоклав Беларусь 24 | D23: шт. | E23: 5640 | F23: 6990 | I23: =(F23-E23)/E23*100 -> 23.93617021
A24: 49065 | B24: Автоклав Fansel Mini | D24: шт. | E24: 7900 | F24: 10990 | I24: =(F24-E24)/E24*100 -> 39.11392405
A25: 49066 | B25: Автоклав Fansel 2, 20 л | D25: шт. | E25: 9780 | F25: 13490 | I25: 37.93456033
A26: 02097 | B26: Силиконовое уплотнение для автоклава Ханхи (Hanhi) и Фансел 2 | D26: шт. | E26: 240 | F26: 390 | I26: =(F26-E26)/E26*100 -> 62.5
A27: Доп Товары
A28: 49067 | B28: Закатка Лепсе | D28: шт. | E28: 370 | F28: 590 | I28: 59.45945946
A29: 49068 | B29: Закатка Лепсе под мухомор в коробке | D29: шт. | E29: 510 | F29: 790 | I29: 54.90196078
B30: Набор индивидуальных защитных зажимов для автоклава 7 шт | D30: шт. | E30: 1290 | F30: 1690 | I30: 31.00775194
A31: 48500 | B31: Вакуумный набор ВАКС 82Н | D31: шт. | E31: 369.57 | F31: 529 | H31: Описание на сайте | I31: 43.13932408
A32: 48510 | B32: Вакуумный набор ВАКС-02Н | D32: шт. | E32: 540 | F32: 690 | I32: 27.77777778
A33: 02066 | B33: Вакуумный набор в блистерной упаковке ВАКС 82БМ | D33: шт. | E33: 335.28 | F33: 459 | I33: 36.90050107
A34: 48520 | B34: Вакуумный набор ВАКС-03Н | D34: шт. | E34: 713.74 | F34: 1090 | I34: 52.71667554
A35: 48769 | B35: Уплотнение для автоклава Беларусь Люкс Белый | D35: шт. | E35: 140 | F35: 240 | I35: =(F35-E35)/E35*100 -> 71.42857143
A36: 00232 | B36: Прокладка из термоустойчивой резины в крышку автоклава Белорусский Серый | D36: шт. | E36: 120 | F36: 240 | I36: =(F36-E36)/E36*100 -> 100

Sheet Домашнее виноделие
A1: Сделай-Дома.ру 88007001323 (Бесплатно) +79642506913 (Звонки и Ватсап) manager@sdelai-doma.ru
B3: Наименование | C3: Фото | E3: Ваша цена | F3: РРЦ | G3: Заказ | H3: Ссылки на описания | I3: Наценка, %
A4: Оборудование для виноделия
A5: Мялки, Пресса
A6: 01236 | B6: Пресс соковыжималка гидравлический 8л. Нерж.поршень | D6: шт. | E6: 6400 | F6: 8900 | I6: =(F6-E6)/E6*100 -> 39.0625
A7: 00213 | B7: Пресс соковыжималка гидравлический 13л. Нерж.поршень | D7: шт. | E7: 7600 | F7: 9900 | I7: 30.26315789
A8: 01232 | B8: Пресс соковыжималка винтовой 8л. Нерж.поршень | D8: шт. | E8: 5800 | F8: 7990 | I8: 37.75862069
A9: 01233 | B9: Пресс соковыжималка винтовой 13л. Нерж.поршень | D9: шт. | E9: 6500 | F9: 9900 | I9: 52.30769231
A10: 00306 | B10: Пресс «Добрыня» для отжима натурального сока, 18 л. | D10: шт. | E10: 18600 | F10: 23500 | I10: =(F10-E10)/E10*100 -> 26.34408602
A11: 48573 | B11: Пресс домкратный для отжима SOK, 6 л | D11: шт. | E11: 6650 | F11: 8990 | H11: Описание на сайте | I11: 35.18796992
A12: 00696 | B12: Пресс домкратный для отжима SOK, 10 л | D12: шт. | E12: 7840 | F12: 9990 | I12: 27.42346939
A13: 48574 | B13: Пресс домкратный для отжима SOK, 15 л | D13: шт. | E13: 8790 | F13: 10990 | I13: 25.02844141
B14: Подставка для пресса SOK | D14: шт. | E14: 1690 | F14: 2390 | I14: 41.42011834
B15: Кожух металлический для пресса SOK, 6 л | D15: шт. | E15: 1090 | F15: 1590 | H15: Описание на сайте | I15: 45.87155963
B16: Кожух металлический для пресса SOK, 10 л | D16: шт. | E16: 1490 | F16: 1890 | I16: 26.84563758
B17: Кожух металлический для пресса SOK, 15 л | D17: шт. | E17: 1690 | F17: 2390 | I17: =(F17-E17)/E17*100 -> 41.42011834
B18: Пресс бутылочный для отжима SOK, 12 л | D18: шт. | E18: 12990 | F18: 15990 | H18: Описание на сайте | I18: =(F18-E18)/E18*100 -> 23.09468822
B19: Пресс бутылочный для отжима SOK, 23 л | D19: шт. | E19: 14390 | F19: 17990 | I19: 25.01737318
B20: Пресс бутылочный для отжима SOK, 30 л | D20: шт. | E20: 15890 | F20: 19900 | I20: 25.23599748
B21: Кожух для бутылочного пресса SOK, 12 л | D21: шт. | E21: 1190 | F21: 1790 | H21: Описание на сайте | I21: 50.42016807
B22: Кожух для бутылочного пресса SOK, 23 л | D22: шт. | E22: 1890 | F22: 2900 | I22: 53.43915344
B23: Кожух для бутылочного пресса SOK, 30 л | D23: шт. | E23: 2990 | F23: 3990 | I23: =(F23-E23)/E23*100 -> 33.44481605
B24: Измельчитель овощей и фруктов «Самурай 2.0» | D24: шт. | E24: 37900 | F24: 48490 | I24: =(F24-E24)/E24*100 -> 27.94195251
B25: Гидропресс «Заготовщик» 40л. | D25: шт. | E25: 29900 | F25: 37990 | I25: =(F25-E25)/E25*100 -> 27.05685619
B26: Гидропресс SOK Геликон 35 л | D26: шт. | E26: 32200 | F26: 38990 | I26: =(F26-E26)/E26*100 -> 21.08695652
A27: СТОП | B27: Пресс-соковыжималка для цитрусовых и граната | D27: шт. | F27: 7490 | I27: =(F27-E27)/E27*100 -> 
A28: 00241 | B28: Мешок для пресса лавсановый 8л | D28: шт. | E28: 210 | F28: 290 | I28: 38.0952381
A29: 00242 | B29: Мешок для пресса лавсановый 13л | D29: шт. | E29: 250 | F29: 350 | I29: 40
B30: Мешок фильтровальный пресса 18-20л | D30: шт. | E30: 320 | F30: 440 | I30: 37.5
B31: Мешок для бутылочного пресса 23 л | E31: 390 | F31: 690 | I31: 76.92307692
B32: Мешок для бутылочного пресса 30 л | E32: 490 | F32: 790 | I32: 61.2244898
B33: Сововыжималка Нептун | D33: шт. | E33: 5990 | F33: 7690 | I33: 28.38063439
A34: Концентрированные соки
A35: 02661 | B35: БЕЛЫЙ ВИНОГРАД СОК(1 кг) | D35: шт. | E35: 250 | F35: 360 | H35: Описание на сайте | I35: 44
A36: 02662 | B36: КРАСНЫЙ ВИНОГРАД СОК(1 кг) | D36: шт. | E36: 339 | F36: 420 | I36: 23.89380531
A37: 02663 | B37: ГРУША СОК ( 1кг) | D37: шт. | E37: 269 | F37: 360 | I37: 33.82899628
A38: 02664 | B38: ЯБЛОКО СОК ( 1кг) | D38: шт. | E38: 269 | F38: 360 | I38: 33.82899628
A39: 00054 | B39: ВИШНЯ Сок концентрированный бутылка 1 кг | D39: шт. | E39: 399 | F39: 520 | I39: 30.32581454
A40: 00055 | B40: КЛЮКВА Сок концентрированный бутылка 1 кг | D40: шт. | E40: 490 | F40: 650 | I40: 32.65306122
A41: 00057 | B41: БРУСНИКА Сок концентрированный бутылка 1 кг | D41: шт. | E41: 472 | F41: 620 | I41: 31.3559322
A42: 00462 | B42: СМОРОДИНА Сок концентрированный бутылка 1 кг | D42: шт. | E42: 420 | F42: 520 | I42: 23.80952381
A43: 00007 | B43: ЯБЛОКО СОК ( 5 кг) | D43: шт. | E43: 990 | F43: 1290 | I43: 30.3030303
A44: 00010 | B44: БЕЛЫЙ ВИНОГРАД СОК (5 кг) | D44: шт. | E44: 947 | F44: 1290 | I44: 36.21964097
A45: 00008 | B45: КРАСНЫЙ ВИНОГРАД СОК (5 кг) | D45: шт. | E45: 1250 | F45: 1550 | I45: 24
A46: 00009 | B46: ГРУША СОК (5 кг) | D46: шт. | E46: 1040 | F46: 1290 | I46: 24.03846154
A47: 00061 | B47: ВИШНЯ СОК (5 кг) | D47: шт. | E47: 1490 | F47: 1890 | I47: 26.84563758
A48: Наборы для приготовления домашнего вина
A49: 00540 | B49: Набор для приготовления домашнего вина Beervingem "Спелая вишня" на 13,5 л | D49: шт. | E49: 734 | F49: 990 | H49: Описание на сайте | I49: 34.8773842
A50: 00539 | B50: Набор для приготовления домашнего вина Beervingem "Сочное яблоко" на 13,5 л | D50: шт. | E50: 734 | F50: 990 | I50: 34.8773842
A51: 00537 | B51: Набор для приготовления домашнего вина Beervingem "Лесная ягода" на 13,5 л | D51: шт. | E51: 734 | F51: 990 | I51: 34.8773842
A52: 00536 | B52: Набор для приготовления домашнего вина Beervingem "Клубничное лето" на 13,5 л | D52: шт. | E52: 734 | F52: 990 | I52: 34.8773842
A53: 00538 | B53: Набор для приготовления домашнего вина Beervingem "Северная клюква" на 13,5 л | D53: шт. | E53: 734 | F53: 990 | I53: 34.8773842
A54: 02279 | B54: Набор ингредиентов для приготовления вина Beervingem "Вишня и Черешня" | D54: шт. | E54: 420 | F54: 590 | I54: 40.47619048
A55: 00541 | B55: Набор ингредиентов для приготовления вина Beervingem "Груша" | D55: шт. | E55: 420 | F55: 590 | I55: 40.47619048
A56: 00542 | B56: Набор ингредиентов для приготовления вина Beervingem "Смородина" | D56: шт. | E56: 420 | F56: 590 | I56: 40.47619048
A57: Дрожжи для вина, сидра, энзимы, осветлители
A58: 00543 | B58: Энзимы Beervingem, 2 г (Фермент для улучшения вкуса вина и повышения его прозрачности.) | D58: шт. | E58: 55 | F58: 90 | I58: 63.63636364
A59: 03098 | B59: Бентонит Фасовка в ведро 100 гр | D59: шт. | E59: 50 | F59: 75 | I59: 50
A60: 03096 | B60: Бентонит Фасовка в ведро 200 гр | D60: шт. | E60: 60 | F60: 85 | I60: 41.66666667
A61: 00475 | B61: Бентонит Фасовка в ведро 500 гр. | D61: шт. | E61: 75 | F61: 100 | I61: 33.33333333
A62: 10190 | B62: Дрожжи винные сухие 100 грамм | D62: шт. | E62: 95 | F62: 125 | I62: 31.57894737
A63: 15100 | B63: Дрожжи винные сухие 250 грамм | D63: шт. | E63: 199 | F63: 250 | I63: 25.6281407
A64: 00215 | B64: Дрожжи Cider C50 ТМ "Своя Кружка" | D64: шт. | E64: 140 | F64: 240 | I64: 71.42857143
A65: 02025 | B65: Дрожжи винные с питательной солью Beervingem, 25г | D65: шт. | E65: 98 | F65: 130 | I65: 32.65306122
A66: 00364 | B66: Винные дрожжи Beervingem "Red Wine R15", 5 г | D66: шт. | E66: 75 | F66: 110 | I66: 46.66666667
A67: 02276 | B67: Дрожжи Beervingem для медовухи "Mead BVG-08", 10 г | D67: шт. | E67: 165 | F67: 209 | I67: 26.66666667
A68: 02277 | B68: Дрожжи Beervingem для сидра "Cider BVG-07", 10 г | D68: шт. | E68: 154 | F68: 200 | I68: 29.87012987
A69: 00363 | B69: Винные дрожжи Beervingem "Fruit Wine F18", 5 г | D69: шт. | E69: 77 | F69: 109 | I69: 41.55844156
A70: 02280 | B70: Винные дрожжи Beervingem "Universal U18", 5 г | D70: шт. | E70: 77 | F70: 109 | I70: 41.55844156
A71: 00533 | B71: Винные дрожжи Beervingem "High alcohol HA18", 5 г | D71: шт. | E71: 77 | F71: 109 | I71: 41.55844156
A72: 00240 | B72: Ковелос ВинЧистер (Осветлитель для вина) | E72: 74 | F72: 110 | I72: 48.64864865
A73: 00290 | B73: Осветлитель для пива и вина Beervingem, 30 г | D73: шт. | E73: 59 | F73: 90 | I73: 52.54237288
A74: 00290 | B74: Винные дрожжи Gervin "Universal GV1", 5 г | D74: шт. | E74: 105 | F74: 140 | I74: 33.33333333
A75: 00534 | B75: Винные дрожжи Gervin "White Fruit Wine GV5", 5 г | D75: шт. | E75: 105 | F75: 140 | I75: 33.33333333
A76: ПРОБКИ и УКУПОРКИ
A77: 00153 | B77: Укупорка винная | D77: шт. | E77: 1865 | F77: 2590 | I77: 38.87399464
A78: 10286 | B78: Укупорка кроненпробок Emily | D78: шт. | E78: 1290 | F78: 2190 | I78: 69.76744186
A79: 10288 | B79: Укупорка кроненпробок Hammer | D79: шт. | E79: 550 | F79: 690 | I79: 25.45454545
A80: 02144 | B80: Пробка корковая агломерированная для тихих вин 35х23 мм (20 штук) | D80: шт. | E80: 130 | F80: 170 | I80: 30.76923077
A81: 02144 | B81: Пробка корковая агломерированная для тихих вин 35х23 мм (50 штук) | D81: шт. | E81: 280 | F81: 360 | I81: 28.57142857
A82: 48606 | B82: Кронен-пробки для стеклянных бутылок (белые) Упаковка 100 шт | D82: шт. | E82: 149 | F82: 290 | I82: 94.63087248
A83: 48605 | B83: Кронен-пробки для стеклянных бутылок (черные) Упаковка 100 шт | D83: шт. | E83: 169 | F83: 349 | I83: 106.5088757
A84: 48604 | B84: Кронен-пробки для стеклянных бутылок (золотистые) Упаковка 100 шт | D84: шт. | E84: 149 | F84: 290 | I84: 94.63087248
A85: 00578 | B85: Кронен-пробки для стеклянных бутылок (зеленые) Упаковка 100 шт | D85: шт. | E85: 169 | F85: 349 | I85: 106.5088757
A86: 00580 | B86: Кронен-пробки для стеклянных бутылок (синие) Упаковка 100 шт | D86: шт. | E86: 169 | F86: 349 | I86: 106.5088757
A87: 00579 | B87: Кронен-пробки для стеклянных бутылок (красные) Упаковка 100 шт | D87: шт. | E87: 169 | F87: 349 | I87: 106.5088757
A88: 03519 | B88: Т-образная пробка | D88: шт. | E88: 10 | F88: 15 | I88: 50
A89: 01337 | B89: Термоусадочные колачки бордовый упаковка 10 шт | D89: уп. | E89: 39 | F89: 65 | I89: 66.66666667
A90: 01338 | B90: Термоусадочные колачки золотой упаковка 10 шт | D90: уп. | E90: 39 | F90: 65 | I90: 66.66666667
A91: 01336 | B91: Термоусадочные колачки черный упаковка 10 шт | D91: уп. | E91: 39 | F91: 65 | I91: =(F91-E91)/E91*100 -> 66.66666667
A92: 02858 | B92: Рефрактометр для вина 0-40 | D92: шт. | E92: 1190 | F92: 1590 | I92: 33.61344538

Sheet Копчение
A1: Сделай-Дома.ру 88007001323 (Бесплатно) +79642506913 (Звонки и Ватсап) manager@sdelai-doma.ru
A3: Арт | B3: Наименование | C3: Фото | E3: Ваша цена | F3: РРЦ | G3: Заказ | H3: Ссылки на описания | I3: Наценка, %
A4: Коптильни горячего копчения в домашних условиях
A5: 49069 | B5: Коптильня "Добрыня" 14 л | D5: шт. | E5: 5790 | F5: 6990 | I5: =(F5-E5)/E5*100 -> 20.7253886
A6: 49070 | B6: Коптильня "Добрыня" 23 л | D6: шт. | E6: 6690 | F6: 7990 | I6: =(F6-E6)/E6*100 -> 19.43198804
A7: 49071 | B7: Коптильня "Добрыня" 37 л | D7: шт. | E7: 8190 | F7: 9990 | I7: 21.97802198
A8: 49058 | B8: Коптильный набор для автоклавов 20-40 литров | D8: шт. | E8: 2990 | F8: 3890 | I8: 30.10033445
A9: 10269 | B9: Коптильня Ханхи | D9: шт. | E9: 4790 | F9: 5990 | I9: 25.05219207
A10: 02789 | B10: Коптильня Сделай-Дома, 20 л. | D10: шт. | E10: 4600 | F10: 5600 | I10: =(F10-E10)/E10*100 -> 21.73913043
B11: Коптильня с гидрозатвором прямоугольная нерж. 400*200*250 толщина 1,5 мм | D11: шт. | E11: 5600 | F11: 6990 | I11: 24.82142857
B12: Коптильня с гидрозатвором прямоугольная нерж. 500*300*250 толщина 1,5 мм | D12: шт. | E12: 7990 | F12: 9990 | I12: 25.03128911
A13: 00158 | B13: Коптильня с гидрозатвором Домик нерж. 400*200*300 толщина 1,5 мм | D13: шт. | E13: 5990 | F13: 7990 | I13: 33.38898164
A14: 00023 | B14: Коптильня с гидрозатвором Домик нерж. 500*300*300 толщина 1,5 мм | D14: шт. | E14: 8590 | F14: 10990 | I14: 27.93946449
A15: 49072 | B15: Таймер механический магнитный к коптильне | D15: шт. | E15: 890 | F15: 1090 | I15: 22.47191011 | J15: =(D15*1.025*1.187) ->  | L15: =(E15-J15)/J15*100 -> 
A16: Коптильни уличные косторовые | I16: =(F16-E16)/E16*100 -> 
A17: 00100 | B17: Коптильня КП-25 Двухъярусная с гидрозатвором 500*250*250 Нержавеющая решетка и поддон | D17: шт | E17: 4100 | F17: 5400 | I17: =(F17-E17)/E17*100 -> 31.70731707
A18: 02688 | B18: Коптильня дачная прямоугольная 500*250*200 (черная) Нержавеющая решетка и поддон | D18: шт | E18: 3550 | F18: 4300 | I18: =(F18-E18)/E18*100 -> 21.12676056
A19: ДЫМОГЕНЕРАТОРЫ и шкафы для холодного копчения
A20: 01469 | B20: Коптильный шкаф Ханхи | D20: шт. | E20: 7990 | F20: 9490 | I20: =(F20-E20)/E20*100 -> 18.77346683
A21: 02785 | B21: Дымогенератор Ханхи | D21: шт. | E21: 6500 | F21: 7990 | I21: 22.92307692
A22: 00350 | B22: Деревянный коптильный шкаф Hanhi | D22: шт. | E22: 3900 | F22: 4990 | I22: 27.94871795
A23: 00274 | B23: Сушильный Коптильный шкаф Hanhi | D23: шт. | E23: 4680 | F23: 5590 | I23: 19.44444444
A24: 01982 | B24: Дымогенератор Merkel New Standart, 1,3 л (в комплекте с компрессором) | D24: шт. | E24: 5510 | F24: 7490 | I24: 35.93466425
A25: 02786 | B25: Дымогенератор Merkel New Optima, 2,5 л (в комплекте с компрессором) | D25: шт. | E25: 6890 | F25: 8990 | I25: 30.47895501
A26: 00081 | B26: Дымогенератор Merkel New Premium, 5 л (в комплекте с 2 компрессорами) | D26: шт. | E26: 9990 | F26: 11990 | I26: 20.02002002
A27: 00087 | B27: Дымогенератор Ворон 10 л | D27: шт. | E27: 6310 | F27: 7990 | I27: 26.62440571
A28: 00143 | B28: Дымогенератор Ворон 20 л | D28: шт. | E28: 8610 | F28: 10450 | I28: 21.37049942
A29: 00333 | B29: Камера для дымогенератора (оцинкованная сталь) | D29: шт. | E29: 2990 | F29: 3990 | I29: 33.44481605 | J29: =(D29*1.025*1.187) ->  | L29: =(E29-J29)/J29*100 -> 
A30: Щепа для копчения
A31: 10271 | B31: Щепа Ольха пакет 0,5 кг. | D31: шт. | E31: 47 | F31: 80 | H31: Описание на сайте | I31: 70.21276596
A32: 10272 | B32: Щепа Яблоня пакет 0,5 кг. | D32: шт. | E32: 69 | F32: 100 | I32: 44.92753623
A33: 10273 | B33: Щепа Дуб пакет 0,5 кг. | D33: шт. | E33: 55 | F33: 80 | I33: 45.45454545
A34: 02220 | B34: Щепа Бук пакет 0,5 кг. | D34: шт. | E34: 55 | F34: 80 | I34: 45.45454545
A35: Шприцы колбасные
A36: 02705 | B36: Шприц колбасный на 1 кг, горизонтальный, 3 насадки 15, 19, 22 мм | D36: шт. | E36: 2650 | F36: 3990 | I36: =(F36-E36)/E36*100 -> 50.56603774
A37: 01494 | B37: Шприц колбасный на 2,5кг, горизонтальный, 3 насадки 15, 19, 22 мм | D37: шт. | E37: 4290 | F37: 5340 | I37: =(F37-E37)/E37*100 -> 24.47552448
A38: 00709 | B38: Горизонтальный колбасный шприц на 3 кг. с пластиковыми насадками 4 шт. 15, 19, 22, 25 мм. | D38: шт. | E38: 6060 | F38: 7690 | I38: =(F38-E38)/E38*100 -> 26.89768977
A39: 00710 | B39: Горизонтальный колбасный шприц на 5,5 кг с насадками 4 шт. 17, 21, 25, 29 мм. | D39: шт. | E39: 7160 | F39: 8790 | I39: 22.76536313
A40: MF-2006C | B40: Шприц колбасный вертикальный на 3 кг. с металлическими насадками 4 шт. 15, 19, 22, 25 мм. | D40: шт. | E40: 4890 | F40: 5990 | I40: 22.49488753
A41: KY-2010 | B41: Шприц колбасный вертикальный на 5,5 кг. с пластиковыми насадками 6 шт 14, 18, 21, 25, 29, 35 мм | D41: шт. | E41: 7410 | F41: 8990 | I41: 21.32253711
A42: SV-5 | B42: Профессиональный колбасный вертикальный шприц на 5 кг. 4 насадки Ø 16, 22, 32, 38 мм 2 скорости | D42: шт. | E42: 15650 | F42: 19990 | I42: 27.73162939
A43: 00148 | B43: Профессиональный колбасный горизонтальный шприц на 3 кг. | D43: шт. | E43: 14030 | F43: 16990 | I43: 21.0976479
A44: 00147 | B44: Профессиональный колбасный горизонтальный шприц на 5 кг. | D44: шт. | E44: 15380 | F44: 19900 | I44: 29.38881664
A45: 00841 | B45: Шприц колбасный пластиковыйс 2-мя насадками (300 грамм или 250 мл.) | D45: шт. | E45: 257 | F45: 350 | I45: 36.18677043
A46: 02706 | B46: Насадка на мясорубку | D46: шт. | E46: 70 | F46: 160 | I46: 128.5714286
A47: 00111 | B47: Насадки для колбас и переходник на мясорубку (3+1) | D47: шт. | E47: 110 | F47: 240 | I47: =(F47-E47)/E47*100 -> 118.1818182
A48: 00248 | B48: Шприц для маринования 30 мл | D48: шт. | E48: 390 | F48: 580 | I48: =(F48-E48)/E48*100 -> 48.71794872
A49: 313015 | B49: Ветчинница 1,5 л, нерж. | D49: шт. | E49: 690 | F49: 890 | I49: 28.98550725
A50: Стоп 313313 | B50: Клипсатор + 60 клипс | D50: шт. | E50: 970 | F50: 1450 | I50: 49.48453608
A51: 313314 | B51: Клипсы для клипсатора, 60 шт. | D51: шт. | E51: 260 | F51: 389 | I51: 49.61538462
A52: 02597 | B52: Тёрка-шинковка Лепсе ТШ-1 | D52: шт. | E52: 990 | F52: 1300 | I52: 31.31313131
A53: Черева для приготовления колбас
A54: 02343 | B54: ЧЕРЕВА СВИНАЯ 30-32 кат.Экстра 5м. | D54: шт. | E54: 130 | F54: 180 | I54: 38.46153846
A55: 02344 | B55: ЧЕРЕВА СВИНАЯ 32-34 кат.Экстра 5м. | D55: шт. | E55: 130 | F55: 180 | I55: 38.46153846
A56: 02345 | B56: ЧЕРЕВА СВИНАЯ 34-36 кат.Экстра 5м. | D56: шт. | E56: 130 | F56: 180 | I56: 38.46153846
A57: 02346 | B57: ЧЕРЕВА СВИНАЯ 36-38 кат.Экстра 5м | D57: шт. | E57: 130 | F57: 180 | I57: 38.46153846
A58: 02347 | B58: ЧЕРЕВА СВИНАЯ 38-40 кат.Экстра 5м. | D58: шт. | E58: 130 | F58: 180 | I58: 38.46153846
A59: 02348 | B59: ЧЕРЕВА СВИНАЯ 40-42 кат.Экстра 5м. | D59: шт. | E59: 130 | F59: 180 | I59: 38.46153846
A60: 02655 | B60: ЧЕРЕВА СВИНАЯ 42+ кат.Экстра 5м. | D60: шт. | E60: 180 | F60: 290 | I60: 61.11111111
A61: 02349 | B61: ЧЕРЕВА СВИНАЯ 30-32 кат.Экстра 10 м. | D61: шт. | E61: 180 | F61: 290 | I61: 61.11111111
A62: 02350 | B62: ЧЕРЕВА СВИНАЯ 32-34 кат.Экстра 10 м. | D62: шт. | E62: 180 | F62: 290 | I62: 61.11111111
A63: 02351 | B63: ЧЕРЕВА СВИНАЯ 34-36 кат.Экстра 10 м. | D63: шт. | E63: 180 | F63: 290 | I63: 61.11111111
A64: 02352 | B64: ЧЕРЕВА СВИНАЯ 40-42 кат.Экстра 10 м. | D64: шт. | E64: 180 | F64: 290 | I64: 61.11111111
A65: 02656 | B65: ЧЕРЕВА СВИНАЯ 42+ кат.Экстра 10м. | D65: шт. | E65: 450 | F65: 590 | I65: 31.11111111
A66: 02353 | B66: ЧЕРЕВА БАРАНЬЯ 22-24 кат.АБ 10 м. Пакет | D66: шт. | E66: 240 | F66: 295 | I66: 22.91666667
A67: 02354 | B67: ЧЕРЕВА БАРАНЬЯ 24-26 кат.АБ 10 м. | D67: шт. | E67: 290 | F67: 390 | I67: 34.48275862
A68: 02356 | B68: ЧЕРЕВА ГОВЯЖЬЯ 38-40 кат.АБ 5м. | D68: шт. | E68: 250 | F68: 340 | I68: 36
A69: Коллагеновая оболочка, пленка, стартовые культуры
A70: 01666 | B70: Коллагеновая оболочка универсальная калибр 35 мм-5 метров | D70: шт. | E70: 130 | F70: 235 | H70: Описание на сайте | I70: 80.76923077
A71: 01667 | B71: Коллагеновая оболочка универсальная калибр 35мм-10 метров | D71: шт. | E71: 220 | F71: 365 | I71: 65.90909091
A72: 01354 | B72: Коллагеновая оболочка универсальная калибр 40мм-5 метров | D72: шт. | E72: 140 | F72: 235 | I72: 67.85714286
A73: 01355 | B73: Коллагеновая оболочка универсальная калибр 40 мм-10 метров | D73: шт. | E73: 230 | F73: 365 | I73: 58.69565217
A74: 01358 | B74: Коллагеновая оболочка универсальная калибр 45 мм-5 метров | D74: шт. | E74: 150 | F74: 235 | I74: 56.66666667
A75: 01359 | B75: Коллагеновая оболочка универсальная калибр 45 мм- 10 метров | D75: шт. | E75: 240 | F75: 365 | I75: 52.08333333
A76: 01668 | B76: Коллагеновая оболочка универсальная калибр 50 мм-5 метров | D76: шт. | E76: 160 | F76: 235 | I76: 46.875
A77: 01669 | B77: Коллагеновая оболочка универсальная калибр 50 мм-10 метров | D77: шт. | E77: 250 | F77: 365 | I77: 46
A78: 02385 | B78: Коллагеновая оболочка для сыровяленных колбас 45мм-10 метров | D78: шт. | E78: 240 | F78: 365 | I78: 52.08333333
A79: 02384 | B79: Коллагеновая оболочка для сыровяленных колбас 45мм-5 метров | D79: шт. | E79: 150 | F79: 235 | I79: 56.66666667
A80: 02574 | B80: Коллагеновая пленка для мясных деликатесов 400мм - 2 метра | D80: шт. | E80: 150 | F80: 255 | H80: Описание на сайте | I80: 70
A81: 02575 | B81: Коллагеновая пленка для мясных деликатесов 400мм - 5 метров | D81: шт. | E81: 380 | F81: 515 | I81: 35.52631579
A82: 02576 | B82: Чудо пакет для вяления и копчения мяса, 1 шт в пакете | D82: шт. | E82: 79 | F82: 110 | H82: Описание на сайте | I82: 39.24050633
A83: 02576 | B83: Чудо пакет для вяления и копчения мяса, 3 шт. в пакете. | D83: шт. | E83: 200 | F83: 270 | I83: 35
A84: 00116 | B84: Пищевой фосфат для всех видов колбас, 40 гр. | D84: шт. | E84: 52 | F84: 85 | I84: 63.46153846
A85: 48943 | B85: Пищевой фосфат для всех видов колбас, 200гр | E85: 190 | F85: 290 | I85: 52.63157895
A86: 00113 | B86: Стартовые культуры Нуба Ро Пек, 1 г | D86: шт. | E86: 87 | F86: 155 | I86: 78.16091954
A87: 00117 | B87: Стартовые культуры Нуба Ро Пек, 3 г | D87: шт. | E87: 199 | F87: 345 | I87: 73.36683417
A88: 01849 | B88: Стартовые культуры для сыровяленых колбас Бессастарт - 30 гр. | D88: шт. | E88: 530 | F88: 695 | I88: 31.13207547
A89: 00259 | B89: Стартовые культуры для сыровяленых колбас Пекельстарт - 30 гр. | D89: шт. | E89: 530 | F89: 695 | I89: 31.13207547
B90: Соль нитритная 25кг. | D90: шт. | E90: 1600 | F90: 2200 | H90: Описание на сайте | I90: 37.5
A91: 02860 | B91: Соль нитритная 1кг. | D91: шт. | E91: 60 | F91: 150 | I91: 150
A92: 00840 | B92: Соль нитритная 200гр | D92: шт. | E92: 29 | F92: 49 | I92: 68.96551724
A93: 00473 | B93: Соль нитритная в ведре 300гр | D93: шт. | E93: 65 | F93: 95 | I93: 46.15384615
A94: 00474 | B94: Соль нитритная в ведре 500гр | D94: шт. | E94: 80 | F94: 130 | I94: 62.5
A95: Приправы для колбас (все по 50 гр.)
A96: 02647 | B96: Комплексная пряно-ароматическая смесь КРАКОВСКАЯ, 50 грамм | D96: шт. | E96: 80 | F96: 130 | I96: =(F96-E96)/E96*100 -> 62.5
A97: 02649 | B97: ОХОТНИЧЬИ КОЛБАСКИ | D97: шт. | E97: 80 | F97: 130 | I97: 62.5
A98: 02653 | B98: МОСКОВСКАЯ ЛЮКС | D98: шт. | E98: 80 | F98: 130 | I98: 62.5
A99: 02650 | B99: ПРЯНАЯ | D99: шт. | E99: 80 | F99: 130 | I99: 62.5
A100: 02654 | B100: САЛЯМИ | D100: шт. | E100: 80 | F100: 130 | I100: 62.5
A101: 02652 | B101: КОЛБАСКИ БАРБЕКЮ | D101: шт. | E101: 80 | F101: 130 | I101: 62.5
A102: 00133 | B102: УНИВЕРСАЛЬНАЯ | D102: шт. | E102: 80 | F102: 130 | I102: 62.5
A103: 00122 | B103: ДОКТОРСКАЯ | D103: шт. | E103: 80 | F103: 130 | I103: 62.5
A104: 00129 | B104: СЕРВЕЛАТ | D104: шт. | E104: 80 | F104: 130 | I104: 62.5
A105: 00123 | B105: ЛЮБИТЕЛЬСКАЯ | D105: шт. | E105: 80 | F105: 130 | I105: 62.5
A106: 02651 | B106: САРДЕЛЬКИ | D106: шт. | E106: 80 | F106: 130 | I106: 62.5
A107: 02648 | B107: ОДЕССКАЯ | D107: шт. | E107: 80 | F107: 130 | I107: 62.5
A108: Серия "Жарим"
A109: 02862 | B109: Приправа для нюрнбергских колбасок | D109: шт. | E109: 128 | F109: 210 | H109: Описание на сайте | I109: 64.0625
A110: 02389 | B110: Приправа для сербских колбасок гриль "Чевапчичи" | D110: шт. | E110: 128 | F110: 210 | I110: 64.0625
A111: 01202 | B111: Приправа для острых итальянских колбасок гриль | D111: шт. | E111: 190 | F111: 310 | I111: 63.15789474
A112: 02388 | B112: Приправа для техасских колбасок гриль | D112: шт. | E112: 190 | F112: 310 | I112: 63.15789474
A113: 02387 | B113: Приправа для оксфордских колбасок гриль | D113: шт. | E113: 190 | F113: 310 | I113: 63.15789474
A114: 00326 | B114: Приправа для датских колбасок гриль "Медистер" | D114: шт. | E114: 128 | F114: 210 | I114: 64.0625
A115: Серия "Коптим"
A116: 01639 | B116: Приправа для полукопченой колбасы "Краковская" | D116: шт. | E116: 129 | F116: 210 | H116: Описание на сайте | I116: 62.79069767
A117: 02390 | B117: Приправа для сырокопченой колбасы "Брауншвейгская" | D117: шт. | E117: 129 | F117: 210 | I117: 62.79069767
A118: 01198 | B118: Приправа для сырокопченой колбасы "Сервелат" | D118: шт. | E118: 129 | F118: 210 | I118: 62.79069767
A119: 01214 | B119: Приправа для полукопченой колбасы "Охотничьи колбаски" | D119: шт. | E119: 190 | F119: 310 | I119: 63.15789474
A120: 01197 | B120: Приправа для сырокопченой колбасы "Московская" | D120: шт. | E120: 129 | F120: 210 | I120: 62.79069767
A121: Серия "Вялим"
A122: 01199 | B122: Приправа для сыровяленной колбасы "Суджук советский" | D122: шт. | E122: 129 | F122: 210 | I122: 62.79069767
A123: Серия "Варим"
A124: 01635 | B124: Приправа для вареной колбасы "Докторская" | D124: шт. | E124: 129 | F124: 210 | H124: Описание на сайте | I124: 62.79069767
A125: 01213 | B125: Приправа для вареной колбасы "Вареная обыкновенная" | D125: шт. | E125: 149 | F125: 240 | I125: 61.0738255
A126: 01211 | B126: Приправа для сарделек "Говяжьи" | D126: шт. | E126: 129 | F126: 210 | I126: =(F126-E126)/E126*100 -> 62.79069767
A127: 01633 | B127: Приправа для сосисок "Молочные" | D127: шт. | E127: 129 | F127: 210 | I127: 62.79069767
A128: 01212 | B128: Приправа для сарделек "Свиные" | D128: шт. | E128: 149 | F128: 240 | I128: 61.0738255
A129: Серия "РЕТРО"
A130: 48580 | B130: Смесь пряностей для колбасных изделий классическая ГОСТ №3 | D130: шт. | E130: 129 | F130: 210 | I130: =(F130-E130)/E130*100 -> 62.79069767
A131: 48581 | B131: Смесь пряностей для колбасных изделий классическая ГОСТ №5 | D131: шт. | E131: 129 | F131: 210 | I131: 62.79069767
A132: 48582 | B132: Смесь пряностей для колбасных изделий классическая ГОСТ №7 | D132: шт. | E132: 129 | F132: 210 | I132: 62.79069767
A133: Специи и приправы для блюд
A134: 00743 | B134: Приправа для плова "Сделай-дома" | D134: шт. | E134: 80 | F134: 145 | H134: Описание на сайте | I134: 81.25
A135: 00742 | B135: Приправа для Первых блюд "Сделай-дома" | D135: шт. | E135: 80 | F135: 145 | I135: 81.25
A136: 00744 | B136: Приправа для шашлыка "Сделай-дома" | D136: шт. | E136: 80 | F136: 145 | I136: 81.25
A137: 00741 | B137: Приправа для блюд из мяса "Сделай-дома" | D137: шт. | E137: 80 | F137: 145 | I137: 81.25
A138: 00440 | B138: Специя для плова "Алтайский винокур" | D138: шт. | E138: 141.128 | F138: 260 | I138: 84.22991894
A139: 00441 | B139: Специя для свинины в автоклаве "Алтайский винокур" | D139: шт. | E139: 132.756 | F139: 240 | I139: 80.78278948
A140: 00442 | B140: Специя для баранины в автоклавове "Алтайский винокур" | D140: шт. | E140: 137.54 | F140: 240 | I140: 74.49469245
A141: 00443 | B141: Специя для птицы в автоклавове "Алтайский винокур" | D141: шт. | E141: 126.776 | F141: 230 | I141: 81.42235123
A142: 00445 | B142: Специя для маринования огурцов "Алтайский винокур" | D142: шт. | E142: 126.776 | F142: 250 | I142: 97.19820786
A143: 00444 | B143: Специя для рыбных консерв "Алтайский винокур" | D143: шт. | E143: 135.148 | F143: 240 | I143: 77.58309409
A144: Сетки и кухонная нить для копчения
A145: 02805 | B145: Сетка для копчения мясо-рыбопродуктов калибр 80 5м. | D145: шт. | E145: 35 | F145: 75 | I145: 114.2857143
A146: 02494 | B146: Сетка для копчения мясо-рыбопродуктов калибр 100 5м. | D146: шт. | E146: 45 | F146: 90 | I146: 100
A147: 02493 | B147: Сетка для копчения мясо-рыбопродуктов калибр 125 5м. | D147: шт. | E147: 55 | F147: 110 | I147: 100
A148: 00576 | B148: Нить кухонная хлопковая 2,0 мм (100 м) | D148: шт. | E148: 140 | F148: 190 | I148: =(F148-E148)/E148*100 -> 35.71428571
A149: 00575 | B149: Нить кухонная хлопковая 2,0 мм (60 м) | D149: шт. | E149: 110 | F149: 160 | I149: 45.45454545
A150: 49045 | B150: Нить кухонная хлопковая 2,0 мм (60 м) в коробке | D150: шт. | E150: 140 | F150: 190 | I150: 35.71428571

Sheet Лист1 (hidden)

Sheet Мангалы
A1: Сделай-Дома.ру 88007001323 (Бесплатно) +79642506913 (Звонки и Ватсап) manager@sdelai-doma.ru
B3: Наименование | C3: Фото | E3: Ваша цена | F3: РРЦ | G3: Заказ | H3: Ссылки на описания | I3: Наценка, %
A4: Мангалы Гратар "Серия М"
A5: 02055 | B5: Family Standart FS2000 | D5: шт. | E5: 7020 | F5: 8390 | H5: Подробное описание и фото!!! | I5: =(F5-E5)/E5*100 -> 19.51566952
A6: 02054 | B6: Family Standart Grill FSG2000 | D6: шт. | E6: 7815 | F6: 9590 | I6: =(F6-E6)/E6*100 -> 22.71273193
B7: Family Optima FO2000 | D7: шт. | E7: 9615 | F7: 11990 | I7: 24.70098804
A8: 02053 | B8: Family Standart BBQ FSB2000 | D8: шт. | E8: 10040 | F8: 12590 | I8: 25.39840637
A9: 02114 | B9: Family Optima Grill FOG2000 | D9: шт. | E9: 10470 | F9: 12990 | I9: 24.06876791
A10: 01983 | B10: Family Optima BBQ FOB2000 | D10: шт. | E10: 12920 | F10: 16490 | I10: 27.63157895
B11: Family Optima BBQ FOBn2000 | D11: шт. | E11: 17490 | F11: 20990 | I11: 20.01143511
A12: 02646 | B12: Professional Standart PS3000 | D12: шт. | E12: 9750 | F12: 12190 | I12: 25.02564103
A13: 02113 | B13: Professional Standart Grill PSG3000 | D13: шт. | E13: 10550 | F13: 13190 | I13: 25.02369668
A14: 00388 | B14: Professional Optima PO3000 | D14: шт. | E14: 12260 | F14: 15590 | I14: 27.16150082
A15: 00325 | B15: Professional Standart BBQ PSB3000 | D15: шт. | E15: 13250 | F15: 16990 | I15: 28.22641509
A16: 02116 | B16: Professional Optima Grill POG3000 | D16: шт. | E16: 13250 | F16: 16690 | I16: 25.96226415
A17: 01984 | B17: Professional Optima BBQ POB3000 | D17: шт. | E17: 16090 | F17: 20790 | I17: 29.21068987
A18: 00493 | B18: Professional Optima BBQ POBn3001 | D18: шт. | E18: 22570 | F18: 28990 | I18: 28.44483828
A19: Мангалы Гратар "Серия МАН"
A20: 01986 | B20: МАН 201 толщина 2 мм | D20: шт. | E20: 3390 | F20: 4090 | H20: Подробное описание и фото!!! | I20: =(F20-E20)/E20*100 -> 20.64896755
A21: 02115 | B21: МАН 202 толщина 2 мм | D21: шт. | E21: 5130 | F21: 6390 | I21: 24.56140351
A22: 01985 | B22: МАН 203 толщина 2 мм с крышкой | D22: шт. | E22: 7250 | F22: 9390 | I22: 29.51724138
A23: 00144 | B23: МАН 205 толщина 2 мм с крышкой | D23: шт. | E23: 8690 | F23: 11190 | I23: 28.76869965
A24: 01988 | B24: МАН 301 толщина 3 мм | D24: шт. | E24: 4930 | F24: 6190 | I24: 25.55780933
A25: 02056 | B25: МАН 302 толщина 3 мм | D25: шт. | E25: 6930 | F25: 8890 | I25: 28.28282828
A26: 01987 | B26: МАН 303 толщина 3 мм с крышкой | D26: шт. | E26: 8990 | F26: 12500 | I26: 39.04338154
A27: 00085 | B27: МАН 304 с навесом толщина 3 мм | D27: шт. | E27: 10740 | F27: 14090 | I27: 31.19180633
A28: 00108 | B28: МАН 305 толщина 3 мм с крышкой | D28: шт. | E28: 10990 | F28: 14900 | I28: 35.577798
A29: Мангалы Гратар "Серия Классика"
A30: 01990 | B30: Классика МКЛ 750 | D30: шт. | E30: 3670 | F30: 4490 | H30: Подробное описание и фото!!! | I30: 22.34332425
A31: 01991 | B31: Классика МКЛ 750К (с крышкой) | D31: шт. | E31: 5090 | F31: 6390 | I31: 25.54027505
A32: 02083 | B32: Классика МКЛ 600К (с крышкой) | D32: шт. | E32: 4290 | F32: 5390 | I32: 25.64102564
A33: 01989 | B33: Классика МКЛ 600 | D33: шт. | E33: 2930 | F33: 3690 | I33: 25.93856655
A34: Дорожные мангалы
A35: 01996 | B35: Мангал Gratar Дорожный МД 1.5 мм | D35: шт. | E35: 1960 | F35: 2490 | H35: Подробное описание и фото!!! | I35: 27.04081633
A36: 01997 | B36: Мангал Gratar Дорожный МД 2 мм | D36: шт. | E36: 3190 | F36: 3990 | I36: 25.07836991
A37: 00254 | B37: Мангал MOBILE 3в1 | D37: шт. | E37: 5490 | F37: 6690 | I37: 21.8579235
A38: 00239 | B38: Мангал разборный Hanhi | E38: 3590 | F38: 4890 | I38: 36.21169916
A39: Шампура, Варочные панели, Чугунные решетки, Аксессуары
A40: 01994 | B40: Вертел Family (110 см) Gratar | D40: шт. | E40: 1020 | F40: 1290 | I40: 26.47058824
A41: 01993 | B41: Вертел Family (85 см) Gratar | D41: шт. | E41: 890 | F41: 1090 | I41: 22.47191011
A42: 01998 | B42: Решётка барбекю 30 см Gratar | D42: шт. | E42: 1530 | F42: 1990 | I42: 30.06535948
A43: 01995 | B43: Решётка барбекю 40 см Gratar | D43: шт. | E43: 2100 | F43: 2690 | I43: 28.0952381
A44: 01999 | B44: Набор инструментов Gratar | D44: шт. | E44: 640 | F44: 990 | I44: 54.6875
A45: 02000 | B45: Варочная панель Gratar | D45: шт. | E45: 1920 | F45: 2370 | I45: 23.4375
A46: 02001 | B46: Набор шампуров Gratar - 6 шт | D46: шт. | E46: 1090 | F46: 1490 | I46: 36.69724771
A47: 01992 | B47: Устройство для копчения для мангалов с крышей | D47: шт. | E47: 550 | F47: 690 | I47: 25.45454545
A48: 02069 | B48: Шампур с деревянной ручкой 40 см 3 мм | D48: шт. | E48: 125 | F48: 190 | I48: 52
A49: 02012 | B49: Шампур с деревянной ручкой 45 см 3 мм | D49: шт. | E49: 135 | F49: 195 | I49: 44.44444444
A50: 02032 | B50: Шампур с деревянной ручкой 50 см 3 мм | D50: шт. | E50: 145 | F50: 210 | I50: 44.82758621
A51: 02013 | B51: Шампур с деревянной ручкой 55 см 3 мм | D51: шт. | E51: 155 | F51: 220 | I51: 41.93548387
A52: 00695 | B52: Шампур двойной для курицы 38 см 3 мм | D52: шт. | E52: 250 | F52: 365 | I52: 46
A53: 00076 | B53: Шампур двойной для курицы 50 см 3 мм | D53: шт. | E53: 250 | F53: 380 | I53: 52
A54: 00604 | B54: Шампур для грибов овощей 46 см 3 мм | D54: шт. | E54: 150 | F54: 290 | I54: 93.33333333
A55: 00605 | B55: Шампур плоский с ручкой кольцом 40 см 3 мм | D55: шт. | E55: 110 | F55: 150 | I55: 36.36363636
A56: 00606 | B56: Шампур плоский с ручкой кольцом 45 см 3 мм | D56: шт. | E56: 115 | F56: 160 | I56: 39.13043478
A57: 00607 | B57: Шампур плоский с ручкой кольцом 50 см 3 мм | D57: шт. | E57: 125 | F57: 170 | I57: 36
A58: 00655 | B58: Нож шашлычный 5 в 1 | D58: шт. | E58: 260 | F58: 390 | I58: 50
A59: 00560 | B59: Набор шампуров с деревянной ручкой в чехле | D59: шт. | E59: 3400 | F59: 4990 | I59: 46.76470588
A60: 00161 | B60: Нож для барбекю 40 см Бойскаут | D60: шт. | E60: 330 | F60: 470 | I60: 42.42424242
A61: 00162 | B61: Вилка для барбекю 42 см Бойскаут | D61: шт. | E61: 310 | F61: 395 | I61: 27.41935484
A62: 00163 | B62: Лопатка для барбекю 41 см Бойскайт | D62: шт. | E62: 380 | F62: 505 | I62: 32.89473684
A63: 00164 | B63: Щипцы для барбекю 39 см Бойскаут | D63: шт. | E63: 460 | F63: 650 | I63: 41.30434783
A64: 00619 | B64: Набор для барбекю Boyscout (вилка, лопатка, щипцы) | D64: шт. | E64: 1190 | F64: 1590 | I64: 33.61344538
A65: 00557 | B65: Чугунная решетка гриль Круглая 33.5см по ручкам 45см | D65: шт. | E65: 2390 | F65: 3490 | I65: 46.0251046
A66: 00558 | B66: Чугунная решетка гриль Прямоугольная 41.5х34см по ручкам 47.5см | D66: шт. | E66: 2390 | F66: 3490 | I66: 46.0251046

Sheet Казаны и печи
A1: Сделай-Дома.ру 88007001323 (Бесплатно) +79642506913 (Звонки и Ватсап) opt@sdelai-doma.ru
B3: Наименование | C3: Фото | E3: Ваша цена | F3: РРЦ | G3: Заказ | H3: Ссылки на описания | I3: Наценка, %
A4: Узбекские казаны с крышкой
A5: Плоское дно
A6: 01937 | B6: КАЗАН 4,5 Л ПЛОСКИЙ | D6: шт. | E6: 1250 | F6: 1700 | H6: Описание на сайте | I6: =(F6-E6)/E6*100 -> 36
A7: 01938 | B7: КАЗАН 6 Л ПЛОСКИЙ | D7: шт. | E7: 1380 | F7: 2200 | I7: =(F7-E7)/E7*100 -> 59.42028986
A8: 01961 | B8: КАЗАН 8 Л ПЛОСКИЙ | D8: шт. | E8: 1390 | F8: 2400 | I8: 72.6618705
A9: 01962 | B9: КАЗАН 10 Л ПЛОСКИЙ | D9: шт. | E9: 1690 | F9: 2600 | I9: 53.84615385
A10: 01963 | B10: КАЗАН 12 Л ПЛОСКИЙ | D10: шт. | E10: 1940 | F10: 2900 | I10: 49.48453608
A11: 00070 | B11: КАЗАН 16 Л ПЛОСКИЙ | D11: шт. | E11: 2130 | F11: 3500 | I11: 64.31924883
B12: КАЗАН 22 Л ПЛОСКИЙ | D12: шт. | E12: 2500 | F12: 4200 | I12: 68
A13: Круглое дно
A14: 02019 | B14: КАЗАН 6 Л КРУГЛЫЙ | D14: шт | E14: 1380 | F14: 2200 | H14: Описание на сайте | I14: 59.42028986
A15: 01939 | B15: КАЗАН 8 Л КРУГЛЫЙ | D15: шт | E15: 1390 | F15: 2400 | I15: 72.6618705
A16: 01940 | B16: КАЗАН 10 Л КРУГЛЫЙ | D16: шт | E16: 1690 | F16: 2600 | I16: 53.84615385
A17: 01941 | B17: КАЗАН 12 Л КРУГЛЫЙ | D17: шт | E17: 1940 | F17: 2900 | I17: 49.48453608
A18: 01973 | B18: КАЗАН 16 Л КРУГЛЫЙ | D18: шт | E18: 2130 | F18: 3500 | I18: 64.31924883
A19: 02009 | B19: КАЗАН 22 Л КРУГЛЫЙ | D19: шт | E19: 2500 | F19: 4200 | I19: 68
A20: Крышки для казанов отдельно
A21: 00208 | B21: Крышка для казана, 4,5 л | D21: шт | E21: 520 | F21: 690 | H21: Описание на сайте | I21: 32.69230769
A22: 00140 | B22: Крышка для казана, 6 л | D22: шт | E22: 600 | F22: 790 | I22: 31.66666667
A23: 00141 | B23: Крышка для казана, 8 л | D23: шт | E23: 690 | F23: 890 | I23: 28.98550725
A24: 00142 | B24: Крышка для казана, 10 л | D24: шт | E24: 730 | F24: 990 | I24: 35.61643836
A25: 00094 | B25: Крышка для казана, 12 л | D25: шт | E25: 860 | F25: 1090 | I25: 26.74418605
A26: 00209 | B26: Крышка для казана, 16 л | D26: шт | E26: 980 | F26: 1290 | I26: 31.63265306
A27: 00105 | B27: Крышка для казана, 22 л | D27: шт | E27: 1110 | F27: 1490 | I27: 34.23423423
A28: 00561 | B28: Чугунная крышка сковорода под казан 6л | D28: шт | E28: 1600 | F28: 2190 | H28: Описание на сайте | I28: 36.875
A29: 00562 | B29: Чугунная крышка сковорода под казан 8л | D29: шт | E29: 1700 | F29: 2290 | I29: 34.70588235
A30: 00563 | B30: Чугунная крышка сковорода под казан 10л | D30: шт | E30: 1750 | F30: 2390 | I30: 36.57142857
A31: 00564 | B31: Чугунная крышка сковорода под казан 12л | D31: шт | E31: 1900 | F31: 2590 | I31: 36.31578947
A32: Афганские казаны
A33: 00547 | B33: КАЗАН АФГАНСКИЙ С РУЧКАМИ ДВУХЦВЕТНЫЙ 5Л | D33: шт | E33: 2500 | F33: 3500 | H33: Описание на сайте | I33: 40
A34: 00548 | B34: КАЗАН АФГАНСКИЙ С РУЧКАМИ ДВУХЦВЕТНЫЙ 8Л | D34: шт | E34: 2700 | F34: 4500 | I34: 66.66666667
A35: 00549 | B35: КАЗАН АФГАНСКИЙ С РУЧКАМИ ДВУХЦВЕТНЫЙ 10Л | D35: шт | E35: 2800 | F35: 4900 | I35: 75
A36: 00550 | B36: КАЗАН АФГАНСКИЙ С РУЧКАМИ ДВУХЦВЕТНЫЙ 12Л | D36: шт | E36: 3200 | F36: 5300 | I36: 65.625
A37: 00551 | B37: КАЗАН АФГАНСКИЙ С РУЧКАМИ ДВУХЦВЕТНЫЙ 15Л | D37: шт | E37: 3300 | F37: 5500 | I37: 66.66666667
A38: 48872 | B38: КАЗАН АФГАНСКИЙ С РУЧКАМИ ДВУХЦВЕТНЫЙ 20Л | D38: шт | E38: 3900 | F38: 6500 | I38: 66.66666667
B39: КАЗАН АФГАНСКИЙ С РУЧКАМИ ДВУХЦВЕТНЫЙ 30Л | D39: шт | E39: 4300 | F39: 7600 | I39: 76.74418605
A40: 00732 | B40: Прокладка для Афганского казана 5 л. | D40: шт | E40: 150 | F40: 230 | I40: 53.33333333
A41: 00733 | B41: Прокладка для Афганского казана 8 л. | D41: шт | E41: 150 | F41: 230 | I41: 53.33333333
A42: 00734 | B42: Прокладка для Афганского казана от 10 л. и выше | D42: шт | E42: 150 | F42: 230 | I42: 53.33333333
A43: САДЖИ
A44: 00552 | B44: Садж 35см | D44: шт | E44: 1700 | F44: 2500 | I44: 47.05882353
A45: 00553 | B45: Садж 40см | D45: шт | E45: 1960 | F45: 2800 | I45: 42.85714286
A46: 00554 | B46: Садж 45см | D46: шт | E46: 2300 | F46: 3200 | I46: 39.13043478
A47: 00555 | B47: Садж 50см | D47: шт | E47: 2500 | F47: 3500 | I47: 40
A48: 00556 | B48: Подставка под Садж | D48: шт | E48: 1700 | F48: 2200 | I48: 29.41176471
A49: ПЕЧИ ПОД КАЗАНЫ
A50: Печь под казан без дымохода
A51: ПКЭ-330 | B51: Печь под казан 6-8 (Съемные ножки) | D51: шт | E51: 2900 | F51: 3590 | H51: Описание на сайте | I51: 23.79310345
A52: ПКЭ-370 | B52: Печь под казан 10-12 (Съемные ножки) | D52: шт | E52: 3090 | F52: 3990 | I52: 29.12621359
A53: ПКЭ-440 | B53: Печь под казан 16л (Съемные ножки) | D53: шт | E53: 3280 | F53: 4190 | I53: 27.74390244
A54: ПКЭ-480 | B54: Печь под казан 22л (Съемные ножки) | D54: шт | E54: 3340 | F54: 4590 | I54: 37.4251497
A55: Печь под казан с дымоходом
A56: ПЭТ-330 | B56: Печь под казан с дымоходом 6-8 (Съемные ножки) | D56: шт | E56: 4030 | F56: 5290 | H56: Описание на сайте | I56: 31.26550868
A57: ПЭТ-370 | B57: Печь под казан с дымоходом 10-12 (Съемные ножки) | D57: шт | E57: 4540 | F57: 5690 | I57: 25.33039648
A58: ПЭТ-440 | B58: Печь под казан с дымоходом 16л (Съемные ножки) | D58: шт | E58: 4800 | F58: 5990 | I58: 24.79166667
A59: ПЭТ-480 | B59: Печь под казан с дымоходом 22л (Съемные ножки) | D59: шт | E59: 5020 | F59: 6490 | I59: 29.28286853
A60: Треноги для казанов
A61: 00199 | B61: Тренога для казана на 6 литров | D61: шт | E61: 830 | F61: 1050 | H61: Описание на сайте | I61: 26.5060241
A62: 00200 | B62: Тренога для казана на 8 литров | D62: шт | E62: 910 | F62: 1150 | I62: 26.37362637
A63: 00201 | B63: Тренога для казана на 10 литров | D63: шт | E63: 980 | F63: 1250 | I63: 27.55102041
A64: 00202 | B64: Тренога для казана на 12 литров | D64: шт | E64: 1050 | F64: 1350 | I64: 28.57142857
A65: 00159 | B65: Тренога для казана на 16 литров | D65: шт | E65: 1180 | F65: 1500 | I65: 27.11864407
A66: 00203 | B66: Тренога для казана на 22 литра | D66: шт | E66: 1410 | F66: 1800 | I66: 27.65957447
A67: Специи и приправы для блюд
A68: 00743 | B68: Приправа для плова "Сделай-дома" | D68: шт. | E68: 80 | F68: 145 | H68: Описание на сайте | I68: =(F68-E68)/E68*100 -> 81.25
A69: 00742 | B69: Приправа для Первых блюд "Сделай-дома" | D69: шт. | E69: 80 | F69: 145 | I69: 81.25
A70: 00744 | B70: Приправа для шашлыка "Сделай-дома" | D70: шт. | E70: 80 | F70: 145 | I70: 81.25
A71: 00741 | B71: Приправа для блюд из мяса "Сделай-дома" | D71: шт. | E71: 80 | F71: 145 | I71: 81.25
A72: Аксессуары
A73: 00073 | B73: Шумовка малая 40 см | D73: шт | E73: 220 | F73: 290 | H73: Описание на сайте | I73: =(F73-E73)/E73*100 -> 31.81818182
A74: 02010 | B74: Шумовка средняя 47 см | D74: шт | E74: 230 | F74: 340 | I74: 47.82608696
A75: 00072 | B75: Шумовка большая 60 см | D75: шт | E75: 450 | F75: 750 | I75: 66.66666667
A76: 00075 | B76: Половник малый 38 см | D76: шт | E76: 220 | F76: 290 | I76: 31.81818182
A77: 02011 | B77: Половник средний 45 см | D77: шт | E77: 230 | F77: 340 | I77: 47.82608696
A78: 00074 | B78: Половник большой 60 см | D78: шт | E78: 450 | F78: 750 | I78: 66.66666667
A79: 00657 | B79: Пчак Рог Оленя 18 см. | D79: шт | E79: 1480 | F79: 1960 | I79: 32.43243243
A80: 00656 | B80: Пчак Рог Быка 18 см. | D80: шт | E80: 1480 | F80: 1960 | I80: 32.43243243
A81: Посуда
A82: 01944 | B82: Ляган 32см(традиционный) | D82: шт | E82: 490 | F82: 690 | H82: Описание на сайте | I82: 40.81632653
A83: 02290 | B83: Ляган 32см(другая расцветка) | D83: шт | E83: 890 | F83: 1190 | I83: 33.70786517
A84: 01943 | B84: Ляган 37см(традиционный) | D84: шт | E84: 640 | F84: 890 | I84: 39.0625
A85: 02291 | B85: Ляган 37см(другая расцветка) | D85: шт | E85: 940 | F85: 1290 | I85: 37.23404255
A86: 01942 | B86: Ляган 42см(традиционный) | D86: шт | E86: 690 | F86: 990 | I86: 43.47826087
A87: 02292 | B87: Ляган 42см(другая расцветка) | D87: шт | E87: 1250 | F87: 1790 | I87: 43.2
A88: 02286 | B88: Пиала 11 см | D88: шт | E88: 98 | F88: 150 | I88: 53.06122449
A89: 02287 | B89: Косушка 18 см | D89: шт | E89: 270 | F89: 370 | I89: 37.03703704
A90: 00573 | B90: Тарелка 17см | D90: шт | E90: 260 | F90: 350 | I90: 34.61538462
A91: 00071 | B91: Тарелка 22см | D91: шт | E91: 290 | F91: 390 | I91: 34.48275862
A92: 02288 | B92: Чайник 1 л | D92: шт | E92: 550 | F92: 800 | I92: 45.45454545
A93: 02289 | B93: Чайник 2 л | D93: шт | E93: 600 | F93: 900 | I93: 50

Sheet Банные принадлежности
A1: Сделай-Дома.ру 88007001323 (Бесплатно) +79642506913 (Звонки и Ватсап) manager@sdelai-doma.ru
B3: Наименование | C3: Фото | E3: Ваша цена | F3: РРЦ | G3: Заказ | H3: Ссылки на описания | I3: Наценка, %
A4: Ковши
A5: 02275 | B5: Ковш 0,2 л "Русич" 51 см | D5: шт | E5: 410 | F5: 680 | I5: =(F5-E5)/E5*100 -> 65.85365854
A6: 02870 | B6: Оцинкованный ковш 1,5 л | D6: шт | E6: 195 | F6: 320 | I6: =(F6-E6)/E6*100 -> 64.1025641
A7: 02539 | B7: Ковш из стали 45 см, черный | D7: шт | E7: 335 | F7: 560 | I7: 67.1641791
B8: Ковш из нержавеющей стали 45 см | D8: шт | E8: 445 | F8: 740 | I8: 66.29213483
A9: Веники и щетки
A10: 02553 | B10: Веник массажный, бамбуковый 3х68см | D10: шт | E10: 296 | F10: 495 | I10: 67.22972973
A11: 02496 | B11: Веник массажный, бамбуковый малый 3х40 см | D11: шт | E11: 210 | F11: 350 | I11: 66.66666667
A12: 00300 | B12: Массажёр деревянный для тела | D12: шт | E12: 235 | F12: 400 | I12: 70.21276596
A13: 00301 | B13: Щетка деревянная, двусторонняя с импульсным массажером, 42 см | D13: шт | E13: 310 | F13: 520 | I13: 67.74193548
A14: Вешалки
B15: Вешалка 4-х рожковая, липа, 35х6,5х7 | D15: шт | E15: 172 | F15: 289 | I15: 68.02325581
B16: Вешалка 5-ти рожковая, липа, 45х6,5х7 | D16: шт | E16: 207 | F16: 350 | I16: 69.0821256
B17: Вешалка 6-ти рожковая, липа, 55х6,5х7 | D17: шт | E17: 238 | F17: 396 | I17: 66.38655462
A18: Шапки (войлок)
B19: Шапка "Комфорт" " | D19: шт | E19: 35 | F19: 60 | H19: Описание на сайте | I19: 71.42857143
A20: 00519 | B20: Шапка Классика серая | D20: шт | E20: 45 | F20: 80 | I20: 77.77777778
A21: 01287 | B21: Шапка Директор бани | D21: шт | E21: 190 | F21: 320 | I21: 68.42105263
A22: 00513 | B22: Шапка Классика белая | D22: шт | E22: 50 | F22: 90 | I22: 80
B23: Шапка Классика | D23: шт | E23: 55 | F23: 90 | I23: 63.63636364
A24: 00507 | B24: Шапка "В бане помылся - заново родился" | D24: шт | E24: 100 | F24: 170 | I24: 70
A25: 02529 | B25: Шапка Лучший банщик | D25: шт | E25: 190 | F25: 320 | H25: Описание на сайте | I25: 68.42105263
A26: 02526 | B26: Шапка "Буденовка" | D26: шт | E26: 140 | F26: 240 | I26: 71.42857143
A27: 03354 | B27: Шапка "Будёновка" белая | D27: шт | E27: 140 | F27: 240 | I27: 71.42857143
A28: 00180 | B28: Шапка "Не парь мозги" | D28: шт | E28: 100 | F28: 170 | I28: 70
A29: 02535 | B29: Шапка "В бане веник дороже денег" | D29: шт | E29: 100 | F29: 170 | I29: 70
A30: 02548 | B30: Шапка "Баня парит, силу дарит!" | D30: шт | E30: 100 | F30: 170 | I30: 70
B31: Шапка "Царь" | D31: шт | E31: 100 | F31: 170 | I31: 70
A32: Коврики и рукавицы (войлок)
A33: 02527 | B33: Рукавица для сауны серая | D33: шт | E33: 40 | F33: 70 | H33: Описание на сайте | I33: 75
A34: 02546 | B34: Рукавица для сауны белая | D34: шт | E34: 45 | F34: 80 | I34: 77.77777778
A35: 01049 | B35: Рукавица для сауны | D35: шт | E35: 56 | F35: 95 | I35: 69.64285714
B36: Рукавица для сауны Добрая банька | D36: шт | E36: 160 | F36: 260 | I36: 62.5
B37: Рукавица для сауны С легким паром | D37: шт | E37: 160 | F37: 260 | I37: 62.5
A38: 00514 | B38: Коврик для сауны серый | D38: шт | E38: 40 | F38: 70 | I38: 75
A39: 00515 | B39: Коврик для сауны белый | D39: шт | E39: 45 | F39: 70 | I39: 55.55555556
A40: 02545 | B40: Коврик для сауны С легким паром | D40: шт | E40: 195 | F40: 300 | I40: 53.84615385
B41: Коврик для сауны | D41: шт | E41: 56 | F41: 95 | I41: 69.64285714
A42: Наборы
B43: Набор из двух предметов (Шапка, коврик) белый | D43: шт | E43: 100 | F43: 170 | H43: Описание на сайте | I43: 70
B44: Набор из трех предметов (Шапка, коврик, рукавица) белый | D44: шт | E44: 150 | F44: 250 | I44: 66.66666667
B45: Набор из двух предметов (Шапка, коврик) серый | D45: шт | E45: 95 | F45: 160 | I45: 68.42105263
B46: Набор из трех предметов (Шапка, коврик, рукавица) серый | D46: шт | E46: 140 | F46: 240 | I46: 71.42857143
A47: Тапочки для бани и сауны
B48: Тапочки мужские Комби | D48: шт | E48: 145 | F48: 230 | I48: 58.62068966
B49: Тапочки женские Колокольчик | D49: шт | E49: 145 | F49: 230 | I49: 58.62068966
A50: Запарки для бани и сауны
A51: 00503 | B51: Сбор травяной "Общеукрепляющий", 20 фильтр-пак. х 2 г. для бани и сауны | D51: шт | E51: 70 | F51: 120 | I51: 71.42857143
A52: 00504 | B52: Сбор травяной "Успокаивающий", 20 фильтр-пак. х 2 г. для бани и сауны | D52: шт | E52: 70 | F52: 120 | I52: 71.42857143
B53: Сбор травяной "Тонизирующий", 20 фильтр-пак. х 2 г. для бани и сауны | D53: шт | E53: 70 | F53: 120 | I53: 71.42857143
A54: 01101 | B54: Запарка для бани в мешочке 30 г Душица | D54: шт | E54: 70 | F54: 120 | I54: 71.42857143
B55: Запарка для бани в мешочке 30 г Можжевельник | D55: шт | E55: 70 | F55: 120 | I55: 71.42857143
A56: 01111 | B56: Запарка для бани в мешочке 30 г Эвкалипт | D56: шт | E56: 70 | F56: 120 | I56: 71.42857143
A57: Соляные брикеты
A58: 00181 | B58: Соляной брикет с травами "Эвкалипт", 1300 г для бани и сауны | D58: шт | E58: 180 | F58: 300 | H58: Описание на сайте | I58: 66.66666667
A59: 02507 | B59: Соляной брикет с травами "Можжевельник", 1300 г для бани и сауны | D59: шт | E59: 180 | F59: 300 | I59: 66.66666667
A60: 02537 | B60: Соляной брикет с травами "Ромашка", 1300 г для бани и сауны | D60: шт | E60: 180 | F60: 300 | I60: 66.66666667
A61: 02547 | B61: Соляной брикет с травами "Мята", 1300 г для бани и сауны | D61: шт | E61: 180 | F61: 300 | I61: 66.66666667
B62: Соляная плитка с эфирным маслом "Мята", 200 г для бани и сауны | D62: шт | E62: 130 | F62: 220 | I62: 69.23076923
B63: Соляная плитка с эфирным маслом "Эвкалипт", 200 г для бани и сауны | D63: шт | E63: 130 | F63: 220 | I63: 69.23076923
B64: Соляная плитка с эфирным маслом "Кедр", 200 г для бани и сауны | D64: шт | E64: 130 | F64: 220 | I64: 69.23076923
A65: Термометры
A66: 02502 | B66: Термометр "Держи градус!" 21x4x1,5 см в предбанник | D66: шт | E66: 120 | F66: 200 | I66: 66.66666667
A67: 02524 | B67: Термометр "С легким паром!" 21x4x1,5 см для бани и сауны | D67: шт | E67: 120 | F67: 200 | I67: 66.66666667
A68: 02525 | B68: Термометр "Баня" 27х6,5х1,5 см для бани и сауны | D68: шт | E68: 155 | F68: 260 | I68: 67.74193548
A69: Эфирные масла и ароматизаторы
A70: 02497 | B70: Эфирное масло "Кедр" 10 мл в блистере в форме капли | D70: шт | E70: 75 | F70: 130 | H70: Описание на сайте | I70: =(F70-E70)/E70*100 -> 73.33333333
A71: 02501 | B71: Эфирное масло "Можжевельник" 10 мл в блистере в форме капли | D71: шт | E71: 75 | F71: 130 | I71: 73.33333333
A72: 02522 | B72: Эфирное масло "Мята" 10 мл в блистере в форме капли | D72: шт | E72: 80 | F72: 140 | I72: 75
A73: 02521 | B73: Эфирное масло "Пихта" 10 мл в блистере в форме капли | D73: шт | E73: 65 | F73: 120 | I73: 84.61538462
A74: 02540 | B74: Эфирное масло "Эвкалипт" 10 мл в блистере в форме капли | D74: шт | E74: 65 | F74: 120 | I74: 84.61538462
A75: 02500 | B75: Набор эфирных масел "ель и пихта" 2 масла по 10 мл в блистере в форме | D75: шт | E75: 115 | F75: 190 | H75: Описание на сайте | I75: 65.2173913
A76: 02519 | B76: Набор эфирных масел "эвкалипт и пихта" 2 масла по 10 мл в блистере в форме капли | D76: шт | E76: 130 | F76: 220 | I76: 69.23076923
A77: 02499 | B77: Набор эфирных масел "кедр и можжевельник" 2 масла по 10 мл в блистере в форме капли | D77: шт | E77: 130 | F77: 220 | I77: 69.23076923
A78: 02505 | B78: Набор эфирных масел "С легким паром" (пихта, можжевельник, эвкалипт) 3 масла по 15 мл | D78: шт | E78: 165 | F78: 270 | I78: 63.63636364
A79: 02516 | B79: Эфирное масло "Ель" 15 мл | D79: шт | E79: 65 | F79: 110 | I79: 69.23076923
A80: 02517 | B80: Эфирное масло "Иланг-иланг" 15 мл | D80: шт | E80: 100 | F80: 170 | I80: 70
A81: 02515 | B81: Эфирное масло "Сосна" 15 мл | D81: шт | E81: 50 | F81: 90 | I81: 80
A82: 02514 | B82: Эфирное масло "Чайное дерево" 15 мл | D82: шт | E82: 90 | F82: 150 | I82: 66.66666667
A83: 02531 | B83: Ароматизатор "Вкусный пар" 350мл "Ель | D83: шт | E83: 115 | F83: 200 | H83: Описание на сайте | I83: 73.91304348
B84: Ароматизатор 120 мл "Бодрость" "Эвкалипт+Мята" | D84: шт | E84: 115 | F84: 200 | I84: 73.91304348
A85: 02509 | B85: Ароматизатор "Вкусный пар" 350мл "Кедр" | D85: шт | E85: 115 | F85: 200 | I85: 73.91304348
